Workbook

Sheet Sign Off
B2: Sign Off's
B4: Accounting
C6: Name | D6: Title | E6: Date
B7: Preparer | C7: Belen Villalba | D7: Temp Analyst | E7: 2019-12-11
B8: Reviewer | C8: William Adams | D8: Financial Analysis Manager | E8: 2020-01-14
B9: Approver | C9: N/A | D9: N/A | E9: N/A
B11: Audit Services
C13: Name | D13: Title | E13: Date
B14: Preparer
B16: Energy Delivery
C18: Name | D18: Title | E18: Date
B19: Final Reviewer

Sheet A - Contractor Summary
B2: Contractor Summary
B4: Test Plan: (A) Using the drop down list, select the vendor. (B) Ensure address agrees to invoice(s). (C) Enter the distance between vendor address to Plant City, FL. (D) Determine if vendor is part of the SEE (see tab A.1 for listing). (E) Determine if other agreements exist. (F) Using the drop down list, select the Incident Base that the vendor was initially assigned. (G) If the contractor includes multiple crews with different timelines, utilize the '+' symbol at the top of columns 'H' and 'K' (if necessary) to unhide the vendor summary. (H) Click the button to populate the second (and third, if necessary) set of tabs for documentation of those expenses. (I) Complete steps (A) through (F).
F14: G | I14: G
C15: Cew #01 | F15: Crew#02 | I15: Vendor #3
G17: H | J17: H
B19: Contractor/Company | C19: ABC PROFESSIONAL TREE SERVICES INC | D19: A | F19: ABC PROFESSIONAL TREE SERVICES INC | G19: A | J19: A
B20: SAP Vendor# | I20: =VLOOKUP(I19,#REF!,2,FALSE) -> 
B21: Service Type | C21: Distribution | I21: =VLOOKUP($I$19,#REF!,4,FALSE) -> 
B23: Address | C23: 201 Flint Ridge Rd, Suite 201 | D23: B | G23: B | I23: =VLOOKUP($I$19,#REF!,13,FALSE) ->  | J23: B
B24: City | C24: Webster | I24: =VLOOKUP($I$19,#REF!,14,FALSE) -> 
B25: State/Providence | C25: TX | I25: =VLOOKUP($I$19,#REF!,15,FALSE) -> 
B26: Zip | I26: =VLOOKUP($I$19,#REF!,16,FALSE) -> 
B27: Country | C27: US | F27: US | I27: =VLOOKUP($I$19,#REF!,17,FALSE) -> 
B29: Distance from FL (in miles) | C29: =478+180 -> 658 | D29: C | F29: =328+337 -> 665 | G29: C | I29: 800 | J29: C
B30: Travel Days (500 m/per day) | C30: 1 | F30: 1 | I30: =ROUNDUP(I29/500,0) -> 2
B32: Member of the SEE | D32: D | G32: D | I32: NO | J32: D
B33: Other Agreement/Contract (Y/N) | D33: E | G33: E | I33: NO | J33: E
B34: Incident Base | D34: F | G34: F | I34: Winter Haven | J34: F
B36: Date Secured | C36: 10/21/18-10/31/18 | F36: 10/21/18-10/31/18 | I36: =VLOOKUP($I$19,#REF!,6,FALSE) -> 
B37: Start Travel | C37: Nashville, AK | F37: Southhaven, MS | I37: =VLOOKUP($I$19,#REF!,7,FALSE) -> 
B38: Date Arrived | C38: 2018-10-21 | F38: 2018-10-21 | I38: =VLOOKUP($I$19,#REF!,8,FALSE) -> 
B39: Date Released | C39: 2018-10-31 | F39: 2018-10-31 | I39: =VLOOKUP($I$19,#REF!,9,FALSE) -> 
B40: Time Released | I40: =VLOOKUP($I$19,#REF!,10,FALSE) -> 
B41: Released To | C41: Dayton, TX | F41: Southhaven, MS | I41: =VLOOKUP($I$19,#REF!,11,FALSE) -> 
B42: Arrived Home/Utility* | C42: 2018-10-31 | F42: 2018-10-31 | I42: =IF(I41="home",SUM(IF(I29>500,I39+I30,I39)),I39) -> 
F47: C.1 - Rate Sheets (2) | I47: C.1 - Rate Sheets (3)
F48: C.2 - Timesheets - Labor (2) | I48: C.2 - Timesheets - Labor (3)
F49: C.4 - Timesheets - Equipmen (2) | I49: C.4 - Timesheets - Equipmen (3)
F50: D - Lodging (2) | I50: D - Lodging (3)
F51: E - Fuel (2) | I51: E - Fuel (3)
F52: F - Meals (2) | I52: F - Meals (3)
F53: G - Per Diem (2) | I53: G - Per Diem (3)
F54: H - Mileage (2) | I54: H - Mileage (3)
F55: I - Other (2) | I55: I - Other (3)
B59: *Estimates reasonable arrival time
B61: Tickmark Explanation:

Sheet A.1 SEE Members
A1: RMAG | B1: RESPONDING COMPANY | C1: COMPANY NAME
A2: SEE
A3: SEE
A4: SEE
A5: SEE
A6: SEE
A7: SEE
A8: SEE
A9: SEE
A10: SEE
A11: SEE
A12: SEE
A13: SEE
A14: SEE
A15: SEE
A16: SEE
A17: SEE
A18: SEE
A19: SEE
A24: SEE
A25: SEE
A26: SEE
A27: SEE
A28: SEE
A29: SEE
A31: SEE
A32: SEE
A33: SEE
A34: SEE
A35: SEE
A40: SEE
A41: SEE
A42: SEE
A43: SEE
A47: SEE
A55: SEE
A56: SEE
A57: SEE
A61: SEE
A64: SEE
A65: SEE

Sheet B - Summary Expenses
B2: Summary of Expenses
B4: Test Plan: (A) Calculate Total Amount Invoiced for each expense category. (B) Using SAP t-code FBL1N, list Vendor Invoices Paid. (C) Ensure there are no differences between the Total Expense Amount and the Total Paid Amount. (D) Ensure there are no difference between Total Invoiced Amount and Total Expense Amount. (E) If applicable, identify difference due to Foreign currency exchange rates.
C9: A
C10: Total Invoiced | D10: Total Calculated | E10: Allowable | F10: Reviewed - Allowed | G10: Reviewed - Not Allowable | H10: Not Allowable
B11: Labor Expense Total | C11: 262771.86 | D11: ='C.2 - Timesheets - Labor'!AL67 -> 262771.86 | E11: ='C.2 - Timesheets - Labor'!AM67 -> 262771.86 | F11: ='C.2 - Timesheets - Labor'!AP67 -> 0 | G11: ='C.2 - Timesheets - Labor'!AQ67 -> 0 | H11: =D11-(E11+F11+G11) -> 0
B12: Equipment Expense Total | C12: 60241.26 | D12: ='C.4 - Timesheets - Equipment'!AA64 -> 60241.26 | E12: ='C.4 - Timesheets - Equipment'!AB64 -> 60241.26 | F12: ='C.4 - Timesheets - Equipment'!AD64 -> 0 | G12: ='C.4 - Timesheets - Equipment'!AE64 -> 0 | H12: =D12-(E12+F12+G12) -> 0
B13: Lodging Expense Total | D13: ='D - Lodging'!L93 -> 0 | E13: ='D - Lodging'!T93 -> 0 | F13: ='D - Lodging'!V93 -> 0 | G13: ='D - Lodging'!W93 -> 0 | H13: =D13-(E13+F13+G13) -> 0
B14: Fuel/Transport Expense Total | D14: ='E - Fuel'!J34 -> 0 | E14: ='E - Fuel'!Q34 -> 0 | F14: ='E - Fuel'!S34 -> 0 | G14: ='E - Fuel'!T34 -> 0 | H14: 0
B15: Meal Expense Total | D15: ='F - Meals'!K141 -> 0 | E15: ='F - Meals'!R141 -> 0 | F15: ='F - Meals'!T141 -> 0 | G15: ='F - Meals'!U141 -> 0 | H15: 0
B16: Per Diem Expense Total | C16: 9797.4 | D16: ='G - Per Diem'!I39 -> 9797.4 | E16: ='G - Per Diem'!N39 -> 0 | F16: ='G - Per Diem'!P39 -> 9797.4 | G16: ='G - Per Diem'!Q39 -> 0 | H16: 0
B17: Mileage Expense Total | D17: ='H - Mileage'!L36 -> 0 | E17: ='H - Mileage'!R36 -> 0 | F17: ='H - Mileage'!T36 -> 0 | G17: ='H - Mileage'!U36 -> 0 | H17: 0
B18: Other Expense | D18: ='I - Other'!K16 -> 0 | E18: ='I - Other'!R16 -> 0 | F18: ='I - Other'!T16 -> 0 | G18: ='I - Other'!U16 -> 0 | H18: =D18-(E18+F18+G18) -> 0
B20: Total Expense per tabs | C20: =SUM(C11:C18) -> 332810.52 | D20: =SUM(D11:D18) -> 332810.52 | E20: =SUM(E11:E18) -> 323013.12 | F20: =SUM(F11:F18) -> 9797.4 | G20: =SUM(G11:G18) -> 0 | H20: 0
B21: Difference | C21: =IF(D21=0,"","1") ->  | D21: =C20-D20 -> 0 | E21: D
B23: Total Expense | D23: =+D20 -> 332810.52 | E23: (from Total SAP Summary)
B24: Total Paid | D24: =-D60 -> -332810.52 | E24: (from FBL1N in SAP)
B25: Difference | C25: =IF(D25=0,"",SUM(C21,1)) ->  | D25: =+D23+D24 -> 0 | E25: C
B27: Exchange Rate
B28: Fx Adjusted to USD
B29: Difference | C29: =IF(D29=0,"","3") ->  | E29: E
B31: B
B33: Document No | C33: Doc Date | D33: Amount | E33: Reference
B34: 362473 | C34: 2018-11-01 | D34: 64269.1 | E34: 676928
B35: 362494 | C35: 2018-11-01 | D35: 70082.5 | E35: 676931
B36: 362569 | C36: 2018-11-08 | D36: 93089.27 | E36: 676930
B37: 362735 | C37: 2018-11-08 | D37: 105369.65 | E37: 676932
D60: =SUM(D34:D59) -> 332810.52
B62: Tickmark Explanation:
B63: =IFERROR(C21,"") -> 
B65: =IFERROR(C25,"") -> 

Sheet C.1 - Rate Sheets
B2: Labor Charges - Rate Sheet
B4: Test Plan: (A) Using the vendor rate sheet, ensure that a rate was provided for all Positions and Equipment types.
B6: Labor Types:
B7: ST | C7: Straight Time
B8: OT | C8: Over Time
B9: DT | C9: Double Time
B10: MOB/DMOB | C10: Mobilization/Demobilization Time
B13: Labor per Man Hour | H13: Labor per Equipment Hour
B14: A | H14: A
B15: POSITION | C15: ST | D15: OT | E15: DT | F15: MOB/DMOB | H15: Type | I15: $/HOUR
B16: General Foreman | D16: 129.41 | E16: 172.54 | H16: Pick-Up | I16: 28.75 | J16: 1
B17: Foreman | D17: 114.8 | E17: 153.06 | H17: Mobilization on Equipment (1 ton or less) | I17: 2.09
B18: Crew Member | D18: 83.28 | H18: Mobilization on Equipment (More than 1 ton) | I18: 2.78
B19: Crew Member (other) | D19: 102.27 | E19: 136.36 | H19: 55' Lift | I19: 44.28
B20: Per Diem per person | D20: 172.5 | H20: 60/70' Bucket | I20: 63.25
B21: Per Diem per person | D21: 33.33
B62: Tickmark Explanation:
B63: 1

Sheet C.2 - Timesheets - Labor
B2: Labor Charges - Time Card
B4: Test Plan: | C4: Obtain the time cards. (A) Using the Asset by Company tab (C.3), populate the crew members names and positions (if provided). Find additional information regarding individual crew member from related invoice. (B) Enter hours worked from time card(s). (C) Confirm that the dates per the time cards fall between dates provided per 'A - Contractor Summary' tab. (D) Confirm the labor type charged agrees to the rate sheet. (E) Identify any labor charges to be reviewed (manually enter amounts based on reasonability of time period labor was charged, discrepancies between timecards and invoice, etc. (F) For charges which required further review, document review (include why it was determined to be allowed/disallowed via a tickmark).
B10: Rx | C10: Recalculated.
B11: a | C11: Provided from tab 'C.1 - Rate Sheets'.
B12: b | C12: Check figure should equal $0. Cell will appear yellow if discrepancies are noted.
C14: A | H14: Rx | J14: C | K14: a | AH14: Rx | AM14: Rx | AO14: E | AP14: F
B15: # | C15: Name | D15: Position | E15: Company | F15: Crew# | G15: Invoice# | H15: Start Date | I15: End Date | J15: Dates Worked Reasonable? | K15: Rates | O15: 2018-10-21 | P15: 2018-10-22 | Q15: 2018-10-23 | R15: 2018-10-24 | S15: 2018-10-25 | T15: 2018-10-26 | U15: 2018-10-27 | V15: 2018-10-28 | W15: 2018-10-29 | X15: 10/302018 | Y15: 2018-10-31 | Z15: 2018-11-01 | AA15: 2018-11-02 | AB15: 2018-11-03 | AC15: Total Labor Hours | AH15: Total Labor $ | AM15: Allowable Charges | AN15: Labor Type Appropriate? | AO15: To Be Reviewed | AP15: Reviewed - Allowable Charge | AQ15: Reviewed - Unallowable Charge | AR15: Tickmarks
O16: 2018-10-21 | P16: 2018-10-22 | Q16: 2018-10-23 | R16: 2018-10-24 | S16: 2018-10-25 | T16: 2018-10-26 | U16: 2018-10-27 | V16: 2018-10-28 | W16: 2018-10-29 | X16: 2018-10-30 | Y16: 2018-10-31 | Z16: 2018-11-01 | AA16: 2018-11-02 | AB16: 2018-11-03 | AC16: ST | AD16: OT | AE16: DT | AF16: MOB/DMOB | AG16: Total Hours | AH16: Total ST $ | AI16: Total OT $ | AJ16: Total DT $ | AK16: Total MOB/DMOB $ | AL16: Total Labor $
O17: Sunday | P17: Monday | Q17: Tuesday | R17: Wednesday | S17: Thursday | T17: Friday | U17: Saturday | V17: Sunday | W17: Monday | X17: Tuesday | Y17: Wednesday | Z17: Thursday | AA17: Friday | AB17: Saturday
K18: ST | L18: OT | M18: DT | N18: MOB/DMOB | O18: Total | P18: Total | Q18: Total | R18: Total | S18: Total | T18: Total | U18: Total | V18: Total | W18: Total | X18: Total | Y18: Total | Z18: Total | AA18: Total | AB18: Total
B19: 1 | C19: Luis Arredondo | D19: General Foreman | E19: Vendor No.01 | F19: Crew#1 | G19: 362473 | H19: 2018-10-21 | I19: 2018-10-27 | J19: =IF(AND(H19>='A - Contractor Summary'!$C$36,I19<='A - Contractor Summary'!$C$42),"Yes","No") -> No | K19: 0 | L19: 129.41 | M19: 0 | N19: =VLOOKUP($D19,'C.1 - Rate Sheets'!B:F,5,FALSE) -> 0 | O19: =46/7 -> 6.571428571 | P19: =46/7 -> 6.571428571 | Q19: 6.571428571 | R19: 6.571428571 | S19: 6.571428571 | T19: 6.571428571 | U19: 6.571428571 | AD19: =SUM(O19:AC19) -> 46 | AG19: =SUM(AC19:AF19) -> 46 | AH19: =AC19*K19 -> 0 | AI19: 5952.86 | AJ19: 0 | AK19: 0 | AL19: =SUM(AH19:AK19) -> 5952.86 | AM19: =AL19-AO19 -> 5952.86 | AN19: Yes | AO19: 0 | AP19: 0 | AQ19: 0
B20: 2 | C20: Javier Gonzalez | D20: Foreman | E20: Vendor No.01 | F20: Crew#1 | G20: 362473 | H20: 2018-10-21 | I20: 2018-10-27 | J20: =IF(AND(H20>='A - Contractor Summary'!$C$36,I20<='A - Contractor Summary'!$C$42),"Yes","No") -> No | K20: 0 | L20: 114.8 | M20: 0 | N20: =VLOOKUP($D20,'C.1 - Rate Sheets'!B:F,5,FALSE) -> 0 | O20: =46/7 -> 6.571428571 | P20: 6.571428571 | Q20: 6.571428571 | R20: 6.571428571 | S20: 6.571428571 | T20: 6.571428571 | U20: 6.571428571 | AD20: 46 | AG20: =SUM(AC20:AF20) -> 46 | AH20: 0 | AI20: 5280.8 | AJ20: 0 | AK20: 0 | AL20: =SUM(AH20:AK20) -> 5280.8 | AM20: 5280.8 | AN20: Yes | AO20: 0 | AP20: 0 | AQ20: 0
B21: 3 | D21: Crew Member (other) | E21: Vendor No.01 | F21: Crew#1 | G21: 362473 | H21: 2018-10-21 | I21: 2018-10-27 | J21: =IF(AND(H21>='A - Contractor Summary'!$C$36,I21<='A - Contractor Summary'!$C$42),"Yes","No") -> No | K21: 0 | L21: 102.27 | M21: 0 | N21: =VLOOKUP($D21,'C.1 - Rate Sheets'!B:F,5,FALSE) -> 0 | O21: =92/7 -> 13.14285714 | P21: =92/7 -> 13.14285714 | Q21: 13.14285714 | R21: 13.14285714 | S21: 13.14285714 | T21: 13.14285714 | U21: 13.14285714 | AD21: 92 | AG21: =SUM(AC21:AF21) -> 92 | AH21: 0 | AI21: 9408.84 | AJ21: 0 | AK21: 0 | AL21: 9408.84 | AM21: 9408.84 | AN21: Yes | AO21: 0 | AP21: 0 | AQ21: 0
B22: 4 | C22: Danny Herrera | D22: Foreman | E22: Vendor No.01 | F22: Crew#1 | G22: 362473 | H22: 2018-10-21 | I22: 2018-10-27 | J22: =IF(AND(H22>='A - Contractor Summary'!$C$36,I22<='A - Contractor Summary'!$C$42),"Yes","No") -> No | K22: 0 | L22: 114.8 | M22: 0 | N22: =VLOOKUP($D22,'C.1 - Rate Sheets'!B:F,5,FALSE) -> 0 | O22: =46/7 -> 6.571428571 | P22: =46/7 -> 6.571428571 | Q22: 6.571428571 | R22: 6.571428571 | S22: 6.571428571 | T22: 6.571428571 | U22: 6.571428571 | AD22: 46 | AG22: 46 | AH22: 0 | AI22: 5280.8 | AJ22: 0 | AK22: 0 | AL22: 5280.8 | AM22: 5280.8 | AN22: Yes | AO22: 0 | AP22: 0 | AQ22: 0
B23: 5 | D23: Crew Member | E23: Vendor No.01 | F23: Crew#1 | G23: 362473 | H23: 2018-10-21 | I23: 2018-10-27 | J23: =IF(AND(H23>='A - Contractor Summary'!$C$36,I23<='A - Contractor Summary'!$C$42),"Yes","No") -> No | K23: 0 | L23: 83.28 | M23: 0 | N23: =VLOOKUP($D23,'C.1 - Rate Sheets'!B:F,5,FALSE) -> 0 | O23: =92/7 -> 13.14285714 | P23: =92/7 -> 13.14285714 | Q23: 13.14285714 | R23: 13.14285714 | S23: 13.14285714 | T23: 13.14285714 | U23: 13.14285714 | AD23: 92 | AG23: 92 | AH23: 0 | AI23: 7661.76 | AJ23: 0 | AK23: 0 | AL23: 7661.76 | AM23: 7661.76 | AN23: Yes | AO23: 0 | AP23: 0 | AQ23: 0
B24: 6 | C24: Mario Zarco | D24: Foreman | E24: Vendor No.01 | F24: Crew#1 | G24: 362473 | H24: 2018-10-21 | I24: 2018-10-27 | J24: =IF(AND(H24>='A - Contractor Summary'!$C$36,I24<='A - Contractor Summary'!$C$42),"Yes","No") -> No | K24: 0 | L24: 114.8 | M24: 0 | N24: =VLOOKUP($D24,'C.1 - Rate Sheets'!B:F,5,FALSE) -> 0 | O24: =46/7 -> 6.571428571 | P24: =46/7 -> 6.571428571 | Q24: 6.571428571 | R24: 6.571428571 | S24: 6.571428571 | T24: 6.571428571 | U24: 6.571428571 | AD24: 46 | AG24: 46 | AH24: 0 | AI24: 5280.8 | AJ24: 0 | AK24: 0 | AL24: 5280.8 | AM24: 5280.8 | AN24: Yes | AO24: 0 | AP24: 0 | AQ24: 0
B25: 7 | D25: Crew Member (other) | E25: Vendor No.01 | F25: Crew#1 | G25: 362473 | H25: 2018-10-21 | I25: 2018-10-27 | J25: =IF(AND(H25>='A - Contractor Summary'!$C$36,I25<='A - Contractor Summary'!$C$42),"Yes","No") -> No | K25: 0 | L25: 102.27 | M25: 0 | N25: =VLOOKUP($D25,'C.1 - Rate Sheets'!B:F,5,FALSE) -> 0 | O25: =46/7 -> 6.571428571 | P25: 6.571428571 | Q25: 6.571428571 | R25: 6.571428571 | S25: 6.571428571 | T25: 6.571428571 | U25: 6.571428571 | AD25: 46 | AG25: 46 | AH25: 0 | AI25: 4704.42 | AJ25: 0 | AK25: 0 | AL25: 4704.42 | AM25: 4704.42 | AN25: Yes | AO25: 0 | AP25: 0 | AQ25: 0
B26: 8
B27: 9 | C27: A Rodriguez | D27: General Foreman | E27: Vendor No.01 | F27: Crew#2 | G27: 362494 | H27: 2018-10-21 | I27: 2018-10-27 | J27: =IF(AND(H27>='A - Contractor Summary'!$C$36,I27<='A - Contractor Summary'!$C$42),"Yes","No") -> No | K27: 0 | L27: 129.41 | M27: 0 | N27: =VLOOKUP($D27,'C.1 - Rate Sheets'!B:F,5,FALSE) -> 0 | O27: =48/7 -> 6.857142857 | P27: =48/7 -> 6.857142857 | Q27: 6.857142857 | R27: 6.857142857 | S27: 6.857142857 | T27: 6.857142857 | U27: 6.857142857 | AD27: =SUM(O27:AC27) -> 48 | AG27: =SUM(AC27:AF27) -> 48 | AH27: =AC27*K27 -> 0 | AI27: 6211.68 | AJ27: 0 | AK27: 0 | AL27: 6211.68 | AM27: 6211.68 | AN27: Yes | AO27: 0 | AP27: 0 | AQ27: 0
B28: 10 | D28: Crew Member (other) | E28: Vendor No.01 | F28: Crew#2 | G28: 362494 | H28: 2018-10-21 | I28: 2018-10-27 | J28: =IF(AND(H28>='A - Contractor Summary'!$C$36,I28<='A - Contractor Summary'!$C$42),"Yes","No") -> No | K28: 0 | L28: 102.27 | M28: 0 | N28: =VLOOKUP($D28,'C.1 - Rate Sheets'!B:F,5,FALSE) -> 0 | O28: =48/7 -> 6.857142857 | P28: 6.857142857 | Q28: 6.857142857 | R28: 6.857142857 | S28: 6.857142857 | T28: 6.857142857 | U28: 6.857142857 | AD28: 48 | AG28: 48 | AH28: 0 | AI28: 4908.96 | AJ28: 0 | AK28: 0 | AL28: 4908.96 | AM28: 4908.96 | AN28: Yes | AO28: 0 | AP28: 0 | AQ28: 0
B29: 11 | C29: R Aguilera | D29: Foreman | E29: Vendor No.01 | F29: Crew#2 | G29: 362494 | H29: 2018-10-21 | I29: 2018-10-27 | J29: =IF(AND(H29>='A - Contractor Summary'!$C$36,I29<='A - Contractor Summary'!$C$42),"Yes","No") -> No | K29: 0 | L29: 114.8 | M29: 0 | N29: =VLOOKUP($D29,'C.1 - Rate Sheets'!B:F,5,FALSE) -> 0 | O29: 6.857142857 | P29: 6.857142857 | Q29: 6.857142857 | R29: 6.857142857 | S29: 6.857142857 | T29: 6.857142857 | U29: 6.857142857 | AD29: 48 | AG29: 48 | AH29: 0 | AI29: 5510.4 | AJ29: 0 | AK29: 0 | AL29: 5510.4 | AM29: 5510.4 | AN29: Yes | AO29: 0 | AP29: 0 | AQ29: 0
B30: 12 | D30: Crew Member (other) | E30: Vendor No.01 | F30: Crew#2 | G30: 362494 | H30: 2018-10-21 | I30: 2018-10-27 | J30: =IF(AND(H30>='A - Contractor Summary'!$C$36,I30<='A - Contractor Summary'!$C$42),"Yes","No") -> No | K30: 0 | L30: 102.27 | M30: 0 | N30: =VLOOKUP($D30,'C.1 - Rate Sheets'!B:F,5,FALSE) -> 0 | O30: =96/7 -> 13.71428571 | P30: =96/7 -> 13.71428571 | Q30: 13.71428571 | R30: 13.71428571 | S30: 13.71428571 | T30: 13.71428571 | U30: 13.71428571 | AD30: 96 | AG30: 96 | AH30: 0 | AI30: 9817.92 | AJ30: 0 | AK30: 0 | AL30: 9817.92 | AM30: 9817.92 | AN30: Yes | AO30: 0 | AP30: 0 | AQ30: 0
B31: 13 | C31: S Mendez | D31: Foreman | E31: Vendor No.01 | F31: Crew#2 | G31: 362494 | H31: 2018-10-21 | I31: 2018-10-27 | J31: =IF(AND(H31>='A - Contractor Summary'!$C$36,I31<='A - Contractor Summary'!$C$42),"Yes","No") -> No | K31: 0 | L31: 114.8 | M31: 0 | N31: =VLOOKUP($D31,'C.1 - Rate Sheets'!B:F,5,FALSE) -> 0 | O31: =48/7 -> 6.857142857 | P31: =48/7 -> 6.857142857 | Q31: 6.857142857 | R31: 6.857142857 | S31: 6.857142857 | T31: 6.857142857 | U31: 6.857142857 | AD31: 48 | AG31: 48 | AH31: 0 | AI31: 5510.4 | AJ31: 0 | AK31: 0 | AL31: 5510.4 | AM31: 5510.4 | AN31: Yes | AO31: 0 | AP31: 0 | AQ31: 0
B32: 14 | D32: Crew Member (other) | E32: Vendor No.01 | F32: Crew#2 | G32: 362494 | H32: 2018-10-21 | I32: 2018-10-27 | J32: =IF(AND(H32>='A - Contractor Summary'!$C$36,I32<='A - Contractor Summary'!$C$42),"Yes","No") -> No | K32: 0 | L32: 102.27 | M32: 0 | N32: =VLOOKUP($D32,'C.1 - Rate Sheets'!B:F,5,FALSE) -> 0 | O32: =96/7 -> 13.71428571 | P32: =96/7 -> 13.71428571 | Q32: 13.71428571 | R32: 13.71428571 | S32: 13.71428571 | T32: 13.71428571 | U32: 13.71428571 | AD32: 96 | AG32: 96 | AH32: 0 | AI32: 9817.92 | AJ32: 0 | AK32: 0 | AL32: 9817.92 | AM32: 9817.92 | AN32: Yes | AO32: 0 | AP32: 0 | AQ32: 0
B33: 15 | C33: J Arrendondo | D33: Foreman | E33: Vendor No.01 | F33: Crew#2 | G33: 362494 | H33: 2018-10-21 | I33: 2018-10-27 | J33: =IF(AND(H33>='A - Contractor Summary'!$C$36,I33<='A - Contractor Summary'!$C$42),"Yes","No") -> No | K33: 0 | L33: 114.8 | M33: 0 | N33: =VLOOKUP($D33,'C.1 - Rate Sheets'!B:F,5,FALSE) -> 0 | O33: =48/7 -> 6.857142857 | P33: =48/7 -> 6.857142857 | Q33: 6.857142857 | R33: 6.857142857 | S33: 6.857142857 | T33: 6.857142857 | U33: 6.857142857 | AD33: 48 | AG33: 48 | AH33: 0 | AI33: 5510.4 | AJ33: 0 | AK33: 0 | AL33: 5510.4 | AM33: 5510.4 | AN33: Yes | AO33: 0 | AP33: 0 | AQ33: 0
B34: 16 | D34: Crew Member (other) | E34: Vendor No.01 | F34: Crew#2 | G34: 362494 | H34: 2018-10-21 | I34: 2018-10-27 | J34: =IF(AND(H34>='A - Contractor Summary'!$C$36,I34<='A - Contractor Summary'!$C$42),"Yes","No") -> No | K34: 0 | L34: 102.27 | M34: 0 | N34: =VLOOKUP($D34,'C.1 - Rate Sheets'!B:F,5,FALSE) -> 0 | O34: =96/7 -> 13.71428571 | P34: =96/7 -> 13.71428571 | Q34: 13.71428571 | R34: 13.71428571 | S34: 13.71428571 | T34: 13.71428571 | U34: 13.71428571 | AD34: 96 | AG34: 96 | AH34: 0 | AI34: 9817.92 | AJ34: 0 | AK34: 0 | AL34: 9817.92 | AM34: 9817.92 | AN34: Yes | AO34: 0 | AP34: 0 | AQ34: 0
B35: 17
B36: 18 | C36: Luis Arredondo | D36: General Foreman | E36: Vendor No.01 | F36: Crew#1 | G36: 362569 | H36: 2018-10-28 | I36: 2018-11-03 | J36: =IF(AND(H36>='A - Contractor Summary'!$C$36,I36<='A - Contractor Summary'!$C$42),"Yes","No") -> No | K36: 0 | L36: 129.41 | M36: 0 | N36: =VLOOKUP($D36,'C.1 - Rate Sheets'!B:F,5,FALSE) -> 0 | V36: =48/7 -> 6.857142857 | W36: =48/7 -> 6.857142857 | X36: 6.857142857 | Y36: 6.857142857 | Z36: 6.857142857 | AA36: 6.857142857 | AB36: 6.857142857 | AD36: =SUM(O36:AC36) -> 48 | AE36: 0 | AG36: =SUM(AC36:AF36) -> 48 | AH36: =AC36*K36 -> 0 | AI36: =AD36*L36 -> 6211.68 | AJ36: =AE36*M36 -> 0 | AK36: =AF36*N36 -> 0 | AL36: 6211.68 | AM36: 6211.68 | AN36: Yes | AO36: 0 | AP36: 0 | AQ36: 0
B37: 19 | D37: General Foreman | E37: Vendor No.01 | F37: Crew#1 | G37: 362569 | H37: 2018-10-28 | I37: 2018-11-03 | J37: =IF(AND(H37>='A - Contractor Summary'!$C$36,I37<='A - Contractor Summary'!$C$42),"Yes","No") -> No | K37: 0 | L37: 0 | M37: 172.54 | N37: =VLOOKUP($D37,'C.1 - Rate Sheets'!B:F,5,FALSE) -> 0 | V37: =16/7 -> 2.285714286 | W37: =16/7 -> 2.285714286 | X37: 2.285714286 | Y37: 2.285714286 | Z37: 2.285714286 | AA37: 2.285714286 | AB37: 2.285714286 | AD37: 0 | AE37: =SUM(O37:AC37) -> 16 | AG37: 16 | AH37: 0 | AI37: 0 | AJ37: 2760.64 | AK37: 0 | AL37: 2760.64 | AM37: 2760.64 | AN37: Yes | AO37: 0 | AP37: 0 | AQ37: 0
B38: 20 | C38: Javier Gonzalez | D38: Foreman | E38: Vendor No.01 | F38: Crew#1 | G38: 362569 | H38: 2018-10-28 | I38: 2018-11-03 | J38: =IF(AND(H38>='A - Contractor Summary'!$C$36,I38<='A - Contractor Summary'!$C$42),"Yes","No") -> No | K38: 0 | L38: 114.8 | M38: 0 | N38: =VLOOKUP($D38,'C.1 - Rate Sheets'!B:F,5,FALSE) -> 0 | V38: =48/7 -> 6.857142857 | W38: =48/7 -> 6.857142857 | X38: 6.857142857 | Y38: 6.857142857 | Z38: 6.857142857 | AA38: 6.857142857 | AB38: 6.857142857 | AD38: =SUM(O38:AC38) -> 48 | AE38: 0 | AG38: 48 | AH38: 0 | AI38: 5510.4 | AJ38: 0 | AK38: 0 | AL38: 5510.4 | AM38: 5510.4 | AN38: Yes | AO38: 0 | AP38: 0 | AQ38: 0
B39: 21 | D39: Foreman | E39: Vendor No.01 | F39: Crew#1 | G39: 362569 | H39: 2018-10-28 | I39: 2018-11-03 | J39: =IF(AND(H39>='A - Contractor Summary'!$C$36,I39<='A - Contractor Summary'!$C$42),"Yes","No") -> No | K39: 0 | L39: 0 | M39: 153.06 | N39: =VLOOKUP($D39,'C.1 - Rate Sheets'!B:F,5,FALSE) -> 0 | V39: =16/7 -> 2.285714286 | W39: =16/7 -> 2.285714286 | X39: 2.285714286 | Y39: 2.285714286 | Z39: 2.285714286 | AA39: 2.285714286 | AB39: 2.285714286 | AD39: 0 | AE39: =SUM(O39:AC39) -> 16 | AG39: 16 | AH39: 0 | AI39: 0 | AJ39: 2448.96 | AK39: 0 | AL39: =SUM(AH39:AK39) -> 2448.96 | AM39: 2448.96 | AN39: Yes | AO39: 0 | AP39: 0 | AQ39: 0
B40: 22 | D40: Crew Member (other) | E40: Vendor No.01 | F40: Crew#1 | G40: 362569 | H40: 2018-10-28 | I40: 2018-11-03 | J40: =IF(AND(H40>='A - Contractor Summary'!$C$36,I40<='A - Contractor Summary'!$C$42),"Yes","No") -> No | K40: 0 | L40: 102.27 | M40: 0 | N40: =VLOOKUP($D40,'C.1 - Rate Sheets'!B:F,5,FALSE) -> 0 | V40: =96/7 -> 13.71428571 | W40: =96/7 -> 13.71428571 | X40: 13.71428571 | Y40: 13.71428571 | Z40: 13.71428571 | AA40: 13.71428571 | AB40: 13.71428571 | AD40: =SUM(O40:AC40) -> 96 | AE40: 0 | AG40: 96 | AH40: 0 | AI40: 9817.92 | AJ40: 0 | AK40: 0 | AL40: 9817.92 | AM40: 9817.92 | AN40: Yes | AO40: 0 | AP40: 0 | AQ40: 0
B41: 23 | D41: Crew Member (other) | E41: Vendor No.01 | F41: Crew#1 | G41: 362569 | H41: 2018-10-28 | I41: 2018-11-03 | J41: =IF(AND(H41>='A - Contractor Summary'!$C$36,I41<='A - Contractor Summary'!$C$42),"Yes","No") -> No | K41: 0 | L41: 0 | M41: 136.36 | N41: =VLOOKUP($D41,'C.1 - Rate Sheets'!B:F,5,FALSE) -> 0 | V41: =32/7 -> 4.571428571 | W41: =32/7 -> 4.571428571 | X41: 4.571428571 | Y41: 4.571428571 | Z41: 4.571428571 | AA41: 4.571428571 | AB41: 4.571428571 | AD41: 0 | AE41: =SUM(O41:AC41) -> 32 | AG41: 32 | AH41: 0 | AI41: 0 | AJ41: 4363.52 | AK41: 0 | AL41: =SUM(AH41:AK41) -> 4363.52 | AM41: 4363.52 | AN41: Yes | AO41: 0 | AP41: 0 | AQ41: 0
B42: 24 | C42: Danny Herrera | D42: Foreman | E42: Vendor No.01 | F42: Crew#1 | G42: 362569 | H42: 2018-10-28 | I42: 2018-11-03 | J42: =IF(AND(H42>='A - Contractor Summary'!$C$36,I42<='A - Contractor Summary'!$C$42),"Yes","No") -> No | K42: 0 | L42: 114.8 | M42: 0 | N42: =VLOOKUP($D42,'C.1 - Rate Sheets'!B:F,5,FALSE) -> 0 | V42: =48/7 -> 6.857142857 | W42: =48/7 -> 6.857142857 | X42: 6.857142857 | Y42: 6.857142857 | Z42: 6.857142857 | AA42: 6.857142857 | AB42: 6.857142857 | AD42: =SUM(O42:AC42) -> 48 | AE42: 0 | AG42: 48 | AH42: 0 | AI42: 5510.4 | AJ42: 0 | AK42: 0 | AL42: 5510.4 | AM42: 5510.4 | AN42: Yes | AO42: 0 | AP42: 0 | AQ42: 0
B43: 25 | D43: Foreman | E43: Vendor No.01 | F43: Crew#1 | G43: 362569 | H43: 2018-10-28 | I43: 2018-11-03 | J43: =IF(AND(H43>='A - Contractor Summary'!$C$36,I43<='A - Contractor Summary'!$C$42),"Yes","No") -> No | K43: 0 | L43: 0 | M43: 153.06 | N43: =VLOOKUP($D43,'C.1 - Rate Sheets'!B:F,5,FALSE) -> 0 | V43: =16/7 -> 2.285714286 | W43: =16/7 -> 2.285714286 | X43: 2.285714286 | Y43: 2.285714286 | Z43: 2.285714286 | AA43: 2.285714286 | AB43: 2.285714286 | AD43: 0 | AE43: =SUM(O43:AC43) -> 16 | AG43: 16 | AH43: 0 | AI43: 0 | AJ43: 2448.96 | AK43: 0 | AL43: 2448.96 | AM43: 2448.96 | AN43: Yes | AO43: 0 | AP43: 0 | AQ43: 0
B44: 26 | D44: Crew Member | E44: Vendor No.01 | F44: Crew#1 | G44: 362569 | H44: 2018-10-28 | I44: 2018-11-03 | J44: =IF(AND(H44>='A - Contractor Summary'!$C$36,I44<='A - Contractor Summary'!$C$42),"Yes","No") -> No | K44: 0 | L44: 83.28 | M44: 0 | N44: =VLOOKUP($D44,'C.1 - Rate Sheets'!B:F,5,FALSE) -> 0 | V44: =96/7 -> 13.71428571 | W44: =96/7 -> 13.71428571 | X44: 13.71428571 | Y44: 13.71428571 | Z44: 13.71428571 | AA44: 13.71428571 | AB44: 13.71428571 | AD44: =SUM(O44:AC44) -> 96 | AE44: 0 | AG44: 96 | AH44: 0 | AI44: 7994.88 | AJ44: 0 | AK44: 0 | AL44: 7994.88 | AM44: 7994.88 | AN44: Yes | AO44: 0 | AP44: 0 | AQ44: 0
B45: 27 | D45: Foreman | E45: Vendor No.01 | F45: Crew#1 | G45: 362569 | H45: 2018-10-28 | I45: 2018-11-03 | J45: =IF(AND(H45>='A - Contractor Summary'!$C$36,I45<='A - Contractor Summary'!$C$42),"Yes","No") -> No | K45: 0 | L45: 0 | M45: 153.06 | N45: =VLOOKUP($D45,'C.1 - Rate Sheets'!B:F,5,FALSE) -> 0 | V45: =32/7 -> 4.571428571 | W45: =32/7 -> 4.571428571 | X45: 4.571428571 | Y45: 4.571428571 | Z45: 4.571428571 | AA45: 4.571428571 | AB45: 4.571428571 | AD45: 0 | AE45: =SUM(O45:AC45) -> 32 | AG45: 32 | AH45: 0 | AI45: 0 | AJ45: 4897.92 | AK45: 0 | AL45: 4897.92 | AM45: 4897.92 | AN45: Yes | AO45: 0 | AP45: 0 | AQ45: 0
B46: 28 | C46: Mario Zarco | D46: Foreman | E46: Vendor No.01 | F46: Crew#1 | G46: 362569 | H46: 2018-10-28 | I46: 2018-11-03 | J46: =IF(AND(H46>='A - Contractor Summary'!$C$36,I46<='A - Contractor Summary'!$C$42),"Yes","No") -> No | K46: 0 | L46: 114.8 | M46: 0 | N46: =VLOOKUP($D46,'C.1 - Rate Sheets'!B:F,5,FALSE) -> 0 | V46: =48/7 -> 6.857142857 | W46: =48/7 -> 6.857142857 | X46: 6.857142857 | Y46: 6.857142857 | Z46: 6.857142857 | AA46: 6.857142857 | AB46: 6.857142857 | AD46: =SUM(O46:AC46) -> 48 | AE46: 0 | AG46: 48 | AH46: 0 | AI46: 5510.4 | AJ46: 0 | AK46: 0 | AL46: 5510.4 | AM46: 5510.4 | AN46: Yes | AO46: 0 | AP46: 0 | AQ46: 0
B47: 29 | D47: Foreman | E47: Vendor No.01 | F47: Crew#1 | G47: 362569 | H47: 2018-10-28 | I47: 2018-11-03 | J47: =IF(AND(H47>='A - Contractor Summary'!$C$36,I47<='A - Contractor Summary'!$C$42),"Yes","No") -> No | K47: 0 | L47: 0 | M47: 153.06 | N47: =VLOOKUP($D47,'C.1 - Rate Sheets'!B:F,5,FALSE) -> 0 | V47: =16/7 -> 2.285714286 | W47: =16/7 -> 2.285714286 | X47: 2.285714286 | Y47: 2.285714286 | Z47: 2.285714286 | AA47: 2.285714286 | AB47: 2.285714286 | AD47: 0 | AE47: =SUM(O47:AC47) -> 16 | AG47: 16 | AH47: 0 | AI47: 0 | AJ47: 2448.96 | AK47: 0 | AL47: 2448.96 | AM47: 2448.96 | AN47: Yes | AO47: 0 | AP47: 0 | AQ47: 0
B48: 30 | D48: Crew Member (other) | E48: Vendor No.01 | F48: Crew#1 | G48: 362569 | H48: 2018-10-28 | I48: 2018-11-03 | J48: =IF(AND(H48>='A - Contractor Summary'!$C$36,I48<='A - Contractor Summary'!$C$42),"Yes","No") -> No | K48: 0 | L48: 102.27 | M48: 0 | N48: =VLOOKUP($D48,'C.1 - Rate Sheets'!B:F,5,FALSE) -> 0 | V48: =96/7 -> 13.71428571 | W48: =96/7 -> 13.71428571 | X48: 13.71428571 | Y48: 13.71428571 | Z48: 13.71428571 | AA48: 13.71428571 | AB48: 13.71428571 | AD48: =SUM(O48:AC48) -> 96 | AE48: 0 | AG48: 96 | AH48: 0 | AI48: 9817.92 | AJ48: 0 | AK48: 0 | AL48: 9817.92 | AM48: 9817.92 | AN48: Yes | AO48: 0 | AP48: 0 | AQ48: 0
B49: 31 | D49: Crew Member (other) | E49: Vendor No.01 | F49: Crew#1 | G49: 362569 | H49: 2018-10-28 | I49: 2018-11-03 | J49: =IF(AND(H49>='A - Contractor Summary'!$C$36,I49<='A - Contractor Summary'!$C$42),"Yes","No") -> No | K49: 0 | L49: 0 | M49: 136.36 | N49: =VLOOKUP($D49,'C.1 - Rate Sheets'!B:F,5,FALSE) -> 0 | V49: =32/7 -> 4.571428571 | W49: =32/7 -> 4.571428571 | X49: 4.571428571 | Y49: 4.571428571 | Z49: 4.571428571 | AA49: 4.571428571 | AB49: 4.571428571 | AD49: 0 | AE49: =SUM(O49:AC49) -> 32 | AG49: 32 | AH49: 0 | AI49: 0 | AJ49: 4363.52 | AK49: 0 | AL49: 4363.52 | AM49: 4363.52 | AN49: Yes | AO49: 0 | AP49: 0 | AQ49: 0
B50: 32
B51: 33 | C51: Antonio Rodriguez | D51: General Foreman | E51: Vendor No.01 | F51: Crew#2 | G51: 362735 | H51: 2018-10-28 | I51: 2018-11-03 | J51: =IF(AND(H51>='A - Contractor Summary'!$C$36,I51<='A - Contractor Summary'!$C$42),"Yes","No") -> No | K51: 0 | L51: 129.41 | M51: 0 | N51: =VLOOKUP($D51,'C.1 - Rate Sheets'!B:F,5,FALSE) -> 0 | V51: =54/7 -> 7.714285714 | W51: =54/7 -> 7.714285714 | X51: 7.714285714 | Y51: 7.714285714 | Z51: 7.714285714 | AA51: 7.714285714 | AB51: 7.714285714 | AD51: =SUM(O51:AC51) -> 54 | AE51: 0 | AG51: =SUM(AC51:AF51) -> 54 | AH51: =AC51*K51 -> 0 | AI51: =AD51*L51 -> 6988.14 | AJ51: =AE51*M51 -> 0 | AK51: =AF51*N51 -> 0 | AL51: 6988.14 | AM51: 6988.14 | AN51: Yes | AO51: 0 | AP51: 0 | AQ51: 0
B52: 34 | C52: Antonio Rodriguez | D52: General Foreman | E52: Vendor No.01 | F52: Crew#2 | G52: 362735 | H52: 2018-10-28 | I52: 2018-11-03 | J52: =IF(AND(H52>='A - Contractor Summary'!$C$36,I52<='A - Contractor Summary'!$C$42),"Yes","No") -> No | K52: 0 | L52: 0 | M52: 172.54 | N52: =VLOOKUP($D52,'C.1 - Rate Sheets'!B:F,5,FALSE) -> 0 | V52: =16/7 -> 2.285714286 | W52: =16/7 -> 2.285714286 | X52: 2.285714286 | Y52: 2.285714286 | Z52: 2.285714286 | AA52: 2.285714286 | AB52: 2.285714286 | AD52: 0 | AE52: =SUM(O52:AC52) -> 16 | AG52: 16 | AH52: 0 | AI52: 0 | AJ52: 2760.64 | AK52: 0 | AL52: 2760.64 | AM52: 2760.64 | AN52: Yes | AO52: 0 | AP52: 0 | AQ52: 0
B53: 35 | D53: Crew Member (other) | E53: Vendor No.01 | F53: Crew#2 | G53: 362735 | H53: 2018-10-28 | I53: 2018-11-03 | J53: =IF(AND(H53>='A - Contractor Summary'!$C$36,I53<='A - Contractor Summary'!$C$42),"Yes","No") -> No | K53: 0 | L53: 102.27 | M53: 0 | N53: =VLOOKUP($D53,'C.1 - Rate Sheets'!B:F,5,FALSE) -> 0 | V53: =44/7 -> 6.285714286 | W53: =44/7 -> 6.285714286 | X53: 6.285714286 | Y53: 6.285714286 | Z53: 6.285714286 | AA53: 6.285714286 | AB53: 6.285714286 | AD53: =SUM(O53:AC53) -> 44 | AE53: 0 | AG53: 44 | AH53: 0 | AI53: 4499.88 | AJ53: 0 | AK53: 0 | AL53: 4499.88 | AM53: 4499.88 | AN53: Yes | AO53: 0 | AP53: 0 | AQ53: 0
B54: 36 | D54: Crew Member (other) | E54: Vendor No.01 | F54: Crew#2 | G54: 362735 | H54: 2018-10-28 | I54: 2018-11-03 | J54: =IF(AND(H54>='A - Contractor Summary'!$C$36,I54<='A - Contractor Summary'!$C$42),"Yes","No") -> No | K54: 0 | L54: 0 | M54: 136.36 | N54: =VLOOKUP($D54,'C.1 - Rate Sheets'!B:F,5,FALSE) -> 0 | V54: =32/7 -> 4.571428571 | W54: =32/7 -> 4.571428571 | X54: 4.571428571 | Y54: 4.571428571 | Z54: 4.571428571 | AA54: 4.571428571 | AB54: 4.571428571 | AD54: 0 | AE54: =SUM(O54:AC54) -> 32 | AG54: 32 | AH54: 0 | AI54: 0 | AJ54: 4363.52 | AK54: 0 | AL54: 4363.52 | AM54: =AL54-AO54 -> 4363.52 | AN54: Yes | AO54: 0 | AP54: 0 | AQ54: 0
B55: 37 | C55: Ramon Aguilera | D55: Foreman | E55: Vendor No.01 | F55: Crew#2 | G55: 362735 | H55: 2018-10-28 | I55: 2018-11-03 | J55: =IF(AND(H55>='A - Contractor Summary'!$C$36,I55<='A - Contractor Summary'!$C$42),"Yes","No") -> No | K55: 0 | L55: 114.8 | M55: 0 | N55: =VLOOKUP($D55,'C.1 - Rate Sheets'!B:F,5,FALSE) -> 0 | V55: =54/7 -> 7.714285714 | W55: =54/7 -> 7.714285714 | X55: 7.714285714 | Y55: 7.714285714 | Z55: 7.714285714 | AA55: 7.714285714 | AB55: 7.714285714 | AD55: =SUM(O55:AC55) -> 54 | AE55: 0 | AG55: 54 | AH55: 0 | AI55: 6199.2 | AJ55: 0 | AK55: 0 | AL55: 6199.2 | AM55: 6199.2 | AN55: Yes | AO55: 0 | AP55: 0 | AQ55: 0
B56: 38 | D56: Foreman | E56: Vendor No.01 | F56: Crew#2 | G56: 362735 | H56: 2018-10-28 | I56: 2018-11-03 | J56: =IF(AND(H56>='A - Contractor Summary'!$C$36,I56<='A - Contractor Summary'!$C$42),"Yes","No") -> No | K56: 0 | L56: 0 | M56: 153.06 | N56: =VLOOKUP($D56,'C.1 - Rate Sheets'!B:F,5,FALSE) -> 0 | V56: =16/7 -> 2.285714286 | W56: =16/7 -> 2.285714286 | X56: 2.285714286 | Y56: 2.285714286 | Z56: 2.285714286 | AA56: 2.285714286 | AB56: 2.285714286 | AD56: 0 | AE56: =SUM(O56:AC56) -> 16 | AG56: 16 | AH56: 0 | AI56: 0 | AJ56: 2448.96 | AK56: 0 | AL56: 2448.96 | AM56: 2448.96 | AN56: Yes | AO56: 0 | AP56: 0 | AQ56: 0
B57: 39 | D57: Crew Member (other) | E57: Vendor No.01 | F57: Crew#2 | G57: 362735 | H57: 2018-10-28 | I57: 2018-11-03 | J57: =IF(AND(H57>='A - Contractor Summary'!$C$36,I57<='A - Contractor Summary'!$C$42),"Yes","No") -> No | K57: 0 | L57: 102.27 | M57: 0 | N57: =VLOOKUP($D57,'C.1 - Rate Sheets'!B:F,5,FALSE) -> 0 | V57: =108/7 -> 15.42857143 | W57: =108/7 -> 15.42857143 | X57: 15.42857143 | Y57: 15.42857143 | Z57: 15.42857143 | AA57: 15.42857143 | AB57: 15.42857143 | AD57: =SUM(O57:AC57) -> 108 | AE57: 0 | AG57: 108 | AH57: 0 | AI57: 11045.16 | AJ57: 0 | AK57: 0 | AL57: 11045.16 | AM57: 11045.16 | AN57: Yes | AO57: 0 | AP57: 0 | AQ57: 0
B58: 40 | D58: Crew Member (other) | E58: Vendor No.01 | F58: Crew#2 | G58: 362735 | H58: 2018-10-28 | I58: 2018-11-03 | J58: =IF(AND(H58>='A - Contractor Summary'!$C$36,I58<='A - Contractor Summary'!$C$42),"Yes","No") -> No | K58: 0 | L58: 0 | M58: 136.36 | N58: =VLOOKUP($D58,'C.1 - Rate Sheets'!B:F,5,FALSE) -> 0 | V58: =32/7 -> 4.571428571 | W58: =32/7 -> 4.571428571 | X58: 4.571428571 | Y58: 4.571428571 | Z58: 4.571428571 | AA58: 4.571428571 | AB58: 4.571428571 | AD58: 0 | AE58: =SUM(O58:AC58) -> 32 | AG58: 32 | AH58: 0 | AI58: 0 | AJ58: 4363.52 | AK58: 0 | AL58: 4363.52 | AM58: 4363.52 | AN58: Yes | AO58: 0 | AP58: 0 | AQ58: 0
B59: 41 | C59: Jose Arredondo | D59: Foreman | E59: Vendor No.01 | F59: Crew#2 | G59: 362735 | H59: 2018-10-28 | I59: 2018-11-03 | J59: =IF(AND(H59>='A - Contractor Summary'!$C$36,I59<='A - Contractor Summary'!$C$42),"Yes","No") -> No | K59: 0 | L59: 114.8 | M59: 0 | N59: =VLOOKUP($D59,'C.1 - Rate Sheets'!B:F,5,FALSE) -> 0 | V59: =32/7 -> 4.571428571 | W59: 4.571428571 | X59: 4.571428571 | Y59: 4.571428571 | Z59: 4.571428571 | AA59: 4.571428571 | AB59: 4.571428571 | AD59: =SUM(O59:AC59) -> 32 | AE59: 0 | AG59: 32 | AH59: 0 | AI59: 3673.6 | AJ59: 0 | AK59: 0 | AL59: 3673.6 | AM59: 3673.6 | AN59: Yes | AO59: 0 | AP59: 0 | AQ59: 0
B60: 42 | D60: Crew Member (other) | E60: Vendor No.01 | F60: Crew#2 | G60: 362735 | H60: 2018-10-28 | I60: 2018-11-03 | J60: =IF(AND(H60>='A - Contractor Summary'!$C$36,I60<='A - Contractor Summary'!$C$42),"Yes","No") -> No | K60: 0 | L60: 0 | M60: 136.36 | N60: =VLOOKUP($D60,'C.1 - Rate Sheets'!B:F,5,FALSE) -> 0 | V60: =16/7 -> 2.285714286 | W60: =16/7 -> 2.285714286 | X60: 2.285714286 | Y60: 2.285714286 | Z60: 2.285714286 | AA60: 2.285714286 | AB60: 2.285714286 | AD60: 0 | AE60: =SUM(O60:AC60) -> 16 | AG60: 16 | AH60: 0 | AI60: 0 | AJ60: 2181.76 | AK60: 0 | AL60: 2181.76 | AM60: 2181.76 | AN60: Yes | AO60: 0 | AP60: 0 | AQ60: 0
B61: 43 | D61: Crew Member (other) | E61: Vendor No.01 | F61: Crew#2 | G61: 362735 | H61: 2018-10-28 | I61: 2018-11-03 | J61: =IF(AND(H61>='A - Contractor Summary'!$C$36,I61<='A - Contractor Summary'!$C$42),"Yes","No") -> No | K61: 0 | L61: 102.27 | M61: 0 | N61: =VLOOKUP($D61,'C.1 - Rate Sheets'!B:F,5,FALSE) -> 0 | V61: =108/7 -> 15.42857143 | W61: =108/7 -> 15.42857143 | X61: 15.42857143 | Y61: 15.42857143 | Z61: 15.42857143 | AA61: 15.42857143 | AB61: 15.42857143 | AD61: =SUM(O61:AC61) -> 108 | AE61: 0 | AG61: 108 | AH61: 0 | AI61: 11045.16 | AJ61: 0 | AK61: 0 | AL61: 11045.16 | AM61: 11045.16 | AN61: Yes | AO61: 0 | AP61: 0 | AQ61: 0
B62: 44 | D62: Crew Member (other) | E62: Vendor No.01 | F62: Crew#2 | G62: 362735 | H62: 2018-10-28 | I62: 2018-11-03 | J62: =IF(AND(H62>='A - Contractor Summary'!$C$36,I62<='A - Contractor Summary'!$C$42),"Yes","No") -> No | K62: 0 | L62: 0 | M62: 136.36 | N62: =VLOOKUP($D62,'C.1 - Rate Sheets'!B:F,5,FALSE) -> 0 | V62: =32/7 -> 4.571428571 | W62: =32/7 -> 4.571428571 | X62: 4.571428571 | Y62: 4.571428571 | Z62: 4.571428571 | AA62: 4.571428571 | AB62: 4.571428571 | AD62: 0 | AE62: =SUM(O62:AC62) -> 32 | AG62: 32 | AH62: 0 | AI62: 0 | AJ62: 4363.52 | AK62: 0 | AL62: 4363.52 | AM62: 4363.52 | AN62: Yes | AO62: 0 | AP62: 0 | AQ62: 0
B63: 45 | C63: Saul Mendez | D63: Foreman | E63: Vendor No.01 | F63: Crew#2 | G63: 362735 | H63: 2018-10-28 | I63: 2018-11-03 | J63: =IF(AND(H63>='A - Contractor Summary'!$C$36,I63<='A - Contractor Summary'!$C$42),"Yes","No") -> No | K63: 0 | L63: 114.8 | M63: 0 | N63: =VLOOKUP($D63,'C.1 - Rate Sheets'!B:F,5,FALSE) -> 0 | V63: =54/7 -> 7.714285714 | W63: =54/7 -> 7.714285714 | X63: 7.714285714 | Y63: 7.714285714 | Z63: 7.714285714 | AA63: 7.714285714 | AB63: 7.714285714 | AD63: =SUM(O63:AC63) -> 54 | AE63: 0 | AG63: 54 | AH63: 0 | AI63: 6199.2 | AJ63: 0 | AK63: 0 | AL63: 6199.2 | AM63: 6199.2 | AN63: Yes | AO63: 0 | AP63: 0 | AQ63: 0
B64: 46 | D64: Foreman | E64: Vendor No.01 | F64: Crew#2 | G64: 362735 | H64: 2018-10-28 | I64: 2018-11-03 | J64: =IF(AND(H64>='A - Contractor Summary'!$C$36,I64<='A - Contractor Summary'!$C$42),"Yes","No") -> No | K64: 0 | L64: 0 | M64: 153.06 | N64: =VLOOKUP($D64,'C.1 - Rate Sheets'!B:F,5,FALSE) -> 0 | V64: =16/7 -> 2.285714286 | W64: =16/7 -> 2.285714286 | X64: 2.285714286 | Y64: 2.285714286 | Z64: 2.285714286 | AA64: 2.285714286 | AB64: 2.285714286 | AD64: 0 | AE64: =SUM(O64:AC64) -> 16 | AG64: 16 | AH64: 0 | AI64: 0 | AJ64: 2448.96 | AK64: 0 | AL64: 2448.96 | AM64: 2448.96 | AN64: Yes | AO64: 0 | AP64: 0 | AQ64: 0
B65: 47 | D65: Crew Member (other) | E65: Vendor No.01 | F65: Crew#2 | G65: 362735 | H65: 2018-10-28 | I65: 2018-11-03 | J65: =IF(AND(H65>='A - Contractor Summary'!$C$36,I65<='A - Contractor Summary'!$C$42),"Yes","No") -> No | K65: 0 | L65: 102.27 | M65: 0 | N65: =VLOOKUP($D65,'C.1 - Rate Sheets'!B:F,5,FALSE) -> 0 | V65: =108/7 -> 15.42857143 | W65: =108/7 -> 15.42857143 | X65: 15.42857143 | Y65: 15.42857143 | Z65: 15.42857143 | AA65: 15.42857143 | AB65: 15.42857143 | AD65: =SUM(O65:AC65) -> 108 | AE65: 0 | AG65: 108 | AH65: 0 | AI65: 11045.16 | AJ65: 0 | AK65: 0 | AL65: 11045.16 | AM65: 11045.16 | AN65: Yes | AO65: 0 | AP65: 0 | AQ65: 0
B66: 48 | D66: Crew Member (other) | E66: Vendor No.01 | F66: Crew#2 | G66: 362735 | H66: 2018-10-28 | I66: 2018-11-03 | J66: =IF(AND(H66>='A - Contractor Summary'!$C$36,I66<='A - Contractor Summary'!$C$42),"Yes","No") -> No | K66: 0 | L66: 0 | M66: 136.36 | N66: =VLOOKUP($D66,'C.1 - Rate Sheets'!B:F,5,FALSE) -> 0 | V66: =32/7 -> 4.571428571 | W66: =32/7 -> 4.571428571 | X66: 4.571428571 | Y66: 4.571428571 | Z66: 4.571428571 | AA66: 4.571428571 | AB66: 4.571428571 | AD66: 0 | AE66: =SUM(O66:AC66) -> 32 | AG66: 32 | AH66: 0 | AI66: 0 | AJ66: 4363.52 | AK66: 0 | AL66: 4363.52 | AM66: 4363.52 | AN66: Yes | AP66: 0 | AQ66: 0
O67: =SUM(O19:O66) -> 134.5714286 | P67: 134.5714286 | Q67: 134.5714286 | R67: 134.5714286 | S67: 134.5714286 | T67: 134.5714286 | U67: 134.5714286 | V67: 199.1428571 | W67: 199.1428571 | X67: 199.1428571 | Y67: 199.1428571 | Z67: =SUM(Z19:Z66) -> 199.1428571 | AA67: 199.1428571 | AB67: 199.1428571 | AC67: =SUM(AC19:AC66) -> 0 | AD67: =SUM(AD19:AD66) -> 1984 | AE67: =SUM(AE19:AE66) -> 352 | AF67: =SUM(AF19:AF66) -> 0 | AG67: =SUM(AC67:AF67) -> 2336 | AH67: =SUM(AH19:AH66) -> 0 | AI67: =SUM(AI19:AI66) -> 211744.98 | AJ67: =SUM(AJ19:AJ66) -> 51026.88 | AK67: =SUM(AK19:AK66) -> 0 | AL67: =IFERROR(SUM(AL19:AL66),0) -> 262771.86 | AM67: =AL67-AO67 -> 262771.86 | AO67: =SUM(AO19:AO66) -> 0 | AP67: =SUM(AP19:AP66) -> 0 | AQ67: =SUM(AQ19:AQ66) -> 0 | AR67: =AO67-AP67-AQ67 -> 0 | AS67: check (b)
O68: Total # of Crew | S68: =COUNTIF(S19:S66,">0") -> 15 | V68: Total # of Crew | Z68: =COUNTIF(Z19:Z66,">0") -> 30 | AA68: Total # of Crew | AC68: # of time charges
B76: Tickmark Explanation:
B78: 1
B79: 2
B80: 3

Sheet C.3 - Asset by Company
A1: Asset Tag | B1: Position | C1: Name

Sheet C.4 - Timesheets - Equipment
B2: Equipment Charges - Time Card
B4: Test Plan: | C4: Obtain the time cards. (A) Populate the equipment names and types (if provided). Find additional information regarding individual equipment charge from related invoice. (B) Enter hours worked from time card(s). (C) Confirm that the dates per the time cards fall between dates provided per 'A - Contractor Summary' tab. (D) Identify any equipment charges to be reviewed. (E) For charges which required further review, document review (include why it was determined to be allowed/disallowed via a tickmark).
B10: Rx | C10: Recalculated. | K10: =685.52/2.09 -> 328
B11: a | C11: Provided from tab 'C.1 - Rate Sheets'.
B12: b | C12: Check figure should equal $0. Cell will appear yellow if discrepancies are noted.
C14: A | H14: Rx | J14: C | K14: a | L14: B | Z14: Rx | AC14: D | AD14: E
B15: # | C15: Equipment Name | D15: Equipment ID | E15: Company | F15: Crew# | G15: Invoice | H15: Start Date | I15: End Date | J15: Dates Worked Reasonable? | K15: Rates | L15: 2018-10-21 | M15: 2018-10-22 | N15: 2018-10-23 | O15: 2018-10-24 | P15: 2018-10-25 | Q15: 2018-10-26 | R15: 2018-10-27 | S15: 2018-10-28 | T15: 2018-10-29 | U15: 2018-10-30 | V15: 2018-10-31 | W15: 2018-11-01 | X15: 2018-11-02 | Y15: 2018-11-03 | Z15: Total Hours | AA15: Total Equipment $ | AB15: Allowable Charges | AC15: To Be Reviewed | AD15: Reviewed - Allowable Charge | AE15: Reviewed - Unallowable Charge | AF15: Tickmarks
L16: Sunday | M16: Monday | N16: Tuesday | O16: Wednesday | P16: Thursday | Q16: Friday | R16: Saturday | S16: Sunday | T16: Monday | U16: Tuesday | V16: Wednesday | W16: Thursday | X16: Friday | Y16: Saturday
L17: Hours | M17: Hours | N17: Hours | O17: Hours | P17: Hours | Q17: Hours | R17: Hours | S17: Hours | T17: Hours | U17: Hours | V17: Hours | W17: Hours | X17: Hours | Y17: Hours
B18: 1 | C18: Pick-Up | E18: Vendor No. 01 | F18: Crew#1 | G18: 362473 | H18: 2018-10-21 | I18: 2018-10-27 | J18: =IF(AND(H18>='A - Contractor Summary'!$C$36,I18<='A - Contractor Summary'!$C$42),"Yes","No") -> No | K18: =VLOOKUP($C18,'C.1 - Rate Sheets'!H:I,2,FALSE) -> 28.75 | L18: =46/7 -> 6.571428571 | M18: =46/7 -> 6.571428571 | N18: 6.571428571 | O18: 6.571428571 | P18: 6.571428571 | Q18: 6.571428571 | R18: 6.571428571 | Z18: =SUM(L18:Y18) -> 46 | AA18: =Z18*K18 -> 1322.5 | AB18: =AA18-AC18 -> 1322.5 | AC18: 0 | AD18: 0 | AE18: 0
B19: 2 | C19: Mobilization on Equipment (1 ton or less) | E19: Vendor No.01 | F19: Crew#1 | G19: 362473 | H19: 2018-10-21 | I19: 2018-10-27 | J19: =IF(AND(H19>='A - Contractor Summary'!$C$36,I19<='A - Contractor Summary'!$C$42),"Yes","No") -> No | K19: =VLOOKUP($C19,'C.1 - Rate Sheets'!H:I,2,FALSE) -> 2.09 | L19: =478/7 -> 68.28571429 | M19: =478/7 -> 68.28571429 | N19: 68.28571429 | O19: 68.28571429 | P19: 68.28571429 | Q19: 68.28571429 | R19: 68.28571429 | Z19: 478 | AA19: 999.02 | AB19: 999.02 | AC19: 0 | AD19: 0 | AE19: 0
B20: 3 | C20: Mobilization on Equipment (1 ton or less) | E20: Vendor No.01 | F20: Crew#1 | G20: 362473 | H20: 2018-10-21 | I20: 2018-10-27 | J20: =IF(AND(H20>='A - Contractor Summary'!$C$36,I20<='A - Contractor Summary'!$C$42),"Yes","No") -> No | K20: =VLOOKUP($C20,'C.1 - Rate Sheets'!H:I,2,FALSE) -> 2.09 | L20: =180/7 -> 25.71428571 | M20: =180/7 -> 25.71428571 | N20: 25.71428571 | O20: 25.71428571 | P20: 25.71428571 | Q20: 25.71428571 | R20: 25.71428571 | Z20: 180 | AA20: 376.2 | AB20: 376.2 | AC20: 0 | AD20: 0 | AE20: 0
B21: 4 | C21: 55' Lift | E21: Vendor No.01 | F21: Crew#1 | G21: 362473 | H21: 2018-10-21 | I21: 2018-10-27 | J21: =IF(AND(H21>='A - Contractor Summary'!$C$36,I21<='A - Contractor Summary'!$C$42),"Yes","No") -> No | K21: =VLOOKUP($C21,'C.1 - Rate Sheets'!H:I,2,FALSE) -> 44.28 | L21: =46/7 -> 6.571428571 | M21: =46/7 -> 6.571428571 | N21: 6.571428571 | O21: 6.571428571 | P21: 6.571428571 | Q21: 6.571428571 | R21: 6.571428571 | Z21: 46 | AA21: 2036.88 | AB21: 2036.88 | AC21: 0 | AD21: 0 | AE21: 0
B22: 5 | C22: Mobilization on Equipment (More than 1 ton) | E22: Vendor No.01 | F22: Crew#1 | G22: 362473 | H22: 2018-10-21 | I22: 2018-10-27 | J22: =IF(AND(H22>='A - Contractor Summary'!$C$36,I22<='A - Contractor Summary'!$C$42),"Yes","No") -> No | K22: =VLOOKUP($C22,'C.1 - Rate Sheets'!H:I,2,FALSE) -> 2.78 | L22: =658/7 -> 94 | M22: =658/7 -> 94 | N22: 94 | O22: 94 | P22: 94 | Q22: 94 | R22: 94 | Z22: 658 | AA22: 1829.24 | AB22: 1829.24 | AC22: 0 | AD22: 0 | AE22: 0
B23: 6 | C23: 60/70' Bucket | E23: Vendor No.01 | F23: Crew#1 | G23: 362473 | H23: 2018-10-21 | I23: 2018-10-27 | J23: =IF(AND(H23>='A - Contractor Summary'!$C$36,I23<='A - Contractor Summary'!$C$42),"Yes","No") -> No | K23: =VLOOKUP($C23,'C.1 - Rate Sheets'!H:I,2,FALSE) -> 63.25 | L23: =46/7 -> 6.571428571 | M23: =46/7 -> 6.571428571 | N23: 6.571428571 | O23: 6.571428571 | P23: 6.571428571 | Q23: 6.571428571 | R23: 6.571428571 | Z23: 46 | AA23: 2909.5 | AB23: 2909.5 | AC23: 0 | AD23: 0 | AE23: 0
B24: 7 | C24: Mobilization on Equipment (More than 1 ton) | E24: Vendor No.01 | F24: Crew#1 | G24: 362473 | H24: 2018-10-21 | I24: 2018-10-27 | J24: =IF(AND(H24>='A - Contractor Summary'!$C$36,I24<='A - Contractor Summary'!$C$42),"Yes","No") -> No | K24: =VLOOKUP($C24,'C.1 - Rate Sheets'!H:I,2,FALSE) -> 2.78 | L24: =658/7 -> 94 | M24: =658/7 -> 94 | N24: 94 | O24: 94 | P24: 94 | Q24: 94 | R24: 94 | Z24: 658 | AA24: 1829.24 | AB24: 1829.24 | AC24: 0 | AD24: 0 | AE24: 0
B25: 8 | C25: 60/70' Bucket | E25: Vendor No.01 | F25: Crew#1 | G25: 362473 | H25: 2018-10-21 | I25: 2018-10-27 | J25: =IF(AND(H25>='A - Contractor Summary'!$C$36,I25<='A - Contractor Summary'!$C$42),"Yes","No") -> No | K25: =VLOOKUP($C25,'C.1 - Rate Sheets'!H:I,2,FALSE) -> 63.25 | L25: =46/7 -> 6.571428571 | M25: =46/7 -> 6.571428571 | N25: 6.571428571 | O25: 6.571428571 | P25: 6.571428571 | Q25: 6.571428571 | R25: 6.571428571 | Z25: 46 | AA25: 2909.5 | AB25: 2909.5 | AC25: 0 | AD25: 0 | AE25: 0
B26: 9 | C26: Mobilization on Equipment (More than 1 ton) | E26: Vendor No.01 | F26: Crew#1 | G26: 362473 | H26: 2018-10-21 | I26: 2018-10-27 | J26: =IF(AND(H26>='A - Contractor Summary'!$C$36,I26<='A - Contractor Summary'!$C$42),"Yes","No") -> No | K26: =VLOOKUP($C26,'C.1 - Rate Sheets'!H:I,2,FALSE) -> 2.78 | L26: =658/7 -> 94 | M26: =658/7 -> 94 | N26: 94 | O26: 94 | P26: 94 | Q26: 94 | R26: 94 | Z26: 658 | AA26: 1829.24 | AB26: 1829.24 | AC26: 0 | AD26: 0 | AE26: 0
B28: 10 | C28: Pick-Up | E28: Vendor No.01 | F28: Crew#2 | G28: 362494 | H28: 2018-10-21 | I28: 2018-10-27 | J28: =IF(AND(H28>='A - Contractor Summary'!$C$36,I28<='A - Contractor Summary'!$C$42),"Yes","No") -> No | K28: =VLOOKUP($C28,'C.1 - Rate Sheets'!H:I,2,FALSE) -> 28.75 | L28: =48/7 -> 6.857142857 | M28: =48/7 -> 6.857142857 | N28: 6.857142857 | O28: 6.857142857 | P28: 6.857142857 | Q28: 6.857142857 | R28: 6.857142857 | Z28: =SUM(L28:Y28) -> 48 | AA28: =Z28*K28 -> 1380 | AB28: 1380 | AC28: 0 | AD28: 0 | AE28: 0
B29: 11 | C29: Mobilization on Equipment (1 ton or less) | E29: Vendor No.01 | F29: Crew#2 | G29: 362494 | H29: 2018-10-21 | I29: 2018-10-27 | J29: =IF(AND(H29>='A - Contractor Summary'!$C$36,I29<='A - Contractor Summary'!$C$42),"Yes","No") -> No | K29: =VLOOKUP($C29,'C.1 - Rate Sheets'!H:I,2,FALSE) -> 2.09 | L29: =328/7 -> 46.85714286 | M29: =328/7 -> 46.85714286 | N29: 46.85714286 | O29: 46.85714286 | P29: 46.85714286 | Q29: 46.85714286 | R29: 46.85714286 | Z29: 328 | AA29: 685.52 | AB29: 685.52 | AC29: 0 | AD29: 0 | AE29: 0
B30: 12 | C30: Mobilization on Equipment (1 ton or less) | E30: Vendor No.01 | F30: Crew#2 | G30: 362494 | H30: 2018-10-21 | I30: 2018-10-27 | J30: =IF(AND(H30>='A - Contractor Summary'!$C$36,I30<='A - Contractor Summary'!$C$42),"Yes","No") -> No | K30: =VLOOKUP($C30,'C.1 - Rate Sheets'!H:I,2,FALSE) -> 2.09 | L30: =337/7 -> 48.14285714 | M30: =337/7 -> 48.14285714 | N30: 48.14285714 | O30: 48.14285714 | P30: 48.14285714 | Q30: 48.14285714 | R30: 48.14285714 | Z30: 337 | AA30: 704.33 | AB30: 704.33 | AC30: 0 | AD30: 0 | AE30: 0
B31: 13 | C31: Pick-Up | E31: Vendor No.01 | F31: Crew#2 | G31: 362494 | H31: 2018-10-21 | I31: 2018-10-27 | J31: =IF(AND(H31>='A - Contractor Summary'!$C$36,I31<='A - Contractor Summary'!$C$42),"Yes","No") -> No | K31: =VLOOKUP($C31,'C.1 - Rate Sheets'!H:I,2,FALSE) -> 28.75 | L31: =48/7 -> 6.857142857 | M31: =48/7 -> 6.857142857 | N31: 6.857142857 | O31: 6.857142857 | P31: 6.857142857 | Q31: 6.857142857 | R31: 6.857142857 | Z31: 48 | AA31: 1380 | AB31: 1380 | AC31: 0 | AD31: 0 | AE31: 0
B32: 14 | C32: Mobilization on Equipment (1 ton or less) | E32: Vendor No.01 | F32: Crew#2 | G32: 362494 | H32: 2018-10-21 | I32: 2018-10-27 | J32: =IF(AND(H32>='A - Contractor Summary'!$C$36,I32<='A - Contractor Summary'!$C$42),"Yes","No") -> No | K32: =VLOOKUP($C32,'C.1 - Rate Sheets'!H:I,2,FALSE) -> 2.09 | L32: =328/7 -> 46.85714286 | M32: =328/7 -> 46.85714286 | N32: 46.85714286 | O32: 46.85714286 | P32: 46.85714286 | Q32: 46.85714286 | R32: 46.85714286 | Z32: 328 | AA32: 685.52 | AB32: 685.52 | AC32: 0 | AD32: 0 | AE32: 0
B33: 15 | C33: Mobilization on Equipment (1 ton or less) | E33: Vendor No.01 | F33: Crew#2 | G33: 362494 | H33: 2018-10-21 | I33: 2018-10-27 | J33: =IF(AND(H33>='A - Contractor Summary'!$C$36,I33<='A - Contractor Summary'!$C$42),"Yes","No") -> No | K33: =VLOOKUP($C33,'C.1 - Rate Sheets'!H:I,2,FALSE) -> 2.09 | L33: =337/7 -> 48.14285714 | M33: =337/7 -> 48.14285714 | N33: 48.14285714 | O33: 48.14285714 | P33: 48.14285714 | Q33: 48.14285714 | R33: 48.14285714 | Z33: 337 | AA33: 704.33 | AB33: 704.33 | AC33: 0 | AD33: 0 | AE33: 0
B34: 16 | C34: Pick-Up | E34: Vendor No.01 | F34: Crew#2 | G34: 362494 | H34: 2018-10-21 | I34: 2018-10-27 | J34: =IF(AND(H34>='A - Contractor Summary'!$C$36,I34<='A - Contractor Summary'!$C$42),"Yes","No") -> No | K34: =VLOOKUP($C34,'C.1 - Rate Sheets'!H:I,2,FALSE) -> 28.75 | L34: =48/7 -> 6.857142857 | M34: =48/7 -> 6.857142857 | N34: 6.857142857 | O34: 6.857142857 | P34: 6.857142857 | Q34: 6.857142857 | R34: 6.857142857 | Z34: 48 | AA34: 1380 | AB34: 1380 | AC34: 0 | AD34: 0 | AE34: 0
B35: 17 | C35: Mobilization on Equipment (1 ton or less) | E35: Vendor No.01 | F35: Crew#2 | G35: 362494 | H35: 2018-10-21 | I35: 2018-10-27 | J35: =IF(AND(H35>='A - Contractor Summary'!$C$36,I35<='A - Contractor Summary'!$C$42),"Yes","No") -> No | K35: =VLOOKUP($C35,'C.1 - Rate Sheets'!H:I,2,FALSE) -> 2.09 | L35: =328/7 -> 46.85714286 | M35: =328/7 -> 46.85714286 | N35: 46.85714286 | O35: 46.85714286 | P35: 46.85714286 | Q35: 46.85714286 | R35: 46.85714286 | Z35: 328 | AA35: 685.52 | AB35: 685.52 | AC35: 0 | AD35: 0 | AE35: 0
B36: 18 | C36: Mobilization on Equipment (1 ton or less) | E36: Vendor No.01 | F36: Crew#2 | G36: 362494 | H36: 2018-10-21 | I36: 2018-10-27 | J36: =IF(AND(H36>='A - Contractor Summary'!$C$36,I36<='A - Contractor Summary'!$C$42),"Yes","No") -> No | K36: =VLOOKUP($C36,'C.1 - Rate Sheets'!H:I,2,FALSE) -> 2.09 | L36: =337/7 -> 48.14285714 | M36: =337/7 -> 48.14285714 | N36: 48.14285714 | O36: 48.14285714 | P36: 48.14285714 | Q36: 48.14285714 | R36: 48.14285714 | Z36: 337 | AA36: 704.33 | AB36: 704.33 | AC36: 0 | AD36: 0 | AE36: 0
B37: 19 | C37: Pick-Up | E37: Vendor No.01 | F37: Crew#2 | G37: 362494 | H37: 2018-10-21 | I37: 2018-10-27 | J37: =IF(AND(H37>='A - Contractor Summary'!$C$36,I37<='A - Contractor Summary'!$C$42),"Yes","No") -> No | K37: =VLOOKUP($C37,'C.1 - Rate Sheets'!H:I,2,FALSE) -> 28.75 | L37: =48/7 -> 6.857142857 | M37: =48/7 -> 6.857142857 | N37: 6.857142857 | O37: 6.857142857 | P37: 6.857142857 | Q37: 6.857142857 | R37: 6.857142857 | Z37: 48 | AA37: 1380 | AB37: 1380 | AC37: 0 | AD37: 0 | AE37: 0
B38: 20 | C38: Mobilization on Equipment (1 ton or less) | E38: Vendor No.01 | F38: Crew#2 | G38: 362494 | H38: 2018-10-21 | I38: 2018-10-27 | J38: =IF(AND(H38>='A - Contractor Summary'!$C$36,I38<='A - Contractor Summary'!$C$42),"Yes","No") -> No | K38: =VLOOKUP($C38,'C.1 - Rate Sheets'!H:I,2,FALSE) -> 2.09 | L38: =328/7 -> 46.85714286 | M38: =328/7 -> 46.85714286 | N38: 46.85714286 | O38: 46.85714286 | P38: 46.85714286 | Q38: 46.85714286 | R38: 46.85714286 | Z38: 328 | AA38: 685.52 | AB38: 685.52 | AC38: 0 | AD38: 0 | AE38: 0
B39: 21 | C39: Mobilization on Equipment (1 ton or less) | E39: Vendor No.01 | F39: Crew#2 | G39: 362494 | H39: 2018-10-21 | I39: 2018-10-27 | J39: =IF(AND(H39>='A - Contractor Summary'!$C$36,I39<='A - Contractor Summary'!$C$42),"Yes","No") -> No | K39: =VLOOKUP($C39,'C.1 - Rate Sheets'!H:I,2,FALSE) -> 2.09 | L39: =337/7 -> 48.14285714 | M39: =337/7 -> 48.14285714 | N39: 48.14285714 | O39: 48.14285714 | P39: 48.14285714 | Q39: 48.14285714 | R39: 48.14285714 | Z39: 337 | AA39: 704.33 | AB39: 704.33 | AC39: 0 | AD39: 0 | AE39: 0
B41: 22 | C41: Pick-Up | E41: Vendor No.01 | F41: Crew#1 | G41: 362569 | H41: 2018-10-28 | I41: 2018-11-03 | J41: =IF(AND(H41>='A - Contractor Summary'!$C$36,I41<='A - Contractor Summary'!$C$42),"Yes","No") -> No | K41: =VLOOKUP($C41,'C.1 - Rate Sheets'!H:I,2,FALSE) -> 28.75 | S41: =64/7 -> 9.142857143 | T41: 9.142857143 | U41: 9.142857143 | V41: 9.142857143 | W41: 9.142857143 | X41: 9.142857143 | Y41: 9.142857143 | Z41: =SUM(L41:Y41) -> 64 | AA41: =Z41*K41 -> 1840 | AB41: 1840 | AC41: 0 | AD41: 0 | AE41: 0
B42: 23 | C42: Mobilization on Equipment (1 ton or less) | E42: Vendor No.01 | F42: Crew#1 | G42: 362569 | H42: 2018-10-28 | I42: 2018-11-03 | J42: =IF(AND(H42>='A - Contractor Summary'!$C$36,I42<='A - Contractor Summary'!$C$42),"Yes","No") -> No | K42: =VLOOKUP($C42,'C.1 - Rate Sheets'!H:I,2,FALSE) -> 2.09 | S42: =609/7 -> 87 | T42: =609/7 -> 87 | U42: 87 | V42: 87 | W42: 87 | X42: 87 | Y42: 87 | Z42: 609 | AA42: 1272.81 | AB42: 1272.81 | AC42: 0 | AD42: 0 | AE42: 0
B43: 24 | C43: 55' Lift | E43: Vendor No.01 | F43: Crew#1 | G43: 362569 | H43: 2018-10-28 | I43: 2018-11-03 | J43: =IF(AND(H43>='A - Contractor Summary'!$C$36,I43<='A - Contractor Summary'!$C$42),"Yes","No") -> No | K43: =VLOOKUP($C43,'C.1 - Rate Sheets'!H:I,2,FALSE) -> 44.28 | S43: =64/7 -> 9.142857143 | T43: =64/7 -> 9.142857143 | U43: 9.142857143 | V43: 9.142857143 | W43: 9.142857143 | X43: 9.142857143 | Y43: 9.142857143 | Z43: 64 | AA43: 2833.92 | AB43: 2833.92 | AC43: 0 | AD43: 0 | AE43: 0
B44: 25 | C44: Mobilization on Equipment (More than 1 ton) | E44: Vendor No.01 | F44: Crew#1 | G44: 362569 | H44: 2018-10-28 | I44: 2018-11-03 | J44: =IF(AND(H44>='A - Contractor Summary'!$C$36,I44<='A - Contractor Summary'!$C$42),"Yes","No") -> No | K44: =VLOOKUP($C44,'C.1 - Rate Sheets'!H:I,2,FALSE) -> 2.78 | S44: =609/7 -> 87 | T44: =609/7 -> 87 | U44: 87 | V44: 87 | W44: 87 | X44: 87 | Y44: 87 | Z44: 609 | AA44: 1693.02 | AB44: 1693.02 | AC44: 0 | AD44: 0 | AE44: 0
B45: 26 | C45: 60/70' Bucket | E45: Vendor No.01 | F45: Crew#1 | G45: 362569 | H45: 2018-10-28 | I45: 2018-11-03 | J45: =IF(AND(H45>='A - Contractor Summary'!$C$36,I45<='A - Contractor Summary'!$C$42),"Yes","No") -> No | K45: =VLOOKUP($C45,'C.1 - Rate Sheets'!H:I,2,FALSE) -> 63.25 | S45: =46/7 -> 6.571428571 | T45: =46/7 -> 6.571428571 | U45: 6.571428571 | V45: 6.571428571 | W45: 6.571428571 | X45: 6.571428571 | Y45: 6.571428571 | Z45: 46 | AA45: 2909.5 | AB45: =AA45-AC45 -> 2909.5 | AC45: 0 | AD45: 0 | AE45: 0
B46: 27 | C46: Mobilization on Equipment (More than 1 ton) | E46: Vendor No.01 | F46: Crew#1 | G46: 362569 | H46: 2018-10-28 | I46: 2018-11-03 | J46: =IF(AND(H46>='A - Contractor Summary'!$C$36,I46<='A - Contractor Summary'!$C$42),"Yes","No") -> No | K46: =VLOOKUP($C46,'C.1 - Rate Sheets'!H:I,2,FALSE) -> 2.78 | S46: =609/7 -> 87 | T46: =609/7 -> 87 | U46: 87 | V46: 87 | W46: 87 | X46: 87 | Y46: 87 | Z46: 609 | AA46: 1693.02 | AB46: 1693.02 | AC46: 0 | AD46: 0 | AE46: 0
B47: 28 | C47: 60/70' Bucket | E47: Vendor No.01 | F47: Crew#1 | G47: 362569 | H47: 2018-10-28 | I47: 2018-11-03 | J47: =IF(AND(H47>='A - Contractor Summary'!$C$36,I47<='A - Contractor Summary'!$C$42),"Yes","No") -> No | K47: =VLOOKUP($C47,'C.1 - Rate Sheets'!H:I,2,FALSE) -> 63.25 | S47: =64/7 -> 9.142857143 | T47: =64/7 -> 9.142857143 | U47: 9.142857143 | V47: 9.142857143 | W47: 9.142857143 | X47: 9.142857143 | Y47: 9.142857143 | Z47: 64 | AA47: 4048 | AB47: 4048 | AC47: 0 | AD47: 0 | AE47: 0
B48: 29 | C48: Mobilization on Equipment (More than 1 ton) | E48: Vendor No.01 | F48: Crew#1 | G48: 362569 | H48: 2018-10-28 | I48: 2018-11-03 | J48: =IF(AND(H48>='A - Contractor Summary'!$C$36,I48<='A - Contractor Summary'!$C$42),"Yes","No") -> No | K48: =VLOOKUP($C48,'C.1 - Rate Sheets'!H:I,2,FALSE) -> 2.78 | S48: =609/7 -> 87 | T48: =609/7 -> 87 | U48: 87 | V48: 87 | W48: 87 | X48: 87 | Y48: 87 | Z48: 609 | AA48: 1693.02 | AB48: 1693.02 | AC48: 0 | AD48: 0 | AE48: 0
B50: 30 | C50: Pick-Up | E50: Vendor No.01 | F50: Crew#2 | G50: 362735 | H50: 2018-10-28 | I50: 2018-11-03 | J50: =IF(AND(H50>='A - Contractor Summary'!$C$36,I50<='A - Contractor Summary'!$C$42),"Yes","No") -> No | K50: =VLOOKUP($C50,'C.1 - Rate Sheets'!H:I,2,FALSE) -> 28.75 | S50: =70/7 -> 10 | T50: =70/7 -> 10 | U50: 10 | V50: 10 | W50: 10 | X50: 10 | Y50: 10 | Z50: =SUM(L50:Y50) -> 70 | AA50: =Z50*K50 -> 2012.5 | AB50: 2012.5 | AC50: 0 | AD50: 0 | AE50: 0
B51: 31 | C51: Mobilization on Equipment (1 ton or less) | E51: Vendor No.01 | F51: Crew#2 | G51: 362735 | H51: 2018-10-28 | I51: 2018-11-03 | J51: =IF(AND(H51>='A - Contractor Summary'!$C$36,I51<='A - Contractor Summary'!$C$42),"Yes","No") -> No | K51: =VLOOKUP($C51,'C.1 - Rate Sheets'!H:I,2,FALSE) -> 2.09 | S51: =336/7 -> 48 | T51: =336/7 -> 48 | U51: 48 | V51: 48 | W51: 48 | X51: 48 | Y51: 48 | Z51: 336 | AA51: 702.24 | AB51: 702.24 | AC51: 0 | AD51: 0 | AE51: 0
B52: 32 | C52: Mobilization on Equipment (1 ton or less) | E52: Vendor No.01 | F52: Crew#2 | G52: 362735 | H52: 2018-10-28 | I52: 2018-11-03 | J52: =IF(AND(H52>='A - Contractor Summary'!$C$36,I52<='A - Contractor Summary'!$C$42),"Yes","No") -> No | K52: =VLOOKUP($C52,'C.1 - Rate Sheets'!H:I,2,FALSE) -> 2.09 | S52: =327/7 -> 46.71428571 | T52: =327/7 -> 46.71428571 | U52: 46.71428571 | V52: 46.71428571 | W52: 46.71428571 | X52: 46.71428571 | Y52: 46.71428571 | Z52: 327 | AA52: 683.43 | AB52: 683.43 | AC52: 0 | AD52: 0 | AE52: 0
B53: 33 | C53: Pick-Up | E53: Vendor No.01 | F53: Crew#2 | G53: 362735 | H53: 2018-10-28 | I53: 2018-11-03 | J53: =IF(AND(H53>='A - Contractor Summary'!$C$36,I53<='A - Contractor Summary'!$C$42),"Yes","No") -> No | K53: =VLOOKUP($C53,'C.1 - Rate Sheets'!H:I,2,FALSE) -> 28.75 | S53: =70/7 -> 10 | T53: =70/7 -> 10 | U53: 10 | V53: 10 | W53: 10 | X53: 10 | Y53: 10 | Z53: 70 | AA53: 2012.5 | AB53: 2012.5 | AC53: 0 | AD53: 0 | AE53: 0
B54: 34 | C54: Mobilization on Equipment (1 ton or less) | E54: Vendor No.01 | F54: Crew#2 | G54: 362735 | H54: 2018-10-28 | I54: 2018-11-03 | J54: =IF(AND(H54>='A - Contractor Summary'!$C$36,I54<='A - Contractor Summary'!$C$42),"Yes","No") -> No | K54: =VLOOKUP($C54,'C.1 - Rate Sheets'!H:I,2,FALSE) -> 2.09 | S54: =336/7 -> 48 | T54: =336/7 -> 48 | U54: 48 | V54: 48 | W54: 48 | X54: 48 | Y54: 48 | Z54: 336 | AA54: 702.24 | AB54: 702.24 | AC54: 0 | AD54: 0 | AE54: 0
B55: 35 | C55: Mobilization on Equipment (1 ton or less) | E55: Vendor No.01 | F55: Crew#2 | G55: 362735 | H55: 2018-10-28 | I55: 2018-11-03 | J55: =IF(AND(H55>='A - Contractor Summary'!$C$36,I55<='A - Contractor Summary'!$C$42),"Yes","No") -> No | K55: =VLOOKUP($C55,'C.1 - Rate Sheets'!H:I,2,FALSE) -> 2.09 | S55: =327/7 -> 46.71428571 | T55: =327/7 -> 46.71428571 | U55: 46.71428571 | V55: 46.71428571 | W55: 46.71428571 | X55: 46.71428571 | Y55: 46.71428571 | Z55: 327 | AA55: 683.43 | AB55: 683.43 | AC55: 0 | AD55: 0 | AE55: 0
B56: 36 | C56: 55' Lift | E56: Vendor No.01 | F56: Crew#2 | G56: 362735 | H56: 2018-10-28 | I56: 2018-11-03 | J56: =IF(AND(H56>='A - Contractor Summary'!$C$36,I56<='A - Contractor Summary'!$C$42),"Yes","No") -> No | K56: =VLOOKUP($C56,'C.1 - Rate Sheets'!H:I,2,FALSE) -> 44.28 | S56: =70/7 -> 10 | T56: =70/7 -> 10 | U56: 10 | V56: 10 | W56: 10 | X56: 10 | Y56: 10 | Z56: 70 | AA56: 3099.6 | AB56: 3099.6 | AC56: 0 | AD56: 0 | AE56: 0
B57: 37 | C57: Mobilization on Equipment (More than 1 ton) | E57: Vendor No.01 | F57: Crew#2 | G57: 362735 | H57: 2018-10-28 | I57: 2018-11-03 | J57: =IF(AND(H57>='A - Contractor Summary'!$C$36,I57<='A - Contractor Summary'!$C$42),"Yes","No") -> No | K57: =VLOOKUP($C57,'C.1 - Rate Sheets'!H:I,2,FALSE) -> 2.78 | S57: =336/7 -> 48 | T57: =336/7 -> 48 | U57: 48 | V57: 48 | W57: 48 | X57: 48 | Y57: 48 | Z57: 336 | AA57: 934.08 | AB57: 934.08 | AC57: 0 | AD57: 0 | AE57: 0
B58: 38 | C58: Mobilization on Equipment (More than 1 ton) | E58: Vendor No.01 | F58: Crew#2 | G58: 362735 | H58: 2018-10-28 | I58: 2018-11-03 | J58: =IF(AND(H58>='A - Contractor Summary'!$C$36,I58<='A - Contractor Summary'!$C$42),"Yes","No") -> No | K58: =VLOOKUP($C58,'C.1 - Rate Sheets'!H:I,2,FALSE) -> 2.78 | S58: =327/7 -> 46.71428571 | T58: =327/7 -> 46.71428571 | U58: 46.71428571 | V58: 46.71428571 | W58: 46.71428571 | X58: 46.71428571 | Y58: 46.71428571 | Z58: 327 | AA58: 909.06 | AB58: 909.06 | AC58: 0 | AD58: 0 | AE58: 0
B59: 39 | C59: Pick-Up | E59: Vendor No.01 | F59: Crew#2 | G59: 362735 | H59: 2018-10-28 | I59: 2018-11-03 | J59: =IF(AND(H59>='A - Contractor Summary'!$C$36,I59<='A - Contractor Summary'!$C$42),"Yes","No") -> No | K59: =VLOOKUP($C59,'C.1 - Rate Sheets'!H:I,2,FALSE) -> 28.75 | S59: =70/7 -> 10 | T59: =70/7 -> 10 | U59: 10 | V59: 10 | W59: 10 | X59: 10 | Y59: 10 | Z59: 70 | AA59: 2012.5 | AB59: 2012.5 | AC59: 0 | AD59: 0 | AE59: 0
B60: 40 | C60: Mobilization on Equipment (1 ton or less) | E60: Vendor No.01 | F60: Crew#2 | G60: 362735 | H60: 2018-10-28 | I60: 2018-11-03 | J60: =IF(AND(H60>='A - Contractor Summary'!$C$36,I60<='A - Contractor Summary'!$C$42),"Yes","No") -> No | K60: =VLOOKUP($C60,'C.1 - Rate Sheets'!H:I,2,FALSE) -> 2.09 | S60: =336/7 -> 48 | T60: =336/7 -> 48 | U60: 48 | V60: 48 | W60: 48 | X60: 48 | Y60: 48 | Z60: 336 | AA60: 702.24 | AB60: 702.24 | AC60: 0 | AD60: 0 | AE60: 0
B61: 41 | C61: Mobilization on Equipment (1 ton or less) | E61: Vendor No.01 | F61: Crew#2 | G61: 362735 | H61: 2018-10-28 | I61: 2018-11-03 | J61: =IF(AND(H61>='A - Contractor Summary'!$C$36,I61<='A - Contractor Summary'!$C$42),"Yes","No") -> No | K61: =VLOOKUP($C61,'C.1 - Rate Sheets'!H:I,2,FALSE) -> 2.09 | S61: =327/7 -> 46.71428571 | T61: =327/7 -> 46.71428571 | U61: 46.71428571 | V61: 46.71428571 | W61: 46.71428571 | X61: 46.71428571 | Y61: 46.71428571 | Z61: 327 | AA61: 683.43 | AB61: 683.43 | AC61: 0 | AD61: 0 | AE61: 0
B62: 42 | Z62: 0 | AA62: 0 | AB62: 0 | AC62: 0 | AD62: 0 | AE62: 0
B63: 43 | Z63: 0 | AA63: 0 | AB63: 0 | AC63: 0 | AD63: 0 | AE63: 0
L64: =SUM(L18:L63) -> 809.7142857 | M64: 809.7142857 | N64: 809.7142857 | O64: 809.7142857 | P64: 809.7142857 | Q64: 809.7142857 | R64: 809.7142857 | S64: 800.8571429 | T64: 800.8571429 | U64: 800.8571429 | V64: 800.8571429 | W64: 800.8571429 | X64: 800.8571429 | Y64: 800.8571429 | Z64: 11274 | AA64: =IFERROR(SUM(AA18:AA63),0) -> 60241.26 | AB64: =IFERROR(SUM(AB18:AB63),0) -> 60241.26 | AC64: =SUM(AC18:AC63) -> 0 | AD64: =SUM(AD18:AD63) -> 0 | AE64: =SUM(AE18:AE63) -> 0 | AF64: =AC64-AD64-AE64 -> 0 | AG64: check (b)
B68: Tickmark Explanation: | AD68: 35466.9
AD69: 60241.26
AD70: =+AD68-AD69 -> -24774.36

Sheet D - Lodging
B2: Lodging Charges
B4: Test Plan: (A) Obtain support of individual charges. (B) Enter Yes/No if receipt is itemized (C) Enter Yes/No if proof of payment has been provided. (D) Ensure charges fall between the dates the vendor was mobilized and the date they arrived. (E) Ensure charges are prior to the date the vendor arrived home or was released to another utility. (F) Ensure the location of stay was reasonable (G) Determine the amount(s) to be reviewed, allowed and/or disallowed. (H) For charges which required further review, document review (include why it was determined to be allowed/disallowed via a tickmark).
B8: Rx | C8: Recalculated.
B9: a | C9: Check figure should equal $0. Cell will appear yellow if discrepancies are noted.
C11: A | M11: Rx | N11: B | O11: C | P11: D | Q11: E | R11: F | S11: G | V11: H
B12: Support Reviewed | P12: Conclusion
B13: # | C13: Type of Support | D13: Support Identifier | E13: Crew | F13: Company | G13: Check In Date | H13: Person | I13: Hotel Name | J13: Location | K13: # of Nights | L13: Total Invoice | M13: $ / Night | N13: Itemized Receipt | O13: Proof of Payment | P13: Reasonable based on Mobilization date(s) | Q13: Reasonable based on Demobilization date(s) | R13: Location Reasonable | S13: Conclusion | T13: $ Allowable Charge | U13: $ To Be Reviewed | V13: Reviewed - Allowable $ | W13: Reviewed - Unallowable $ | X13: Tickmark
B14: 1 | M14: =L14/K14 ->  | P14: =IF(AND(G14>='A - Contractor Summary'!$C$36,G14<='A - Contractor Summary'!$C$38),"Yes",IF(G14<'A - Contractor Summary'!$C$36,"No",IF(G14>'A - Contractor Summary'!$C$39,"",""))) -> No | Q14: =IF(OR(P14="Yes",P14="No")*AND(G14<'A - Contractor Summary'!$C$39),"",IF(AND(G14>'A - Contractor Summary'!$C$39,G14<'A - Contractor Summary'!$C$42),"Yes",IF(G14>'A - Contractor Summary'!$C$42,"No","Needs Review"))) ->  | S14: =IF(AND(R14="YES",O14="Yes",N14="Yes")*OR(P14="Yes",Q14="Yes"),"Yes",IF(OR(N14="No",O14="No",P14="No",Q14="No",R14="No"),"No","Needs Review")) -> No | T14: =IF(S14="Yes",L14,0) -> 0 | U14: =IF(S14="Needs Review",L14,0) -> 0
B15: 2 | P15: =IF(AND(G15>='A - Contractor Summary'!$C$36,G15<='A - Contractor Summary'!$C$38),"Yes",IF(G15<'A - Contractor Summary'!$C$36,"No",IF(G15>'A - Contractor Summary'!$C$39,"",""))) -> No | Q15: =IF(OR(P15="Yes",P15="No")*AND(G15<'A - Contractor Summary'!$C$39),"",IF(AND(G15>'A - Contractor Summary'!$C$39,G15<'A - Contractor Summary'!$C$42),"Yes",IF(G15>'A - Contractor Summary'!$C$42,"No","Needs Review"))) ->  | S15: No | T15: 0 | U15: 0
B16: 3 | P16: =IF(AND(G16>='A - Contractor Summary'!$C$36,G16<='A - Contractor Summary'!$C$38),"Yes",IF(G16<'A - Contractor Summary'!$C$36,"No",IF(G16>'A - Contractor Summary'!$C$39,"",""))) -> No | Q16: =IF(OR(P16="Yes",P16="No")*AND(G16<'A - Contractor Summary'!$C$39),"",IF(AND(G16>'A - Contractor Summary'!$C$39,G16<'A - Contractor Summary'!$C$42),"Yes",IF(G16>'A - Contractor Summary'!$C$42,"No","Needs Review"))) ->  | S16: No | T16: 0 | U16: 0
B17: 4 | P17: =IF(AND(G17>='A - Contractor Summary'!$C$36,G17<='A - Contractor Summary'!$C$38),"Yes",IF(G17<'A - Contractor Summary'!$C$36,"No",IF(G17>'A - Contractor Summary'!$C$39,"",""))) -> No | Q17: =IF(OR(P17="Yes",P17="No")*AND(G17<'A - Contractor Summary'!$C$39),"",IF(AND(G17>'A - Contractor Summary'!$C$39,G17<'A - Contractor Summary'!$C$42),"Yes",IF(G17>'A - Contractor Summary'!$C$42,"No","Needs Review"))) ->  | S17: No | T17: 0 | U17: 0
B18: 5 | P18: =IF(AND(G18>='A - Contractor Summary'!$C$36,G18<='A - Contractor Summary'!$C$38),"Yes",IF(G18<'A - Contractor Summary'!$C$36,"No",IF(G18>'A - Contractor Summary'!$C$39,"",""))) -> No | Q18: =IF(OR(P18="Yes",P18="No")*AND(G18<'A - Contractor Summary'!$C$39),"",IF(AND(G18>'A - Contractor Summary'!$C$39,G18<'A - Contractor Summary'!$C$42),"Yes",IF(G18>'A - Contractor Summary'!$C$42,"No","Needs Review"))) ->  | S18: No | T18: 0 | U18: 0
B19: 6 | P19: =IF(AND(G19>='A - Contractor Summary'!$C$36,G19<='A - Contractor Summary'!$C$38),"Yes",IF(G19<'A - Contractor Summary'!$C$36,"No",IF(G19>'A - Contractor Summary'!$C$39,"",""))) -> No | Q19: =IF(OR(P19="Yes",P19="No")*AND(G19<'A - Contractor Summary'!$C$39),"",IF(AND(G19>'A - Contractor Summary'!$C$39,G19<'A - Contractor Summary'!$C$42),"Yes",IF(G19>'A - Contractor Summary'!$C$42,"No","Needs Review"))) ->  | S19: No | T19: 0 | U19: 0
B20: 7 | P20: =IF(AND(G20>='A - Contractor Summary'!$C$36,G20<='A - Contractor Summary'!$C$38),"Yes",IF(G20<'A - Contractor Summary'!$C$36,"No",IF(G20>'A - Contractor Summary'!$C$39,"",""))) -> No | Q20: =IF(OR(P20="Yes",P20="No")*AND(G20<'A - Contractor Summary'!$C$39),"",IF(AND(G20>'A - Contractor Summary'!$C$39,G20<'A - Contractor Summary'!$C$42),"Yes",IF(G20>'A - Contractor Summary'!$C$42,"No","Needs Review"))) ->  | S20: No | T20: 0 | U20: 0
B21: 8 | P21: =IF(AND(G21>='A - Contractor Summary'!$C$36,G21<='A - Contractor Summary'!$C$38),"Yes",IF(G21<'A - Contractor Summary'!$C$36,"No",IF(G21>'A - Contractor Summary'!$C$39,"",""))) -> No | Q21: =IF(OR(P21="Yes",P21="No")*AND(G21<'A - Contractor Summary'!$C$39),"",IF(AND(G21>'A - Contractor Summary'!$C$39,G21<'A - Contractor Summary'!$C$42),"Yes",IF(G21>'A - Contractor Summary'!$C$42,"No","Needs Review"))) ->  | S21: No | T21: 0 | U21: 0
B22: 9 | P22: =IF(AND(G22>='A - Contractor Summary'!$C$36,G22<='A - Contractor Summary'!$C$38),"Yes",IF(G22<'A - Contractor Summary'!$C$36,"No",IF(G22>'A - Contractor Summary'!$C$39,"",""))) -> No | Q22: =IF(OR(P22="Yes",P22="No")*AND(G22<'A - Contractor Summary'!$C$39),"",IF(AND(G22>'A - Contractor Summary'!$C$39,G22<'A - Contractor Summary'!$C$42),"Yes",IF(G22>'A - Contractor Summary'!$C$42,"No","Needs Review"))) ->  | S22: No | T22: 0 | U22: 0
B23: 10 | P23: =IF(AND(G23>='A - Contractor Summary'!$C$36,G23<='A - Contractor Summary'!$C$38),"Yes",IF(G23<'A - Contractor Summary'!$C$36,"No",IF(G23>'A - Contractor Summary'!$C$39,"",""))) -> No | Q23: =IF(OR(P23="Yes",P23="No")*AND(G23<'A - Contractor Summary'!$C$39),"",IF(AND(G23>'A - Contractor Summary'!$C$39,G23<'A - Contractor Summary'!$C$42),"Yes",IF(G23>'A - Contractor Summary'!$C$42,"No","Needs Review"))) ->  | S23: No | T23: 0 | U23: 0
B24: 11 | P24: =IF(AND(G24>='A - Contractor Summary'!$C$36,G24<='A - Contractor Summary'!$C$38),"Yes",IF(G24<'A - Contractor Summary'!$C$36,"No",IF(G24>'A - Contractor Summary'!$C$39,"",""))) -> No | Q24: =IF(OR(P24="Yes",P24="No")*AND(G24<'A - Contractor Summary'!$C$39),"",IF(AND(G24>'A - Contractor Summary'!$C$39,G24<'A - Contractor Summary'!$C$42),"Yes",IF(G24>'A - Contractor Summary'!$C$42,"No","Needs Review"))) ->  | S24: No | T24: 0 | U24: 0
B25: 12 | P25: =IF(AND(G25>='A - Contractor Summary'!$C$36,G25<='A - Contractor Summary'!$C$38),"Yes",IF(G25<'A - Contractor Summary'!$C$36,"No",IF(G25>'A - Contractor Summary'!$C$39,"",""))) -> No | Q25: =IF(OR(P25="Yes",P25="No")*AND(G25<'A - Contractor Summary'!$C$39),"",IF(AND(G25>'A - Contractor Summary'!$C$39,G25<'A - Contractor Summary'!$C$42),"Yes",IF(G25>'A - Contractor Summary'!$C$42,"No","Needs Review"))) ->  | S25: No | T25: 0 | U25: 0
B26: 13 | P26: =IF(AND(G26>='A - Contractor Summary'!$C$36,G26<='A - Contractor Summary'!$C$38),"Yes",IF(G26<'A - Contractor Summary'!$C$36,"No",IF(G26>'A - Contractor Summary'!$C$39,"",""))) -> No | Q26: =IF(OR(P26="Yes",P26="No")*AND(G26<'A - Contractor Summary'!$C$39),"",IF(AND(G26>'A - Contractor Summary'!$C$39,G26<'A - Contractor Summary'!$C$42),"Yes",IF(G26>'A - Contractor Summary'!$C$42,"No","Needs Review"))) ->  | S26: No | T26: 0 | U26: 0
B27: 14 | P27: =IF(AND(G27>='A - Contractor Summary'!$C$36,G27<='A - Contractor Summary'!$C$38),"Yes",IF(G27<'A - Contractor Summary'!$C$36,"No",IF(G27>'A - Contractor Summary'!$C$39,"",""))) -> No | Q27: =IF(OR(P27="Yes",P27="No")*AND(G27<'A - Contractor Summary'!$C$39),"",IF(AND(G27>'A - Contractor Summary'!$C$39,G27<'A - Contractor Summary'!$C$42),"Yes",IF(G27>'A - Contractor Summary'!$C$42,"No","Needs Review"))) ->  | S27: No | T27: 0 | U27: 0
B28: 15 | P28: =IF(AND(G28>='A - Contractor Summary'!$C$36,G28<='A - Contractor Summary'!$C$38),"Yes",IF(G28<'A - Contractor Summary'!$C$36,"No",IF(G28>'A - Contractor Summary'!$C$39,"",""))) -> No | Q28: =IF(OR(P28="Yes",P28="No")*AND(G28<'A - Contractor Summary'!$C$39),"",IF(AND(G28>'A - Contractor Summary'!$C$39,G28<'A - Contractor Summary'!$C$42),"Yes",IF(G28>'A - Contractor Summary'!$C$42,"No","Needs Review"))) ->  | S28: No | T28: 0 | U28: 0
B29: 16 | P29: =IF(AND(G29>='A - Contractor Summary'!$C$36,G29<='A - Contractor Summary'!$C$38),"Yes",IF(G29<'A - Contractor Summary'!$C$36,"No",IF(G29>'A - Contractor Summary'!$C$39,"",""))) -> No | Q29: =IF(OR(P29="Yes",P29="No")*AND(G29<'A - Contractor Summary'!$C$39),"",IF(AND(G29>'A - Contractor Summary'!$C$39,G29<'A - Contractor Summary'!$C$42),"Yes",IF(G29>'A - Contractor Summary'!$C$42,"No","Needs Review"))) ->  | S29: No | T29: 0 | U29: 0
B30: 17 | P30: =IF(AND(G30>='A - Contractor Summary'!$C$36,G30<='A - Contractor Summary'!$C$38),"Yes",IF(G30<'A - Contractor Summary'!$C$36,"No",IF(G30>'A - Contractor Summary'!$C$39,"",""))) -> No | Q30: =IF(OR(P30="Yes",P30="No")*AND(G30<'A - Contractor Summary'!$C$39),"",IF(AND(G30>'A - Contractor Summary'!$C$39,G30<'A - Contractor Summary'!$C$42),"Yes",IF(G30>'A - Contractor Summary'!$C$42,"No","Needs Review"))) ->  | S30: No | T30: 0 | U30: 0
B31: 18 | P31: =IF(AND(G31>='A - Contractor Summary'!$C$36,G31<='A - Contractor Summary'!$C$38),"Yes",IF(G31<'A - Contractor Summary'!$C$36,"No",IF(G31>'A - Contractor Summary'!$C$39,"",""))) -> No | Q31: =IF(OR(P31="Yes",P31="No")*AND(G31<'A - Contractor Summary'!$C$39),"",IF(AND(G31>'A - Contractor Summary'!$C$39,G31<'A - Contractor Summary'!$C$42),"Yes",IF(G31>'A - Contractor Summary'!$C$42,"No","Needs Review"))) ->  | S31: No | T31: 0 | U31: 0
B32: 19 | P32: =IF(AND(G32>='A - Contractor Summary'!$C$36,G32<='A - Contractor Summary'!$C$38),"Yes",IF(G32<'A - Contractor Summary'!$C$36,"No",IF(G32>'A - Contractor Summary'!$C$39,"",""))) -> No | Q32: =IF(OR(P32="Yes",P32="No")*AND(G32<'A - Contractor Summary'!$C$39),"",IF(AND(G32>'A - Contractor Summary'!$C$39,G32<'A - Contractor Summary'!$C$42),"Yes",IF(G32>'A - Contractor Summary'!$C$42,"No","Needs Review"))) ->  | S32: No | T32: 0 | U32: 0
B33: 20 | P33: =IF(AND(G33>='A - Contractor Summary'!$C$36,G33<='A - Contractor Summary'!$C$38),"Yes",IF(G33<'A - Contractor Summary'!$C$36,"No",IF(G33>'A - Contractor Summary'!$C$39,"",""))) -> No | Q33: =IF(OR(P33="Yes",P33="No")*AND(G33<'A - Contractor Summary'!$C$39),"",IF(AND(G33>'A - Contractor Summary'!$C$39,G33<'A - Contractor Summary'!$C$42),"Yes",IF(G33>'A - Contractor Summary'!$C$42,"No","Needs Review"))) ->  | S33: No | T33: 0 | U33: 0
B34: 21 | P34: =IF(AND(G34>='A - Contractor Summary'!$C$36,G34<='A - Contractor Summary'!$C$38),"Yes",IF(G34<'A - Contractor Summary'!$C$36,"No",IF(G34>'A - Contractor Summary'!$C$39,"",""))) -> No | Q34: =IF(OR(P34="Yes",P34="No")*AND(G34<'A - Contractor Summary'!$C$39),"",IF(AND(G34>'A - Contractor Summary'!$C$39,G34<'A - Contractor Summary'!$C$42),"Yes",IF(G34>'A - Contractor Summary'!$C$42,"No","Needs Review"))) ->  | S34: No | T34: 0 | U34: 0
B35: 22 | P35: =IF(AND(G35>='A - Contractor Summary'!$C$36,G35<='A - Contractor Summary'!$C$38),"Yes",IF(G35<'A - Contractor Summary'!$C$36,"No",IF(G35>'A - Contractor Summary'!$C$39,"",""))) -> No | Q35: =IF(OR(P35="Yes",P35="No")*AND(G35<'A - Contractor Summary'!$C$39),"",IF(AND(G35>'A - Contractor Summary'!$C$39,G35<'A - Contractor Summary'!$C$42),"Yes",IF(G35>'A - Contractor Summary'!$C$42,"No","Needs Review"))) ->  | S35: No | T35: 0 | U35: 0
B36: 23 | P36: =IF(AND(G36>='A - Contractor Summary'!$C$36,G36<='A - Contractor Summary'!$C$38),"Yes",IF(G36<'A - Contractor Summary'!$C$36,"No",IF(G36>'A - Contractor Summary'!$C$39,"",""))) -> No | Q36: =IF(OR(P36="Yes",P36="No")*AND(G36<'A - Contractor Summary'!$C$39),"",IF(AND(G36>'A - Contractor Summary'!$C$39,G36<'A - Contractor Summary'!$C$42),"Yes",IF(G36>'A - Contractor Summary'!$C$42,"No","Needs Review"))) ->  | S36: No | T36: 0 | U36: 0
B37: 24 | P37: =IF(AND(G37>='A - Contractor Summary'!$C$36,G37<='A - Contractor Summary'!$C$38),"Yes",IF(G37<'A - Contractor Summary'!$C$36,"No",IF(G37>'A - Contractor Summary'!$C$39,"",""))) -> No | Q37: =IF(OR(P37="Yes",P37="No")*AND(G37<'A - Contractor Summary'!$C$39),"",IF(AND(G37>'A - Contractor Summary'!$C$39,G37<'A - Contractor Summary'!$C$42),"Yes",IF(G37>'A - Contractor Summary'!$C$42,"No","Needs Review"))) ->  | S37: No | T37: 0 | U37: 0
B38: 25 | P38: =IF(AND(G38>='A - Contractor Summary'!$C$36,G38<='A - Contractor Summary'!$C$38),"Yes",IF(G38<'A - Contractor Summary'!$C$36,"No",IF(G38>'A - Contractor Summary'!$C$39,"",""))) -> No | Q38: =IF(OR(P38="Yes",P38="No")*AND(G38<'A - Contractor Summary'!$C$39),"",IF(AND(G38>'A - Contractor Summary'!$C$39,G38<'A - Contractor Summary'!$C$42),"Yes",IF(G38>'A - Contractor Summary'!$C$42,"No","Needs Review"))) ->  | S38: No | T38: 0 | U38: 0
B39: 26 | P39: =IF(AND(G39>='A - Contractor Summary'!$C$36,G39<='A - Contractor Summary'!$C$38),"Yes",IF(G39<'A - Contractor Summary'!$C$36,"No",IF(G39>'A - Contractor Summary'!$C$39,"",""))) -> No | Q39: =IF(OR(P39="Yes",P39="No")*AND(G39<'A - Contractor Summary'!$C$39),"",IF(AND(G39>'A - Contractor Summary'!$C$39,G39<'A - Contractor Summary'!$C$42),"Yes",IF(G39>'A - Contractor Summary'!$C$42,"No","Needs Review"))) ->  | S39: No | T39: 0 | U39: 0
B40: 27 | P40: =IF(AND(G40>='A - Contractor Summary'!$C$36,G40<='A - Contractor Summary'!$C$38),"Yes",IF(G40<'A - Contractor Summary'!$C$36,"No",IF(G40>'A - Contractor Summary'!$C$39,"",""))) -> No | Q40: =IF(OR(P40="Yes",P40="No")*AND(G40<'A - Contractor Summary'!$C$39),"",IF(AND(G40>'A - Contractor Summary'!$C$39,G40<'A - Contractor Summary'!$C$42),"Yes",IF(G40>'A - Contractor Summary'!$C$42,"No","Needs Review"))) ->  | S40: No | T40: 0 | U40: 0
B41: 28 | P41: =IF(AND(G41>='A - Contractor Summary'!$C$36,G41<='A - Contractor Summary'!$C$38),"Yes",IF(G41<'A - Contractor Summary'!$C$36,"No",IF(G41>'A - Contractor Summary'!$C$39,"",""))) -> No | Q41: =IF(OR(P41="Yes",P41="No")*AND(G41<'A - Contractor Summary'!$C$39),"",IF(AND(G41>'A - Contractor Summary'!$C$39,G41<'A - Contractor Summary'!$C$42),"Yes",IF(G41>'A - Contractor Summary'!$C$42,"No","Needs Review"))) ->  | S41: No | T41: 0 | U41: 0
B42: 29 | P42: =IF(AND(G42>='A - Contractor Summary'!$C$36,G42<='A - Contractor Summary'!$C$38),"Yes",IF(G42<'A - Contractor Summary'!$C$36,"No",IF(G42>'A - Contractor Summary'!$C$39,"",""))) -> No | Q42: =IF(OR(P42="Yes",P42="No")*AND(G42<'A - Contractor Summary'!$C$39),"",IF(AND(G42>'A - Contractor Summary'!$C$39,G42<'A - Contractor Summary'!$C$42),"Yes",IF(G42>'A - Contractor Summary'!$C$42,"No","Needs Review"))) ->  | S42: No | T42: 0 | U42: 0
B43: 30 | P43: =IF(AND(G43>='A - Contractor Summary'!$C$36,G43<='A - Contractor Summary'!$C$38),"Yes",IF(G43<'A - Contractor Summary'!$C$36,"No",IF(G43>'A - Contractor Summary'!$C$39,"",""))) -> No | Q43: =IF(OR(P43="Yes",P43="No")*AND(G43<'A - Contractor Summary'!$C$39),"",IF(AND(G43>'A - Contractor Summary'!$C$39,G43<'A - Contractor Summary'!$C$42),"Yes",IF(G43>'A - Contractor Summary'!$C$42,"No","Needs Review"))) ->  | S43: No | T43: 0 | U43: 0
B44: 31 | P44: =IF(AND(G44>='A - Contractor Summary'!$C$36,G44<='A - Contractor Summary'!$C$38),"Yes",IF(G44<'A - Contractor Summary'!$C$36,"No",IF(G44>'A - Contractor Summary'!$C$39,"",""))) -> No | Q44: =IF(OR(P44="Yes",P44="No")*AND(G44<'A - Contractor Summary'!$C$39),"",IF(AND(G44>'A - Contractor Summary'!$C$39,G44<'A - Contractor Summary'!$C$42),"Yes",IF(G44>'A - Contractor Summary'!$C$42,"No","Needs Review"))) ->  | S44: No | T44: 0 | U44: 0
B45: 32 | P45: =IF(AND(G45>='A - Contractor Summary'!$C$36,G45<='A - Contractor Summary'!$C$38),"Yes",IF(G45<'A - Contractor Summary'!$C$36,"No",IF(G45>'A - Contractor Summary'!$C$39,"",""))) -> No | Q45: =IF(OR(P45="Yes",P45="No")*AND(G45<'A - Contractor Summary'!$C$39),"",IF(AND(G45>'A - Contractor Summary'!$C$39,G45<'A - Contractor Summary'!$C$42),"Yes",IF(G45>'A - Contractor Summary'!$C$42,"No","Needs Review"))) ->  | S45: No | T45: 0 | U45: 0
B46: 33 | M46: =L46/K46 ->  | P46: =IF(AND(G46>='A - Contractor Summary'!$C$36,G46<='A - Contractor Summary'!$C$38),"Yes",IF(G46<'A - Contractor Summary'!$C$36,"No",IF(G46>'A - Contractor Summary'!$C$39,"",""))) -> No | Q46: =IF(OR(P46="Yes",P46="No")*AND(G46<'A - Contractor Summary'!$C$39),"",IF(AND(G46>'A - Contractor Summary'!$C$39,G46<'A - Contractor Summary'!$C$42),"Yes",IF(G46>'A - Contractor Summary'!$C$42,"No","Needs Review"))) ->  | S46: =IF(AND(R46="YES",O46="Yes",N46="Yes")*OR(P46="Yes",Q46="Yes"),"Yes",IF(OR(N46="No",O46="No",P46="No",Q46="No",R46="No"),"No","Needs Review")) -> No | T46: =IF(S46="Yes",L46,0) -> 0 | U46: =IF(S46="Needs Review",L46,0) -> 0
B47: 34 | P47: =IF(AND(G47>='A - Contractor Summary'!$C$36,G47<='A - Contractor Summary'!$C$38),"Yes",IF(G47<'A - Contractor Summary'!$C$36,"No",IF(G47>'A - Contractor Summary'!$C$39,"",""))) -> No | Q47: =IF(OR(P47="Yes",P47="No")*AND(G47<'A - Contractor Summary'!$C$39),"",IF(AND(G47>'A - Contractor Summary'!$C$39,G47<'A - Contractor Summary'!$C$42),"Yes",IF(G47>'A - Contractor Summary'!$C$42,"No","Needs Review"))) ->  | S47: No | T47: 0 | U47: 0
B48: 35 | P48: =IF(AND(G48>='A - Contractor Summary'!$C$36,G48<='A - Contractor Summary'!$C$38),"Yes",IF(G48<'A - Contractor Summary'!$C$36,"No",IF(G48>'A - Contractor Summary'!$C$39,"",""))) -> No | Q48: =IF(OR(P48="Yes",P48="No")*AND(G48<'A - Contractor Summary'!$C$39),"",IF(AND(G48>'A - Contractor Summary'!$C$39,G48<'A - Contractor Summary'!$C$42),"Yes",IF(G48>'A - Contractor Summary'!$C$42,"No","Needs Review"))) ->  | S48: No | T48: 0 | U48: 0
B49: 36 | P49: =IF(AND(G49>='A - Contractor Summary'!$C$36,G49<='A - Contractor Summary'!$C$38),"Yes",IF(G49<'A - Contractor Summary'!$C$36,"No",IF(G49>'A - Contractor Summary'!$C$39,"",""))) -> No | Q49: =IF(OR(P49="Yes",P49="No")*AND(G49<'A - Contractor Summary'!$C$39),"",IF(AND(G49>'A - Contractor Summary'!$C$39,G49<'A - Contractor Summary'!$C$42),"Yes",IF(G49>'A - Contractor Summary'!$C$42,"No","Needs Review"))) ->  | S49: No | T49: 0 | U49: 0
B50: 37 | P50: =IF(AND(G50>='A - Contractor Summary'!$C$36,G50<='A - Contractor Summary'!$C$38),"Yes",IF(G50<'A - Contractor Summary'!$C$36,"No",IF(G50>'A - Contractor Summary'!$C$39,"",""))) -> No | Q50: =IF(OR(P50="Yes",P50="No")*AND(G50<'A - Contractor Summary'!$C$39),"",IF(AND(G50>'A - Contractor Summary'!$C$39,G50<'A - Contractor Summary'!$C$42),"Yes",IF(G50>'A - Contractor Summary'!$C$42,"No","Needs Review"))) ->  | S50: No | T50: 0 | U50: 0
B51: 38 | P51: =IF(AND(G51>='A - Contractor Summary'!$C$36,G51<='A - Contractor Summary'!$C$38),"Yes",IF(G51<'A - Contractor Summary'!$C$36,"No",IF(G51>'A - Contractor Summary'!$C$39,"",""))) -> No | Q51: =IF(OR(P51="Yes",P51="No")*AND(G51<'A - Contractor Summary'!$C$39),"",IF(AND(G51>'A - Contractor Summary'!$C$39,G51<'A - Contractor Summary'!$C$42),"Yes",IF(G51>'A - Contractor Summary'!$C$42,"No","Needs Review"))) ->  | S51: No | T51: 0 | U51: 0
B52: 39 | P52: =IF(AND(G52>='A - Contractor Summary'!$C$36,G52<='A - Contractor Summary'!$C$38),"Yes",IF(G52<'A - Contractor Summary'!$C$36,"No",IF(G52>'A - Contractor Summary'!$C$39,"",""))) -> No | Q52: =IF(OR(P52="Yes",P52="No")*AND(G52<'A - Contractor Summary'!$C$39),"",IF(AND(G52>'A - Contractor Summary'!$C$39,G52<'A - Contractor Summary'!$C$42),"Yes",IF(G52>'A - Contractor Summary'!$C$42,"No","Needs Review"))) ->  | S52: No | T52: 0 | U52: 0
B53: 40 | P53: =IF(AND(G53>='A - Contractor Summary'!$C$36,G53<='A - Contractor Summary'!$C$38),"Yes",IF(G53<'A - Contractor Summary'!$C$36,"No",IF(G53>'A - Contractor Summary'!$C$39,"",""))) -> No | Q53: =IF(OR(P53="Yes",P53="No")*AND(G53<'A - Contractor Summary'!$C$39),"",IF(AND(G53>'A - Contractor Summary'!$C$39,G53<'A - Contractor Summary'!$C$42),"Yes",IF(G53>'A - Contractor Summary'!$C$42,"No","Needs Review"))) ->  | S53: No | T53: 0 | U53: 0
B54: 41 | P54: =IF(AND(G54>='A - Contractor Summary'!$C$36,G54<='A - Contractor Summary'!$C$38),"Yes",IF(G54<'A - Contractor Summary'!$C$36,"No",IF(G54>'A - Contractor Summary'!$C$39,"",""))) -> No | Q54: =IF(OR(P54="Yes",P54="No")*AND(G54<'A - Contractor Summary'!$C$39),"",IF(AND(G54>'A - Contractor Summary'!$C$39,G54<'A - Contractor Summary'!$C$42),"Yes",IF(G54>'A - Contractor Summary'!$C$42,"No","Needs Review"))) ->  | S54: No | T54: 0 | U54: 0
B55: 42 | P55: =IF(AND(G55>='A - Contractor Summary'!$C$36,G55<='A - Contractor Summary'!$C$38),"Yes",IF(G55<'A - Contractor Summary'!$C$36,"No",IF(G55>'A - Contractor Summary'!$C$39,"",""))) -> No | Q55: =IF(OR(P55="Yes",P55="No")*AND(G55<'A - Contractor Summary'!$C$39),"",IF(AND(G55>'A - Contractor Summary'!$C$39,G55<'A - Contractor Summary'!$C$42),"Yes",IF(G55>'A - Contractor Summary'!$C$42,"No","Needs Review"))) ->  | S55: No | T55: 0 | U55: 0
B56: 43 | P56: =IF(AND(G56>='A - Contractor Summary'!$C$36,G56<='A - Contractor Summary'!$C$38),"Yes",IF(G56<'A - Contractor Summary'!$C$36,"No",IF(G56>'A - Contractor Summary'!$C$39,"",""))) -> No | Q56: =IF(OR(P56="Yes",P56="No")*AND(G56<'A - Contractor Summary'!$C$39),"",IF(AND(G56>'A - Contractor Summary'!$C$39,G56<'A - Contractor Summary'!$C$42),"Yes",IF(G56>'A - Contractor Summary'!$C$42,"No","Needs Review"))) ->  | S56: No | T56: 0 | U56: 0
B57: 44 | P57: =IF(AND(G57>='A - Contractor Summary'!$C$36,G57<='A - Contractor Summary'!$C$38),"Yes",IF(G57<'A - Contractor Summary'!$C$36,"No",IF(G57>'A - Contractor Summary'!$C$39,"",""))) -> No | Q57: =IF(OR(P57="Yes",P57="No")*AND(G57<'A - Contractor Summary'!$C$39),"",IF(AND(G57>'A - Contractor Summary'!$C$39,G57<'A - Contractor Summary'!$C$42),"Yes",IF(G57>'A - Contractor Summary'!$C$42,"No","Needs Review"))) ->  | S57: No | T57: 0 | U57: 0
B58: 45 | P58: =IF(AND(G58>='A - Contractor Summary'!$C$36,G58<='A - Contractor Summary'!$C$38),"Yes",IF(G58<'A - Contractor Summary'!$C$36,"No",IF(G58>'A - Contractor Summary'!$C$39,"",""))) -> No | Q58: =IF(OR(P58="Yes",P58="No")*AND(G58<'A - Contractor Summary'!$C$39),"",IF(AND(G58>'A - Contractor Summary'!$C$39,G58<'A - Contractor Summary'!$C$42),"Yes",IF(G58>'A - Contractor Summary'!$C$42,"No","Needs Review"))) ->  | S58: No | T58: 0 | U58: 0
B59: 46 | P59: =IF(AND(G59>='A - Contractor Summary'!$C$36,G59<='A - Contractor Summary'!$C$38),"Yes",IF(G59<'A - Contractor Summary'!$C$36,"No",IF(G59>'A - Contractor Summary'!$C$39,"",""))) -> No | Q59: =IF(OR(P59="Yes",P59="No")*AND(G59<'A - Contractor Summary'!$C$39),"",IF(AND(G59>'A - Contractor Summary'!$C$39,G59<'A - Contractor Summary'!$C$42),"Yes",IF(G59>'A - Contractor Summary'!$C$42,"No","Needs Review"))) ->  | S59: No | T59: 0 | U59: 0
B60: 47 | P60: =IF(AND(G60>='A - Contractor Summary'!$C$36,G60<='A - Contractor Summary'!$C$38),"Yes",IF(G60<'A - Contractor Summary'!$C$36,"No",IF(G60>'A - Contractor Summary'!$C$39,"",""))) -> No | Q60: =IF(OR(P60="Yes",P60="No")*AND(G60<'A - Contractor Summary'!$C$39),"",IF(AND(G60>'A - Contractor Summary'!$C$39,G60<'A - Contractor Summary'!$C$42),"Yes",IF(G60>'A - Contractor Summary'!$C$42,"No","Needs Review"))) ->  | S60: No | T60: 0 | U60: 0
B61: 48 | P61: =IF(AND(G61>='A - Contractor Summary'!$C$36,G61<='A - Contractor Summary'!$C$38),"Yes",IF(G61<'A - Contractor Summary'!$C$36,"No",IF(G61>'A - Contractor Summary'!$C$39,"",""))) -> No | Q61: =IF(OR(P61="Yes",P61="No")*AND(G61<'A - Contractor Summary'!$C$39),"",IF(AND(G61>'A - Contractor Summary'!$C$39,G61<'A - Contractor Summary'!$C$42),"Yes",IF(G61>'A - Contractor Summary'!$C$42,"No","Needs Review"))) ->  | S61: No | T61: 0 | U61: 0
B62: 49 | P62: =IF(AND(G62>='A - Contractor Summary'!$C$36,G62<='A - Contractor Summary'!$C$38),"Yes",IF(G62<'A - Contractor Summary'!$C$36,"No",IF(G62>'A - Contractor Summary'!$C$39,"",""))) -> No | Q62: =IF(OR(P62="Yes",P62="No")*AND(G62<'A - Contractor Summary'!$C$39),"",IF(AND(G62>'A - Contractor Summary'!$C$39,G62<'A - Contractor Summary'!$C$42),"Yes",IF(G62>'A - Contractor Summary'!$C$42,"No","Needs Review"))) ->  | S62: No | T62: 0 | U62: 0
B63: 50 | P63: =IF(AND(G63>='A - Contractor Summary'!$C$36,G63<='A - Contractor Summary'!$C$38),"Yes",IF(G63<'A - Contractor Summary'!$C$36,"No",IF(G63>'A - Contractor Summary'!$C$39,"",""))) -> No | Q63: =IF(OR(P63="Yes",P63="No")*AND(G63<'A - Contractor Summary'!$C$39),"",IF(AND(G63>'A - Contractor Summary'!$C$39,G63<'A - Contractor Summary'!$C$42),"Yes",IF(G63>'A - Contractor Summary'!$C$42,"No","Needs Review"))) ->  | S63: No | T63: 0 | U63: 0
B64: 51 | P64: =IF(AND(G64>='A - Contractor Summary'!$C$36,G64<='A - Contractor Summary'!$C$38),"Yes",IF(G64<'A - Contractor Summary'!$C$36,"No",IF(G64>'A - Contractor Summary'!$C$39,"",""))) -> No | Q64: =IF(OR(P64="Yes",P64="No")*AND(G64<'A - Contractor Summary'!$C$39),"",IF(AND(G64>'A - Contractor Summary'!$C$39,G64<'A - Contractor Summary'!$C$42),"Yes",IF(G64>'A - Contractor Summary'!$C$42,"No","Needs Review"))) ->  | S64: No | T64: 0 | U64: 0
B65: 52 | P65: =IF(AND(G65>='A - Contractor Summary'!$C$36,G65<='A - Contractor Summary'!$C$38),"Yes",IF(G65<'A - Contractor Summary'!$C$36,"No",IF(G65>'A - Contractor Summary'!$C$39,"",""))) -> No | Q65: =IF(OR(P65="Yes",P65="No")*AND(G65<'A - Contractor Summary'!$C$39),"",IF(AND(G65>'A - Contractor Summary'!$C$39,G65<'A - Contractor Summary'!$C$42),"Yes",IF(G65>'A - Contractor Summary'!$C$42,"No","Needs Review"))) ->  | S65: No | T65: 0 | U65: 0
B66: 53 | P66: =IF(AND(G66>='A - Contractor Summary'!$C$36,G66<='A - Contractor Summary'!$C$38),"Yes",IF(G66<'A - Contractor Summary'!$C$36,"No",IF(G66>'A - Contractor Summary'!$C$39,"",""))) -> No | Q66: =IF(OR(P66="Yes",P66="No")*AND(G66<'A - Contractor Summary'!$C$39),"",IF(AND(G66>'A - Contractor Summary'!$C$39,G66<'A - Contractor Summary'!$C$42),"Yes",IF(G66>'A - Contractor Summary'!$C$42,"No","Needs Review"))) ->  | S66: No | T66: 0 | U66: 0
B67: 54 | P67: =IF(AND(G67>='A - Contractor Summary'!$C$36,G67<='A - Contractor Summary'!$C$38),"Yes",IF(G67<'A - Contractor Summary'!$C$36,"No",IF(G67>'A - Contractor Summary'!$C$39,"",""))) -> No | Q67: =IF(OR(P67="Yes",P67="No")*AND(G67<'A - Contractor Summary'!$C$39),"",IF(AND(G67>'A - Contractor Summary'!$C$39,G67<'A - Contractor Summary'!$C$42),"Yes",IF(G67>'A - Contractor Summary'!$C$42,"No","Needs Review"))) ->  | S67: No | T67: 0 | U67: 0
B68: 55 | P68: =IF(AND(G68>='A - Contractor Summary'!$C$36,G68<='A - Contractor Summary'!$C$38),"Yes",IF(G68<'A - Contractor Summary'!$C$36,"No",IF(G68>'A - Contractor Summary'!$C$39,"",""))) -> No | Q68: =IF(OR(P68="Yes",P68="No")*AND(G68<'A - Contractor Summary'!$C$39),"",IF(AND(G68>'A - Contractor Summary'!$C$39,G68<'A - Contractor Summary'!$C$42),"Yes",IF(G68>'A - Contractor Summary'!$C$42,"No","Needs Review"))) ->  | S68: No | T68: 0 | U68: 0
B69: 56 | P69: =IF(AND(G69>='A - Contractor Summary'!$C$36,G69<='A - Contractor Summary'!$C$38),"Yes",IF(G69<'A - Contractor Summary'!$C$36,"No",IF(G69>'A - Contractor Summary'!$C$39,"",""))) -> No | Q69: =IF(OR(P69="Yes",P69="No")*AND(G69<'A - Contractor Summary'!$C$39),"",IF(AND(G69>'A - Contractor Summary'!$C$39,G69<'A - Contractor Summary'!$C$42),"Yes",IF(G69>'A - Contractor Summary'!$C$42,"No","Needs Review"))) ->  | S69: No | T69: 0 | U69: 0
B70: 57 | P70: =IF(AND(G70>='A - Contractor Summary'!$C$36,G70<='A - Contractor Summary'!$C$38),"Yes",IF(G70<'A - Contractor Summary'!$C$36,"No",IF(G70>'A - Contractor Summary'!$C$39,"",""))) -> No | Q70: =IF(OR(P70="Yes",P70="No")*AND(G70<'A - Contractor Summary'!$C$39),"",IF(AND(G70>'A - Contractor Summary'!$C$39,G70<'A - Contractor Summary'!$C$42),"Yes",IF(G70>'A - Contractor Summary'!$C$42,"No","Needs Review"))) ->  | S70: No | T70: 0 | U70: 0
B71: 58 | P71: =IF(AND(G71>='A - Contractor Summary'!$C$36,G71<='A - Contractor Summary'!$C$38),"Yes",IF(G71<'A - Contractor Summary'!$C$36,"No",IF(G71>'A - Contractor Summary'!$C$39,"",""))) -> No | Q71: =IF(OR(P71="Yes",P71="No")*AND(G71<'A - Contractor Summary'!$C$39),"",IF(AND(G71>'A - Contractor Summary'!$C$39,G71<'A - Contractor Summary'!$C$42),"Yes",IF(G71>'A - Contractor Summary'!$C$42,"No","Needs Review"))) ->  | S71: No | T71: 0 | U71: 0
B72: 59 | P72: =IF(AND(G72>='A - Contractor Summary'!$C$36,G72<='A - Contractor Summary'!$C$38),"Yes",IF(G72<'A - Contractor Summary'!$C$36,"No",IF(G72>'A - Contractor Summary'!$C$39,"",""))) -> No | Q72: =IF(OR(P72="Yes",P72="No")*AND(G72<'A - Contractor Summary'!$C$39),"",IF(AND(G72>'A - Contractor Summary'!$C$39,G72<'A - Contractor Summary'!$C$42),"Yes",IF(G72>'A - Contractor Summary'!$C$42,"No","Needs Review"))) ->  | S72: No | T72: 0 | U72: 0
B73: 60 | P73: =IF(AND(G73>='A - Contractor Summary'!$C$36,G73<='A - Contractor Summary'!$C$38),"Yes",IF(G73<'A - Contractor Summary'!$C$36,"No",IF(G73>'A - Contractor Summary'!$C$39,"",""))) -> No | Q73: =IF(OR(P73="Yes",P73="No")*AND(G73<'A - Contractor Summary'!$C$39),"",IF(AND(G73>'A - Contractor Summary'!$C$39,G73<'A - Contractor Summary'!$C$42),"Yes",IF(G73>'A - Contractor Summary'!$C$42,"No","Needs Review"))) ->  | S73: No | T73: 0 | U73: 0
B74: 61 | P74: =IF(AND(G74>='A - Contractor Summary'!$C$36,G74<='A - Contractor Summary'!$C$38),"Yes",IF(G74<'A - Contractor Summary'!$C$36,"No",IF(G74>'A - Contractor Summary'!$C$39,"",""))) -> No | Q74: =IF(OR(P74="Yes",P74="No")*AND(G74<'A - Contractor Summary'!$C$39),"",IF(AND(G74>'A - Contractor Summary'!$C$39,G74<'A - Contractor Summary'!$C$42),"Yes",IF(G74>'A - Contractor Summary'!$C$42,"No","Needs Review"))) ->  | S74: No | T74: 0 | U74: 0
B75: 62 | P75: =IF(AND(G75>='A - Contractor Summary'!$C$36,G75<='A - Contractor Summary'!$C$38),"Yes",IF(G75<'A - Contractor Summary'!$C$36,"No",IF(G75>'A - Contractor Summary'!$C$39,"",""))) -> No | Q75: =IF(OR(P75="Yes",P75="No")*AND(G75<'A - Contractor Summary'!$C$39),"",IF(AND(G75>'A - Contractor Summary'!$C$39,G75<'A - Contractor Summary'!$C$42),"Yes",IF(G75>'A - Contractor Summary'!$C$42,"No","Needs Review"))) ->  | S75: No | T75: 0 | U75: 0
B76: 63 | P76: =IF(AND(G76>='A - Contractor Summary'!$C$36,G76<='A - Contractor Summary'!$C$38),"Yes",IF(G76<'A - Contractor Summary'!$C$36,"No",IF(G76>'A - Contractor Summary'!$C$39,"",""))) -> No | Q76: =IF(OR(P76="Yes",P76="No")*AND(G76<'A - Contractor Summary'!$C$39),"",IF(AND(G76>'A - Contractor Summary'!$C$39,G76<'A - Contractor Summary'!$C$42),"Yes",IF(G76>'A - Contractor Summary'!$C$42,"No","Needs Review"))) ->  | S76: No | T76: 0 | U76: 0 | X76: 3
B77: 64 | P77: =IF(AND(G77>='A - Contractor Summary'!$C$36,G77<='A - Contractor Summary'!$C$38),"Yes",IF(G77<'A - Contractor Summary'!$C$36,"No",IF(G77>'A - Contractor Summary'!$C$39,"",""))) -> No | Q77: =IF(OR(P77="Yes",P77="No")*AND(G77<'A - Contractor Summary'!$C$39),"",IF(AND(G77>'A - Contractor Summary'!$C$39,G77<'A - Contractor Summary'!$C$42),"Yes",IF(G77>'A - Contractor Summary'!$C$42,"No","Needs Review"))) ->  | S77: No | T77: 0 | U77: 0 | X77: 3
B78: 65 | M78: =L78/K78 ->  | P78: =IF(AND(G78>='A - Contractor Summary'!$C$36,G78<='A - Contractor Summary'!$C$38),"Yes",IF(G78<'A - Contractor Summary'!$C$36,"No",IF(G78>'A - Contractor Summary'!$C$39,"",""))) -> No | Q78: =IF(OR(P78="Yes",P78="No")*AND(G78<'A - Contractor Summary'!$C$39),"",IF(AND(G78>'A - Contractor Summary'!$C$39,G78<'A - Contractor Summary'!$C$42),"Yes",IF(G78>'A - Contractor Summary'!$C$42,"No","Needs Review"))) ->  | S78: =IF(AND(R78="YES",O78="Yes",N78="Yes")*OR(P78="Yes",Q78="Yes"),"Yes",IF(OR(N78="No",O78="No",P78="No",Q78="No",R78="No"),"No","Needs Review")) -> No | T78: =IF(S78="Yes",L78,0) -> 0 | U78: =IF(S78="Needs Review",L78,0) -> 0
B79: 66 | P79: =IF(AND(G79>='A - Contractor Summary'!$C$36,G79<='A - Contractor Summary'!$C$38),"Yes",IF(G79<'A - Contractor Summary'!$C$36,"No",IF(G79>'A - Contractor Summary'!$C$39,"",""))) -> No | Q79: =IF(OR(P79="Yes",P79="No")*AND(G79<'A - Contractor Summary'!$C$39),"",IF(AND(G79>'A - Contractor Summary'!$C$39,G79<'A - Contractor Summary'!$C$42),"Yes",IF(G79>'A - Contractor Summary'!$C$42,"No","Needs Review"))) ->  | S79: No | T79: 0 | U79: 0
B80: 67 | P80: =IF(AND(G80>='A - Contractor Summary'!$C$36,G80<='A - Contractor Summary'!$C$38),"Yes",IF(G80<'A - Contractor Summary'!$C$36,"No",IF(G80>'A - Contractor Summary'!$C$39,"",""))) -> No | Q80: =IF(OR(P80="Yes",P80="No")*AND(G80<'A - Contractor Summary'!$C$39),"",IF(AND(G80>'A - Contractor Summary'!$C$39,G80<'A - Contractor Summary'!$C$42),"Yes",IF(G80>'A - Contractor Summary'!$C$42,"No","Needs Review"))) ->  | S80: No | T80: 0 | U80: 0
B81: 68 | P81: =IF(AND(G81>='A - Contractor Summary'!$C$36,G81<='A - Contractor Summary'!$C$38),"Yes",IF(G81<'A - Contractor Summary'!$C$36,"No",IF(G81>'A - Contractor Summary'!$C$39,"",""))) -> No | Q81: =IF(OR(P81="Yes",P81="No")*AND(G81<'A - Contractor Summary'!$C$39),"",IF(AND(G81>'A - Contractor Summary'!$C$39,G81<'A - Contractor Summary'!$C$42),"Yes",IF(G81>'A - Contractor Summary'!$C$42,"No","Needs Review"))) ->  | S81: No | T81: 0 | U81: 0 | X81: 3
B82: 69 | P82: =IF(AND(G82>='A - Contractor Summary'!$C$36,G82<='A - Contractor Summary'!$C$38),"Yes",IF(G82<'A - Contractor Summary'!$C$36,"No",IF(G82>'A - Contractor Summary'!$C$39,"",""))) -> No | Q82: =IF(OR(P82="Yes",P82="No")*AND(G82<'A - Contractor Summary'!$C$39),"",IF(AND(G82>'A - Contractor Summary'!$C$39,G82<'A - Contractor Summary'!$C$42),"Yes",IF(G82>'A - Contractor Summary'!$C$42,"No","Needs Review"))) ->  | S82: No | T82: 0 | U82: 0 | X82: 3
B83: 70 | P83: =IF(AND(G83>='A - Contractor Summary'!$C$36,G83<='A - Contractor Summary'!$C$38),"Yes",IF(G83<'A - Contractor Summary'!$C$36,"No",IF(G83>'A - Contractor Summary'!$C$39,"",""))) -> No | Q83: =IF(OR(P83="Yes",P83="No")*AND(G83<'A - Contractor Summary'!$C$39),"",IF(AND(G83>'A - Contractor Summary'!$C$39,G83<'A - Contractor Summary'!$C$42),"Yes",IF(G83>'A - Contractor Summary'!$C$42,"No","Needs Review"))) ->  | S83: No | T83: 0 | U83: 0
B84: 71 | P84: =IF(AND(G84>='A - Contractor Summary'!$C$36,G84<='A - Contractor Summary'!$C$38),"Yes",IF(G84<'A - Contractor Summary'!$C$36,"No",IF(G84>'A - Contractor Summary'!$C$39,"",""))) -> No | Q84: =IF(OR(P84="Yes",P84="No")*AND(G84<'A - Contractor Summary'!$C$39),"",IF(AND(G84>'A - Contractor Summary'!$C$39,G84<'A - Contractor Summary'!$C$42),"Yes",IF(G84>'A - Contractor Summary'!$C$42,"No","Needs Review"))) ->  | S84: No | T84: 0 | U84: 0
B85: 72 | P85: =IF(AND(G85>='A - Contractor Summary'!$C$36,G85<='A - Contractor Summary'!$C$38),"Yes",IF(G85<'A - Contractor Summary'!$C$36,"No",IF(G85>'A - Contractor Summary'!$C$39,"",""))) -> No | Q85: =IF(OR(P85="Yes",P85="No")*AND(G85<'A - Contractor Summary'!$C$39),"",IF(AND(G85>'A - Contractor Summary'!$C$39,G85<'A - Contractor Summary'!$C$42),"Yes",IF(G85>'A - Contractor Summary'!$C$42,"No","Needs Review"))) ->  | S85: No | T85: 0 | U85: 0
B86: 73 | P86: =IF(AND(G86>='A - Contractor Summary'!$C$36,G86<='A - Contractor Summary'!$C$38),"Yes",IF(G86<'A - Contractor Summary'!$C$36,"No",IF(G86>'A - Contractor Summary'!$C$39,"",""))) -> No | Q86: =IF(OR(P86="Yes",P86="No")*AND(G86<'A - Contractor Summary'!$C$39),"",IF(AND(G86>'A - Contractor Summary'!$C$39,G86<'A - Contractor Summary'!$C$42),"Yes",IF(G86>'A - Contractor Summary'!$C$42,"No","Needs Review"))) ->  | S86: No | T86: 0 | U86: 0
B87: 74 | P87: =IF(AND(G87>='A - Contractor Summary'!$C$36,G87<='A - Contractor Summary'!$C$38),"Yes",IF(G87<'A - Contractor Summary'!$C$36,"No",IF(G87>'A - Contractor Summary'!$C$39,"",""))) -> No | Q87: =IF(OR(P87="Yes",P87="No")*AND(G87<'A - Contractor Summary'!$C$39),"",IF(AND(G87>'A - Contractor Summary'!$C$39,G87<'A - Contractor Summary'!$C$42),"Yes",IF(G87>'A - Contractor Summary'!$C$42,"No","Needs Review"))) ->  | S87: No | T87: 0 | U87: 0
B88: 75 | P88: =IF(AND(G88>='A - Contractor Summary'!$C$36,G88<='A - Contractor Summary'!$C$38),"Yes",IF(G88<'A - Contractor Summary'!$C$36,"No",IF(G88>'A - Contractor Summary'!$C$39,"",""))) -> No | Q88: =IF(OR(P88="Yes",P88="No")*AND(G88<'A - Contractor Summary'!$C$39),"",IF(AND(G88>'A - Contractor Summary'!$C$39,G88<'A - Contractor Summary'!$C$42),"Yes",IF(G88>'A - Contractor Summary'!$C$42,"No","Needs Review"))) ->  | S88: No | T88: 0 | U88: 71.68 | V88: =+M88 ->  | X88: 4
B89: 76 | P89: =IF(AND(G89>='A - Contractor Summary'!$C$36,G89<='A - Contractor Summary'!$C$38),"Yes",IF(G89<'A - Contractor Summary'!$C$36,"No",IF(G89>'A - Contractor Summary'!$C$39,"",""))) -> No | Q89: =IF(OR(P89="Yes",P89="No")*AND(G89<'A - Contractor Summary'!$C$39),"",IF(AND(G89>'A - Contractor Summary'!$C$39,G89<'A - Contractor Summary'!$C$42),"Yes",IF(G89>'A - Contractor Summary'!$C$42,"No","Needs Review"))) ->  | S89: No | T89: 0 | U89: 71.68 | V89: =+M89 ->  | X89: 4
B90: 77 | P90: =IF(AND(G90>='A - Contractor Summary'!$C$36,G90<='A - Contractor Summary'!$C$38),"Yes",IF(G90<'A - Contractor Summary'!$C$36,"No",IF(G90>'A - Contractor Summary'!$C$39,"",""))) -> No | Q90: =IF(OR(P90="Yes",P90="No")*AND(G90<'A - Contractor Summary'!$C$39),"",IF(AND(G90>'A - Contractor Summary'!$C$39,G90<'A - Contractor Summary'!$C$42),"Yes",IF(G90>'A - Contractor Summary'!$C$42,"No","Needs Review"))) ->  | S90: No | T90: 0 | U90: 0 | X90: 2,3
B91: 78 | P91: =IF(AND(G91>='A - Contractor Summary'!$C$36,G91<='A - Contractor Summary'!$C$38),"Yes",IF(G91<'A - Contractor Summary'!$C$36,"No",IF(G91>'A - Contractor Summary'!$C$39,"",""))) -> No | Q91: =IF(OR(P91="Yes",P91="No")*AND(G91<'A - Contractor Summary'!$C$39),"",IF(AND(G91>'A - Contractor Summary'!$C$39,G91<'A - Contractor Summary'!$C$42),"Yes",IF(G91>'A - Contractor Summary'!$C$42,"No","Needs Review"))) ->  | S91: No | T91: 0 | U91: 0 | X91: 1
B92: 79 | P92: =IF(AND(G92>='A - Contractor Summary'!$C$36,G92<='A - Contractor Summary'!$C$38),"Yes",IF(G92<'A - Contractor Summary'!$C$36,"No",IF(G92>'A - Contractor Summary'!$C$39,"",""))) -> No | Q92: =IF(OR(P92="Yes",P92="No")*AND(G92<'A - Contractor Summary'!$C$39),"",IF(AND(G92>'A - Contractor Summary'!$C$39,G92<'A - Contractor Summary'!$C$42),"Yes",IF(G92>'A - Contractor Summary'!$C$42,"No","Needs Review"))) ->  | S92: No | T92: 0 | U92: 0 | X92: 1
L93: =SUM(L14:L92) -> 0 | T93: =IFERROR(SUM(T14:T92),0) -> 0 | U93: =IFERROR(SUM(U14:U92),0) -> 143.36 | V93: 0 | W93: =IFERROR(SUM(W14:W92),0) -> 0 | X93: =U93-V93-W93 -> 143.36 | Y93: check (a)
B96: Tickmark Explanation:
B97: 1
B98: 2
B99: 3
B100: 4

Sheet E - Fuel
B2: Fuel Charges
B4: Test Plan: (A) Obtain support of individual charges. (B) Enter Yes/No if receipt is itemized (C) Enter Yes/No if proof of payment has been provided. (D) Ensure charges fall between the dates the vendor was mobilized and the date they arrived. (E) Ensure charges are prior to the date the vendor arrived home or was released to another utility. (F) Ensure the location of charge was reasonable (G) Determine the amount(s) to be reviewed, allowed and/or disallowed. (H) For charges which required further review, document review (include why it was determined to be allowed/disallowed via a tickmark).
P5: No Fuel Charges
B9: a | C9: Check figure should equal $0. Cell will appear yellow if discrepancies are noted.
C11: A | K11: B | L11: C | M11: D | N11: E | O11: F | P11: G | S11: H
B12: Support Reviewed | M12: Conclusions
B13: # | C13: Type of Support | D13: Support Identifier | E13: Company | F13: Date | G13: Person | H13: Name | I13: Location | J13: Total Charge | K13: Itemized Receipt | L13: Proof of Payment | M13: Reasonable based on Mobilization date(s) | N13: Reasonable based on Demobilization date(s) | O13: Locations Reasonable | P13: Conclusion | Q13: $ Allowable Charge | R13: $ To Be Reviewed | S13: Reviewed - Allowable Charge | T13: Reviewed - Unallowable Charge | U13: Tickmarks
B14: 1 | M14: =IF(AND(F14>='A - Contractor Summary'!$C$36,F14<='A - Contractor Summary'!$C$38),"Yes",IF(F14<'A - Contractor Summary'!$C$36,"No",IF(F14>'A - Contractor Summary'!$C$39,"",""))) -> No | N14: =IF(OR(M14="Yes",M14="No")*AND(F14<'A - Contractor Summary'!$C$39),"",IF(AND(F14>'A - Contractor Summary'!$C$39,F14<'A - Contractor Summary'!$C$42),"Yes",IF(F14>'A - Contractor Summary'!$C$42,"No","Needs Review"))) ->  | P14: =IF(AND(O14="Yes",K14="Yes",L14="Yes")*OR(N14="Yes",M14="Yes"),"Yes",IF(OR(K14="No",M14="No",N14="No",O14="No",L14="No"),"No","Needs Review")) -> No | Q14: =IF(P14="Yes",J14,0) -> 0 | R14: =IF(P14="Needs Review",J14,0) -> 0
B15: 2 | M15: =IF(AND(F15>='A - Contractor Summary'!$C$36,F15<='A - Contractor Summary'!$C$38),"Yes",IF(F15<'A - Contractor Summary'!$C$36,"No",IF(F15>'A - Contractor Summary'!$C$39,"",""))) -> No | N15: =IF(OR(M15="Yes",M15="No")*AND(F15<'A - Contractor Summary'!$C$39),"",IF(AND(F15>'A - Contractor Summary'!$C$39,F15<'A - Contractor Summary'!$C$42),"Yes",IF(F15>'A - Contractor Summary'!$C$42,"No","Needs Review"))) ->  | P15: =IF(AND(O15="Yes",K15="Yes",L15="Yes")*OR(N15="Yes",M15="Yes"),"Yes",IF(OR(K15="No",M15="No",N15="No",O15="No",L15="No"),"No","Needs Review")) -> No | Q15: 0 | R15: 0
B16: 3 | M16: =IF(AND(F16>='A - Contractor Summary'!$C$36,F16<='A - Contractor Summary'!$C$38),"Yes",IF(F16<'A - Contractor Summary'!$C$36,"No",IF(F16>'A - Contractor Summary'!$C$39,"",""))) -> No | N16: =IF(OR(M16="Yes",M16="No")*AND(F16<'A - Contractor Summary'!$C$39),"",IF(AND(F16>'A - Contractor Summary'!$C$39,F16<'A - Contractor Summary'!$C$42),"Yes",IF(F16>'A - Contractor Summary'!$C$42,"No","Needs Review"))) ->  | P16: No | Q16: 0 | R16: 0
B17: 4 | M17: =IF(AND(F17>='A - Contractor Summary'!$C$36,F17<='A - Contractor Summary'!$C$38),"Yes",IF(F17<'A - Contractor Summary'!$C$36,"No",IF(F17>'A - Contractor Summary'!$C$39,"",""))) -> No | N17: =IF(OR(M17="Yes",M17="No")*AND(F17<'A - Contractor Summary'!$C$39),"",IF(AND(F17>'A - Contractor Summary'!$C$39,F17<'A - Contractor Summary'!$C$42),"Yes",IF(F17>'A - Contractor Summary'!$C$42,"No","Needs Review"))) ->  | P17: No | Q17: 0 | R17: 0
B18: 5 | M18: =IF(AND(F18>='A - Contractor Summary'!$C$36,F18<='A - Contractor Summary'!$C$38),"Yes",IF(F18<'A - Contractor Summary'!$C$36,"No",IF(F18>'A - Contractor Summary'!$C$39,"",""))) -> No | N18: =IF(OR(M18="Yes",M18="No")*AND(F18<'A - Contractor Summary'!$C$39),"",IF(AND(F18>'A - Contractor Summary'!$C$39,F18<'A - Contractor Summary'!$C$42),"Yes",IF(F18>'A - Contractor Summary'!$C$42,"No","Needs Review"))) ->  | P18: No | Q18: 0 | R18: 0
B19: 6 | M19: =IF(AND(F19>='A - Contractor Summary'!$C$36,F19<='A - Contractor Summary'!$C$38),"Yes",IF(F19<'A - Contractor Summary'!$C$36,"No",IF(F19>'A - Contractor Summary'!$C$39,"",""))) -> No | N19: =IF(OR(M19="Yes",M19="No")*AND(F19<'A - Contractor Summary'!$C$39),"",IF(AND(F19>'A - Contractor Summary'!$C$39,F19<'A - Contractor Summary'!$C$42),"Yes",IF(F19>'A - Contractor Summary'!$C$42,"No","Needs Review"))) ->  | P19: No | Q19: 0 | R19: 0
B20: 7 | M20: =IF(AND(F20>='A - Contractor Summary'!$C$36,F20<='A - Contractor Summary'!$C$38),"Yes",IF(F20<'A - Contractor Summary'!$C$36,"No",IF(F20>'A - Contractor Summary'!$C$39,"",""))) -> No | N20: =IF(OR(M20="Yes",M20="No")*AND(F20<'A - Contractor Summary'!$C$39),"",IF(AND(F20>'A - Contractor Summary'!$C$39,F20<'A - Contractor Summary'!$C$42),"Yes",IF(F20>'A - Contractor Summary'!$C$42,"No","Needs Review"))) ->  | P20: No | Q20: 0 | R20: 0
B21: 8 | M21: =IF(AND(F21>='A - Contractor Summary'!$C$36,F21<='A - Contractor Summary'!$C$38),"Yes",IF(F21<'A - Contractor Summary'!$C$36,"No",IF(F21>'A - Contractor Summary'!$C$39,"",""))) -> No | N21: =IF(OR(M21="Yes",M21="No")*AND(F21<'A - Contractor Summary'!$C$39),"",IF(AND(F21>'A - Contractor Summary'!$C$39,F21<'A - Contractor Summary'!$C$42),"Yes",IF(F21>'A - Contractor Summary'!$C$42,"No","Needs Review"))) ->  | P21: No | Q21: 0 | R21: 0
B22: 9 | M22: =IF(AND(F22>='A - Contractor Summary'!$C$36,F22<='A - Contractor Summary'!$C$38),"Yes",IF(F22<'A - Contractor Summary'!$C$36,"No",IF(F22>'A - Contractor Summary'!$C$39,"",""))) -> No | N22: =IF(OR(M22="Yes",M22="No")*AND(F22<'A - Contractor Summary'!$C$39),"",IF(AND(F22>'A - Contractor Summary'!$C$39,F22<'A - Contractor Summary'!$C$42),"Yes",IF(F22>'A - Contractor Summary'!$C$42,"No","Needs Review"))) ->  | P22: No | Q22: 0 | R22: 0
B23: 10 | M23: =IF(AND(F23>='A - Contractor Summary'!$C$36,F23<='A - Contractor Summary'!$C$38),"Yes",IF(F23<'A - Contractor Summary'!$C$36,"No",IF(F23>'A - Contractor Summary'!$C$39,"",""))) -> No | N23: =IF(OR(M23="Yes",M23="No")*AND(F23<'A - Contractor Summary'!$C$39),"",IF(AND(F23>'A - Contractor Summary'!$C$39,F23<'A - Contractor Summary'!$C$42),"Yes",IF(F23>'A - Contractor Summary'!$C$42,"No","Needs Review"))) ->  | P23: No | Q23: 0 | R23: 0
B24: 11 | M24: =IF(AND(F24>='A - Contractor Summary'!$C$36,F24<='A - Contractor Summary'!$C$38),"Yes",IF(F24<'A - Contractor Summary'!$C$36,"No",IF(F24>'A - Contractor Summary'!$C$39,"",""))) -> No | N24: =IF(OR(M24="Yes",M24="No")*AND(F24<'A - Contractor Summary'!$C$39),"",IF(AND(F24>'A - Contractor Summary'!$C$39,F24<'A - Contractor Summary'!$C$42),"Yes",IF(F24>'A - Contractor Summary'!$C$42,"No","Needs Review"))) ->  | P24: No | Q24: 0 | R24: 0
B25: 12 | M25: =IF(AND(F25>='A - Contractor Summary'!$C$36,F25<='A - Contractor Summary'!$C$38),"Yes",IF(F25<'A - Contractor Summary'!$C$36,"No",IF(F25>'A - Contractor Summary'!$C$39,"",""))) -> No | N25: =IF(OR(M25="Yes",M25="No")*AND(F25<'A - Contractor Summary'!$C$39),"",IF(AND(F25>'A - Contractor Summary'!$C$39,F25<'A - Contractor Summary'!$C$42),"Yes",IF(F25>'A - Contractor Summary'!$C$42,"No","Needs Review"))) ->  | P25: No | Q25: 0 | R25: 0
B26: 13 | M26: =IF(AND(F26>='A - Contractor Summary'!$C$36,F26<='A - Contractor Summary'!$C$38),"Yes",IF(F26<'A - Contractor Summary'!$C$36,"No",IF(F26>'A - Contractor Summary'!$C$39,"",""))) -> No | N26: =IF(OR(M26="Yes",M26="No")*AND(F26<'A - Contractor Summary'!$C$39),"",IF(AND(F26>'A - Contractor Summary'!$C$39,F26<'A - Contractor Summary'!$C$42),"Yes",IF(F26>'A - Contractor Summary'!$C$42,"No","Needs Review"))) ->  | P26: No | Q26: 0 | R26: 0
B27: 14 | M27: =IF(AND(F27>='A - Contractor Summary'!$C$36,F27<='A - Contractor Summary'!$C$38),"Yes",IF(F27<'A - Contractor Summary'!$C$36,"No",IF(F27>'A - Contractor Summary'!$C$39,"",""))) -> No | N27: =IF(OR(M27="Yes",M27="No")*AND(F27<'A - Contractor Summary'!$C$39),"",IF(AND(F27>'A - Contractor Summary'!$C$39,F27<'A - Contractor Summary'!$C$42),"Yes",IF(F27>'A - Contractor Summary'!$C$42,"No","Needs Review"))) ->  | P27: No | Q27: 0 | R27: 0
B28: 15 | M28: =IF(AND(F28>='A - Contractor Summary'!$C$36,F28<='A - Contractor Summary'!$C$38),"Yes",IF(F28<'A - Contractor Summary'!$C$36,"No",IF(F28>'A - Contractor Summary'!$C$39,"",""))) -> No | N28: =IF(OR(M28="Yes",M28="No")*AND(F28<'A - Contractor Summary'!$C$39),"",IF(AND(F28>'A - Contractor Summary'!$C$39,F28<'A - Contractor Summary'!$C$42),"Yes",IF(F28>'A - Contractor Summary'!$C$42,"No","Needs Review"))) ->  | P28: No | Q28: 0 | R28: 0
B29: 16 | M29: =IF(AND(F29>='A - Contractor Summary'!$C$36,F29<='A - Contractor Summary'!$C$38),"Yes",IF(F29<'A - Contractor Summary'!$C$36,"No",IF(F29>'A - Contractor Summary'!$C$39,"",""))) -> No | N29: =IF(OR(M29="Yes",M29="No")*AND(F29<'A - Contractor Summary'!$C$39),"",IF(AND(F29>'A - Contractor Summary'!$C$39,F29<'A - Contractor Summary'!$C$42),"Yes",IF(F29>'A - Contractor Summary'!$C$42,"No","Needs Review"))) ->  | P29: No | Q29: 0 | R29: 0
B30: 17 | M30: =IF(AND(F30>='A - Contractor Summary'!$C$36,F30<='A - Contractor Summary'!$C$38),"Yes",IF(F30<'A - Contractor Summary'!$C$36,"No",IF(F30>'A - Contractor Summary'!$C$39,"",""))) -> No | N30: =IF(OR(M30="Yes",M30="No")*AND(F30<'A - Contractor Summary'!$C$39),"",IF(AND(F30>'A - Contractor Summary'!$C$39,F30<'A - Contractor Summary'!$C$42),"Yes",IF(F30>'A - Contractor Summary'!$C$42,"No","Needs Review"))) ->  | P30: No | Q30: 0 | R30: 0
B31: 18 | M31: =IF(AND(F31>='A - Contractor Summary'!$C$36,F31<='A - Contractor Summary'!$C$38),"Yes",IF(F31<'A - Contractor Summary'!$C$36,"No",IF(F31>'A - Contractor Summary'!$C$39,"",""))) -> No | N31: =IF(OR(M31="Yes",M31="No")*AND(F31<'A - Contractor Summary'!$C$39),"",IF(AND(F31>'A - Contractor Summary'!$C$39,F31<'A - Contractor Summary'!$C$42),"Yes",IF(F31>'A - Contractor Summary'!$C$42,"No","Needs Review"))) ->  | P31: No | Q31: =IF(P31="Yes",#REF!,0) -> 0 | R31: =IF(P31="ED Review",#REF!,0) -> 0
B32: 19 | M32: =IF(AND(F32>='A - Contractor Summary'!$C$36,F32<='A - Contractor Summary'!$C$38),"Yes",IF(F32<'A - Contractor Summary'!$C$36,"No",IF(F32>'A - Contractor Summary'!$C$39,"",""))) -> No | N32: =IF(OR(M32="Yes",M32="No")*AND(F32<'A - Contractor Summary'!$C$39),"",IF(AND(F32>'A - Contractor Summary'!$C$39,F32<'A - Contractor Summary'!$C$42),"Yes",IF(F32>'A - Contractor Summary'!$C$42,"No","Needs Review"))) ->  | P32: No | Q32: =IF(P32="Yes",#REF!,0) -> 0 | R32: =IF(P32="ED Review",#REF!,0) -> 0
B33: 20 | M33: =IF(AND(F33>='A - Contractor Summary'!$C$36,F33<='A - Contractor Summary'!$C$38),"Yes",IF(F33<'A - Contractor Summary'!$C$36,"No",IF(F33>'A - Contractor Summary'!$C$39,"",""))) -> No | N33: =IF(OR(M33="Yes",M33="No")*AND(F33<'A - Contractor Summary'!$C$39),"",IF(AND(F33>'A - Contractor Summary'!$C$39,F33<'A - Contractor Summary'!$C$42),"Yes",IF(F33>'A - Contractor Summary'!$C$42,"No","Needs Review"))) ->  | P33: No | Q33: =IF(P33="Yes",#REF!,0) -> 0 | R33: =IF(P33="ED Review",#REF!,0) -> 0
J34: =SUM(J14:J33) -> 0 | Q34: =IFERROR(SUM(Q14:Q33),0) -> 0 | R34: =IFERROR(SUM(R14:R33),0) -> 0 | S34: =SUM(S14:S33) -> 0 | T34: =SUM(T14:T33) -> 0 | U34: =R34-S34-T34 -> 0 | V34: check (a)
B40: Tickmark Explanation:

Sheet F - Meals
B2: Meal Charges
B4: Test Plan: (A) Obtain support of individual charges. (B) Enter Yes/No if receipt is itemized. (C) Enter Yes/No if proof of payment has been provided. (D) Ensure charges fall between the dates the vendor was mobilized and the date they arrived. (E) Ensure charges are prior to the date the vendor arrived home or was released to another utility. (F) Ensure the location of charge was reasonable (G) Determine the amount(s) to be reviewed, allowed and/or disallowed. (H) For charges which required further review, document review and include why it was determined to be allowed/disallowed via a tickmark.
B9: a | C9: Check figure should equal $0. Cell will appear yellow if discrepancies are noted.
C11: A | L11: B | M11: C | N11: D | O11: E | P11: F | Q11: G | T11: H
B12: Support Reviewed | N12: Conclusions
B13: # | C13: Type of Support | D13: Support Identifier | E13: Company | F13: Crew | G13: Date | H13: Person | I13: Restaurant Name | J13: Location | K13: $ Total | L13: Itemized Receipt | M13: Proof of Payment | N13: Reasonable based on Mobilization date(s) | O13: Reasonable based on Demobilization date(s) | P13: Locations Reasonable | Q13: Conclusion | R13: $ Allowable Charge | S13: $ To Be Reviewed | T13: Reviewed - Allowable Charge | U13: Reviewed - Unallowable Charge | V13: Tickmarks
B14: 1 | N14: =IF(AND(G14>='A - Contractor Summary'!$C$36,G14<='A - Contractor Summary'!$C$38),"Yes",IF(G14<'A - Contractor Summary'!$C$36,"No",IF(G14>'A - Contractor Summary'!$C$39,"",""))) -> No | O14: =IF(OR(N14="Yes",N14="No")*AND(G14<'A - Contractor Summary'!$C$39),"",IF(AND(G14>'A - Contractor Summary'!$C$39,G14<'A - Contractor Summary'!$C$42),"Yes",IF(G14>'A - Contractor Summary'!$C$42,"No","Needs Review"))) ->  | P14: Yes | Q14: =IF(AND(P14="Yes",L14="Yes",M14="Yes")*OR(O14="Yes",N14="Yes"),"Yes",IF(OR(L14="No",N14="No",O14="No",P14="No",M14="No"),"No","Needs Review")) -> No | R14: =IF(Q14="Yes",K14,0) -> 0 | S14: =IF(Q14="Needs Review",K14,0) -> 0 | T14: 0 | U14: 0
B15: 2 | N15: =IF(AND(G15>='A - Contractor Summary'!$C$36,G15<='A - Contractor Summary'!$C$38),"Yes",IF(G15<'A - Contractor Summary'!$C$36,"No",IF(G15>'A - Contractor Summary'!$C$39,"",""))) -> No | O15: =IF(OR(N15="Yes",N15="No")*AND(G15<'A - Contractor Summary'!$C$39),"",IF(AND(G15>'A - Contractor Summary'!$C$39,G15<'A - Contractor Summary'!$C$42),"Yes",IF(G15>'A - Contractor Summary'!$C$42,"No","Needs Review"))) ->  | P15: Yes | Q15: No | R15: 0 | S15: 0 | T15: 0 | U15: 0
B16: 3 | N16: =IF(AND(G16>='A - Contractor Summary'!$C$36,G16<='A - Contractor Summary'!$C$38),"Yes",IF(G16<'A - Contractor Summary'!$C$36,"No",IF(G16>'A - Contractor Summary'!$C$39,"",""))) -> No | O16: =IF(OR(N16="Yes",N16="No")*AND(G16<'A - Contractor Summary'!$C$39),"",IF(AND(G16>'A - Contractor Summary'!$C$39,G16<'A - Contractor Summary'!$C$42),"Yes",IF(G16>'A - Contractor Summary'!$C$42,"No","Needs Review"))) ->  | P16: Yes | Q16: No | R16: 0 | S16: 0 | T16: 0 | U16: 0
B17: 4 | N17: =IF(AND(G17>='A - Contractor Summary'!$C$36,G17<='A - Contractor Summary'!$C$38),"Yes",IF(G17<'A - Contractor Summary'!$C$36,"No",IF(G17>'A - Contractor Summary'!$C$39,"",""))) -> No | O17: =IF(OR(N17="Yes",N17="No")*AND(G17<'A - Contractor Summary'!$C$39),"",IF(AND(G17>'A - Contractor Summary'!$C$39,G17<'A - Contractor Summary'!$C$42),"Yes",IF(G17>'A - Contractor Summary'!$C$42,"No","Needs Review"))) ->  | P17: Yes | Q17: No | R17: 0 | S17: 0 | T17: 0 | U17: 0
B18: 5 | N18: =IF(AND(G18>='A - Contractor Summary'!$C$36,G18<='A - Contractor Summary'!$C$38),"Yes",IF(G18<'A - Contractor Summary'!$C$36,"No",IF(G18>'A - Contractor Summary'!$C$39,"",""))) -> No | O18: =IF(OR(N18="Yes",N18="No")*AND(G18<'A - Contractor Summary'!$C$39),"",IF(AND(G18>'A - Contractor Summary'!$C$39,G18<'A - Contractor Summary'!$C$42),"Yes",IF(G18>'A - Contractor Summary'!$C$42,"No","Needs Review"))) ->  | P18: No | Q18: No | R18: 0 | S18: 0 | T18: 0 | U18: 0
B19: 6 | N19: =IF(AND(G19>='A - Contractor Summary'!$C$36,G19<='A - Contractor Summary'!$C$38),"Yes",IF(G19<'A - Contractor Summary'!$C$36,"No",IF(G19>'A - Contractor Summary'!$C$39,"",""))) -> No | O19: =IF(OR(N19="Yes",N19="No")*AND(G19<'A - Contractor Summary'!$C$39),"",IF(AND(G19>'A - Contractor Summary'!$C$39,G19<'A - Contractor Summary'!$C$42),"Yes",IF(G19>'A - Contractor Summary'!$C$42,"No","Needs Review"))) ->  | P19: Yes | Q19: No | R19: 0 | S19: 0
B20: 7 | N20: =IF(AND(G20>='A - Contractor Summary'!$C$36,G20<='A - Contractor Summary'!$C$38),"Yes",IF(G20<'A - Contractor Summary'!$C$36,"No",IF(G20>'A - Contractor Summary'!$C$39,"",""))) -> No | O20: =IF(OR(N20="Yes",N20="No")*AND(G20<'A - Contractor Summary'!$C$39),"",IF(AND(G20>'A - Contractor Summary'!$C$39,G20<'A - Contractor Summary'!$C$42),"Yes",IF(G20>'A - Contractor Summary'!$C$42,"No","Needs Review"))) ->  | P20: Yes | Q20: No | R20: 0 | S20: 0
B21: 8 | N21: =IF(AND(G21>='A - Contractor Summary'!$C$36,G21<='A - Contractor Summary'!$C$38),"Yes",IF(G21<'A - Contractor Summary'!$C$36,"No",IF(G21>'A - Contractor Summary'!$C$39,"",""))) -> No | O21: =IF(OR(N21="Yes",N21="No")*AND(G21<'A - Contractor Summary'!$C$39),"",IF(AND(G21>'A - Contractor Summary'!$C$39,G21<'A - Contractor Summary'!$C$42),"Yes",IF(G21>'A - Contractor Summary'!$C$42,"No","Needs Review"))) ->  | P21: Yes | Q21: No | R21: 0 | S21: 0
B22: 9 | N22: =IF(AND(G22>='A - Contractor Summary'!$C$36,G22<='A - Contractor Summary'!$C$38),"Yes",IF(G22<'A - Contractor Summary'!$C$36,"No",IF(G22>'A - Contractor Summary'!$C$39,"",""))) -> No | O22: =IF(OR(N22="Yes",N22="No")*AND(G22<'A - Contractor Summary'!$C$39),"",IF(AND(G22>'A - Contractor Summary'!$C$39,G22<'A - Contractor Summary'!$C$42),"Yes",IF(G22>'A - Contractor Summary'!$C$42,"No","Needs Review"))) ->  | P22: Yes | Q22: No | R22: 0 | S22: 0
B23: 10 | N23: =IF(AND(G23>='A - Contractor Summary'!$C$36,G23<='A - Contractor Summary'!$C$38),"Yes",IF(G23<'A - Contractor Summary'!$C$36,"No",IF(G23>'A - Contractor Summary'!$C$39,"",""))) -> No | O23: =IF(OR(N23="Yes",N23="No")*AND(G23<'A - Contractor Summary'!$C$39),"",IF(AND(G23>'A - Contractor Summary'!$C$39,G23<'A - Contractor Summary'!$C$42),"Yes",IF(G23>'A - Contractor Summary'!$C$42,"No","Needs Review"))) ->  | P23: Yes | Q23: No | R23: 0 | S23: 0 | T23: 0 | U23: 0
B24: 11 | N24: =IF(AND(G24>='A - Contractor Summary'!$C$36,G24<='A - Contractor Summary'!$C$38),"Yes",IF(G24<'A - Contractor Summary'!$C$36,"No",IF(G24>'A - Contractor Summary'!$C$39,"",""))) -> No | O24: =IF(OR(N24="Yes",N24="No")*AND(G24<'A - Contractor Summary'!$C$39),"",IF(AND(G24>'A - Contractor Summary'!$C$39,G24<'A - Contractor Summary'!$C$42),"Yes",IF(G24>'A - Contractor Summary'!$C$42,"No","Needs Review"))) ->  | P24: Yes | Q24: No | R24: 0 | S24: 0 | T24: 0 | U24: 0
B25: 12 | N25: =IF(AND(G25>='A - Contractor Summary'!$C$36,G25<='A - Contractor Summary'!$C$38),"Yes",IF(G25<'A - Contractor Summary'!$C$36,"No",IF(G25>'A - Contractor Summary'!$C$39,"",""))) -> No | O25: =IF(OR(N25="Yes",N25="No")*AND(G25<'A - Contractor Summary'!$C$39),"",IF(AND(G25>'A - Contractor Summary'!$C$39,G25<'A - Contractor Summary'!$C$42),"Yes",IF(G25>'A - Contractor Summary'!$C$42,"No","Needs Review"))) ->  | P25: Yes | Q25: No | R25: 0 | S25: 0 | T25: 0 | U25: 0
B26: 13 | N26: =IF(AND(G26>='A - Contractor Summary'!$C$36,G26<='A - Contractor Summary'!$C$38),"Yes",IF(G26<'A - Contractor Summary'!$C$36,"No",IF(G26>'A - Contractor Summary'!$C$39,"",""))) -> No | O26: =IF(OR(N26="Yes",N26="No")*AND(G26<'A - Contractor Summary'!$C$39),"",IF(AND(G26>'A - Contractor Summary'!$C$39,G26<'A - Contractor Summary'!$C$42),"Yes",IF(G26>'A - Contractor Summary'!$C$42,"No","Needs Review"))) ->  | P26: Yes | Q26: No | R26: 0 | S26: 0 | T26: 0 | U26: 0
B27: 14 | N27: =IF(AND(G27>='A - Contractor Summary'!$C$36,G27<='A - Contractor Summary'!$C$38),"Yes",IF(G27<'A - Contractor Summary'!$C$36,"No",IF(G27>'A - Contractor Summary'!$C$39,"",""))) -> No | O27: =IF(OR(N27="Yes",N27="No")*AND(G27<'A - Contractor Summary'!$C$39),"",IF(AND(G27>'A - Contractor Summary'!$C$39,G27<'A - Contractor Summary'!$C$42),"Yes",IF(G27>'A - Contractor Summary'!$C$42,"No","Needs Review"))) ->  | P27: Yes | Q27: No | R27: 0 | S27: 0 | T27: 0 | U27: 0
B28: 15 | N28: =IF(AND(G28>='A - Contractor Summary'!$C$36,G28<='A - Contractor Summary'!$C$38),"Yes",IF(G28<'A - Contractor Summary'!$C$36,"No",IF(G28>'A - Contractor Summary'!$C$39,"",""))) -> No | O28: =IF(OR(N28="Yes",N28="No")*AND(G28<'A - Contractor Summary'!$C$39),"",IF(AND(G28>'A - Contractor Summary'!$C$39,G28<'A - Contractor Summary'!$C$42),"Yes",IF(G28>'A - Contractor Summary'!$C$42,"No","Needs Review"))) ->  | P28: Yes | Q28: No | R28: 0 | S28: 0 | T28: 0 | U28: 0
B29: 16 | N29: =IF(AND(G29>='A - Contractor Summary'!$C$36,G29<='A - Contractor Summary'!$C$38),"Yes",IF(G29<'A - Contractor Summary'!$C$36,"No",IF(G29>'A - Contractor Summary'!$C$39,"",""))) -> No | O29: =IF(OR(N29="Yes",N29="No")*AND(G29<'A - Contractor Summary'!$C$39),"",IF(AND(G29>'A - Contractor Summary'!$C$39,G29<'A - Contractor Summary'!$C$42),"Yes",IF(G29>'A - Contractor Summary'!$C$42,"No","Needs Review"))) ->  | P29: No | Q29: No | R29: 0 | S29: 0 | T29: 0 | U29: 0
B30: 17 | N30: =IF(AND(G30>='A - Contractor Summary'!$C$36,G30<='A - Contractor Summary'!$C$38),"Yes",IF(G30<'A - Contractor Summary'!$C$36,"No",IF(G30>'A - Contractor Summary'!$C$39,"",""))) -> No | O30: =IF(OR(N30="Yes",N30="No")*AND(G30<'A - Contractor Summary'!$C$39),"",IF(AND(G30>'A - Contractor Summary'!$C$39,G30<'A - Contractor Summary'!$C$42),"Yes",IF(G30>'A - Contractor Summary'!$C$42,"No","Needs Review"))) ->  | P30: Yes | Q30: No | R30: 0 | S30: 0
B31: 18 | N31: =IF(AND(G31>='A - Contractor Summary'!$C$36,G31<='A - Contractor Summary'!$C$38),"Yes",IF(G31<'A - Contractor Summary'!$C$36,"No",IF(G31>'A - Contractor Summary'!$C$39,"",""))) -> No | O31: =IF(OR(N31="Yes",N31="No")*AND(G31<'A - Contractor Summary'!$C$39),"",IF(AND(G31>'A - Contractor Summary'!$C$39,G31<'A - Contractor Summary'!$C$42),"Yes",IF(G31>'A - Contractor Summary'!$C$42,"No","Needs Review"))) ->  | P31: Yes | Q31: No | R31: 0 | S31: 0
B32: 19 | N32: =IF(AND(G32>='A - Contractor Summary'!$C$36,G32<='A - Contractor Summary'!$C$38),"Yes",IF(G32<'A - Contractor Summary'!$C$36,"No",IF(G32>'A - Contractor Summary'!$C$39,"",""))) -> No | O32: =IF(OR(N32="Yes",N32="No")*AND(G32<'A - Contractor Summary'!$C$39),"",IF(AND(G32>'A - Contractor Summary'!$C$39,G32<'A - Contractor Summary'!$C$42),"Yes",IF(G32>'A - Contractor Summary'!$C$42,"No","Needs Review"))) ->  | P32: Yes | Q32: No | R32: 0 | S32: 0 | T32: 0 | U32: 0
B33: 20 | N33: =IF(AND(G33>='A - Contractor Summary'!$C$36,G33<='A - Contractor Summary'!$C$38),"Yes",IF(G33<'A - Contractor Summary'!$C$36,"No",IF(G33>'A - Contractor Summary'!$C$39,"",""))) -> No | O33: =IF(OR(N33="Yes",N33="No")*AND(G33<'A - Contractor Summary'!$C$39),"",IF(AND(G33>'A - Contractor Summary'!$C$39,G33<'A - Contractor Summary'!$C$42),"Yes",IF(G33>'A - Contractor Summary'!$C$42,"No","Needs Review"))) ->  | P33: Yes | Q33: No | R33: 0 | S33: 0
B34: 21 | N34: =IF(AND(G34>='A - Contractor Summary'!$C$36,G34<='A - Contractor Summary'!$C$38),"Yes",IF(G34<'A - Contractor Summary'!$C$36,"No",IF(G34>'A - Contractor Summary'!$C$39,"",""))) -> No | O34: =IF(OR(N34="Yes",N34="No")*AND(G34<'A - Contractor Summary'!$C$39),"",IF(AND(G34>'A - Contractor Summary'!$C$39,G34<'A - Contractor Summary'!$C$42),"Yes",IF(G34>'A - Contractor Summary'!$C$42,"No","Needs Review"))) ->  | P34: Yes | Q34: No | R34: 0 | S34: 0
B35: 22 | N35: =IF(AND(G35>='A - Contractor Summary'!$C$36,G35<='A - Contractor Summary'!$C$38),"Yes",IF(G35<'A - Contractor Summary'!$C$36,"No",IF(G35>'A - Contractor Summary'!$C$39,"",""))) -> No | O35: =IF(OR(N35="Yes",N35="No")*AND(G35<'A - Contractor Summary'!$C$39),"",IF(AND(G35>'A - Contractor Summary'!$C$39,G35<'A - Contractor Summary'!$C$42),"Yes",IF(G35>'A - Contractor Summary'!$C$42,"No","Needs Review"))) ->  | P35: Yes | Q35: No | R35: 0 | S35: 0 | T35: 0 | U35: 0
B36: 23 | N36: =IF(AND(G36>='A - Contractor Summary'!$C$36,G36<='A - Contractor Summary'!$C$38),"Yes",IF(G36<'A - Contractor Summary'!$C$36,"No",IF(G36>'A - Contractor Summary'!$C$39,"",""))) -> No | O36: =IF(OR(N36="Yes",N36="No")*AND(G36<'A - Contractor Summary'!$C$39),"",IF(AND(G36>'A - Contractor Summary'!$C$39,G36<'A - Contractor Summary'!$C$42),"Yes",IF(G36>'A - Contractor Summary'!$C$42,"No","Needs Review"))) ->  | P36: Yes | Q36: No | R36: 0 | S36: 0 | T36: 0 | U36: 0
B37: 24 | N37: =IF(AND(G37>='A - Contractor Summary'!$C$36,G37<='A - Contractor Summary'!$C$38),"Yes",IF(G37<'A - Contractor Summary'!$C$36,"No",IF(G37>'A - Contractor Summary'!$C$39,"",""))) -> No | O37: =IF(OR(N37="Yes",N37="No")*AND(G37<'A - Contractor Summary'!$C$39),"",IF(AND(G37>'A - Contractor Summary'!$C$39,G37<'A - Contractor Summary'!$C$42),"Yes",IF(G37>'A - Contractor Summary'!$C$42,"No","Needs Review"))) ->  | P37: Yes | Q37: No | R37: 0 | S37: 0
B38: 25 | N38: =IF(AND(G38>='A - Contractor Summary'!$C$36,G38<='A - Contractor Summary'!$C$38),"Yes",IF(G38<'A - Contractor Summary'!$C$36,"No",IF(G38>'A - Contractor Summary'!$C$39,"",""))) -> No | O38: =IF(OR(N38="Yes",N38="No")*AND(G38<'A - Contractor Summary'!$C$39),"",IF(AND(G38>'A - Contractor Summary'!$C$39,G38<'A - Contractor Summary'!$C$42),"Yes",IF(G38>'A - Contractor Summary'!$C$42,"No","Needs Review"))) ->  | P38: Yes | Q38: No | R38: 0 | S38: 0
B39: 26 | N39: =IF(AND(G39>='A - Contractor Summary'!$C$36,G39<='A - Contractor Summary'!$C$38),"Yes",IF(G39<'A - Contractor Summary'!$C$36,"No",IF(G39>'A - Contractor Summary'!$C$39,"",""))) -> No | O39: =IF(OR(N39="Yes",N39="No")*AND(G39<'A - Contractor Summary'!$C$39),"",IF(AND(G39>'A - Contractor Summary'!$C$39,G39<'A - Contractor Summary'!$C$42),"Yes",IF(G39>'A - Contractor Summary'!$C$42,"No","Needs Review"))) ->  | P39: Yes | Q39: No | R39: 0 | S39: 0
B40: 27 | N40: =IF(AND(G40>='A - Contractor Summary'!$C$36,G40<='A - Contractor Summary'!$C$38),"Yes",IF(G40<'A - Contractor Summary'!$C$36,"No",IF(G40>'A - Contractor Summary'!$C$39,"",""))) -> No | O40: =IF(OR(N40="Yes",N40="No")*AND(G40<'A - Contractor Summary'!$C$39),"",IF(AND(G40>'A - Contractor Summary'!$C$39,G40<'A - Contractor Summary'!$C$42),"Yes",IF(G40>'A - Contractor Summary'!$C$42,"No","Needs Review"))) ->  | P40: Yes | Q40: No | R40: 0 | S40: 0
B41: 28 | N41: =IF(AND(G41>='A - Contractor Summary'!$C$36,G41<='A - Contractor Summary'!$C$38),"Yes",IF(G41<'A - Contractor Summary'!$C$36,"No",IF(G41>'A - Contractor Summary'!$C$39,"",""))) -> No | O41: =IF(OR(N41="Yes",N41="No")*AND(G41<'A - Contractor Summary'!$C$39),"",IF(AND(G41>'A - Contractor Summary'!$C$39,G41<'A - Contractor Summary'!$C$42),"Yes",IF(G41>'A - Contractor Summary'!$C$42,"No","Needs Review"))) ->  | P41: Yes | Q41: No | R41: 0 | S41: 0 | T41: 0 | U41: 0
B42: 29 | N42: =IF(AND(G42>='A - Contractor Summary'!$C$36,G42<='A - Contractor Summary'!$C$38),"Yes",IF(G42<'A - Contractor Summary'!$C$36,"No",IF(G42>'A - Contractor Summary'!$C$39,"",""))) -> No | O42: =IF(OR(N42="Yes",N42="No")*AND(G42<'A - Contractor Summary'!$C$39),"",IF(AND(G42>'A - Contractor Summary'!$C$39,G42<'A - Contractor Summary'!$C$42),"Yes",IF(G42>'A - Contractor Summary'!$C$42,"No","Needs Review"))) ->  | P42: Yes | Q42: No | R42: 0 | S42: 0
B43: 30 | N43: =IF(AND(G43>='A - Contractor Summary'!$C$36,G43<='A - Contractor Summary'!$C$38),"Yes",IF(G43<'A - Contractor Summary'!$C$36,"No",IF(G43>'A - Contractor Summary'!$C$39,"",""))) -> No | O43: =IF(OR(N43="Yes",N43="No")*AND(G43<'A - Contractor Summary'!$C$39),"",IF(AND(G43>'A - Contractor Summary'!$C$39,G43<'A - Contractor Summary'!$C$42),"Yes",IF(G43>'A - Contractor Summary'!$C$42,"No","Needs Review"))) ->  | P43: Yes | Q43: No | R43: 0 | S43: 0
B44: 31 | N44: =IF(AND(G44>='A - Contractor Summary'!$C$36,G44<='A - Contractor Summary'!$C$38),"Yes",IF(G44<'A - Contractor Summary'!$C$36,"No",IF(G44>'A - Contractor Summary'!$C$39,"",""))) -> No | O44: =IF(OR(N44="Yes",N44="No")*AND(G44<'A - Contractor Summary'!$C$39),"",IF(AND(G44>'A - Contractor Summary'!$C$39,G44<'A - Contractor Summary'!$C$42),"Yes",IF(G44>'A - Contractor Summary'!$C$42,"No","Needs Review"))) ->  | P44: Yes | Q44: No | R44: 0 | S44: 0
B45: 32 | N45: =IF(AND(G45>='A - Contractor Summary'!$C$36,G45<='A - Contractor Summary'!$C$38),"Yes",IF(G45<'A - Contractor Summary'!$C$36,"No",IF(G45>'A - Contractor Summary'!$C$39,"",""))) -> No | O45: =IF(OR(N45="Yes",N45="No")*AND(G45<'A - Contractor Summary'!$C$39),"",IF(AND(G45>'A - Contractor Summary'!$C$39,G45<'A - Contractor Summary'!$C$42),"Yes",IF(G45>'A - Contractor Summary'!$C$42,"No","Needs Review"))) ->  | P45: Yes | Q45: No | R45: 0 | S45: 0
B46: 33 | N46: =IF(AND(G46>='A - Contractor Summary'!$C$36,G46<='A - Contractor Summary'!$C$38),"Yes",IF(G46<'A - Contractor Summary'!$C$36,"No",IF(G46>'A - Contractor Summary'!$C$39,"",""))) -> No | O46: =IF(OR(N46="Yes",N46="No")*AND(G46<'A - Contractor Summary'!$C$39),"",IF(AND(G46>'A - Contractor Summary'!$C$39,G46<'A - Contractor Summary'!$C$42),"Yes",IF(G46>'A - Contractor Summary'!$C$42,"No","Needs Review"))) ->  | P46: Yes | Q46: =IF(AND(P46="Yes",L46="Yes",M46="Yes")*OR(O46="Yes",N46="Yes"),"Yes",IF(OR(L46="No",N46="No",O46="No",P46="No",M46="No"),"No","Needs Review")) -> No | R46: =IF(Q46="Yes",K46,0) -> 0 | S46: =IF(Q46="Needs Review",K46,0) -> 0
B47: 34 | N47: =IF(AND(G47>='A - Contractor Summary'!$C$36,G47<='A - Contractor Summary'!$C$38),"Yes",IF(G47<'A - Contractor Summary'!$C$36,"No",IF(G47>'A - Contractor Summary'!$C$39,"",""))) -> No | O47: =IF(OR(N47="Yes",N47="No")*AND(G47<'A - Contractor Summary'!$C$39),"",IF(AND(G47>'A - Contractor Summary'!$C$39,G47<'A - Contractor Summary'!$C$42),"Yes",IF(G47>'A - Contractor Summary'!$C$42,"No","Needs Review"))) ->  | P47: Yes | Q47: No | R47: 0 | S47: 0
B48: 35 | N48: =IF(AND(G48>='A - Contractor Summary'!$C$36,G48<='A - Contractor Summary'!$C$38),"Yes",IF(G48<'A - Contractor Summary'!$C$36,"No",IF(G48>'A - Contractor Summary'!$C$39,"",""))) -> No | O48: =IF(OR(N48="Yes",N48="No")*AND(G48<'A - Contractor Summary'!$C$39),"",IF(AND(G48>'A - Contractor Summary'!$C$39,G48<'A - Contractor Summary'!$C$42),"Yes",IF(G48>'A - Contractor Summary'!$C$42,"No","Needs Review"))) ->  | P48: Yes | Q48: No | R48: 0 | S48: 0 | T48: 0 | U48: 0
B49: 36 | N49: =IF(AND(G49>='A - Contractor Summary'!$C$36,G49<='A - Contractor Summary'!$C$38),"Yes",IF(G49<'A - Contractor Summary'!$C$36,"No",IF(G49>'A - Contractor Summary'!$C$39,"",""))) -> No | O49: =IF(OR(N49="Yes",N49="No")*AND(G49<'A - Contractor Summary'!$C$39),"",IF(AND(G49>'A - Contractor Summary'!$C$39,G49<'A - Contractor Summary'!$C$42),"Yes",IF(G49>'A - Contractor Summary'!$C$42,"No","Needs Review"))) ->  | P49: Yes | Q49: No | R49: 0 | S49: 0
B50: 37 | N50: =IF(AND(G50>='A - Contractor Summary'!$C$36,G50<='A - Contractor Summary'!$C$38),"Yes",IF(G50<'A - Contractor Summary'!$C$36,"No",IF(G50>'A - Contractor Summary'!$C$39,"",""))) -> No | O50: =IF(OR(N50="Yes",N50="No")*AND(G50<'A - Contractor Summary'!$C$39),"",IF(AND(G50>'A - Contractor Summary'!$C$39,G50<'A - Contractor Summary'!$C$42),"Yes",IF(G50>'A - Contractor Summary'!$C$42,"No","Needs Review"))) ->  | P50: Yes | Q50: No | R50: 0 | S50: 0
B51: 38 | N51: =IF(AND(G51>='A - Contractor Summary'!$C$36,G51<='A - Contractor Summary'!$C$38),"Yes",IF(G51<'A - Contractor Summary'!$C$36,"No",IF(G51>'A - Contractor Summary'!$C$39,"",""))) -> No | O51: =IF(OR(N51="Yes",N51="No")*AND(G51<'A - Contractor Summary'!$C$39),"",IF(AND(G51>'A - Contractor Summary'!$C$39,G51<'A - Contractor Summary'!$C$42),"Yes",IF(G51>'A - Contractor Summary'!$C$42,"No","Needs Review"))) ->  | P51: Yes | Q51: No | R51: 0 | S51: 0
B52: 39 | N52: =IF(AND(G52>='A - Contractor Summary'!$C$36,G52<='A - Contractor Summary'!$C$38),"Yes",IF(G52<'A - Contractor Summary'!$C$36,"No",IF(G52>'A - Contractor Summary'!$C$39,"",""))) -> No | O52: =IF(OR(N52="Yes",N52="No")*AND(G52<'A - Contractor Summary'!$C$39),"",IF(AND(G52>'A - Contractor Summary'!$C$39,G52<'A - Contractor Summary'!$C$42),"Yes",IF(G52>'A - Contractor Summary'!$C$42,"No","Needs Review"))) ->  | P52: Yes | Q52: No | R52: 0 | S52: 0 | T52: 0 | U52: 0
B53: 40 | N53: =IF(AND(G53>='A - Contractor Summary'!$C$36,G53<='A - Contractor Summary'!$C$38),"Yes",IF(G53<'A - Contractor Summary'!$C$36,"No",IF(G53>'A - Contractor Summary'!$C$39,"",""))) -> No | O53: =IF(OR(N53="Yes",N53="No")*AND(G53<'A - Contractor Summary'!$C$39),"",IF(AND(G53>'A - Contractor Summary'!$C$39,G53<'A - Contractor Summary'!$C$42),"Yes",IF(G53>'A - Contractor Summary'!$C$42,"No","Needs Review"))) ->  | P53: Yes | Q53: No | R53: 0 | S53: 0 | T53: 0 | U53: 0
B54: 41 | N54: =IF(AND(G54>='A - Contractor Summary'!$C$36,G54<='A - Contractor Summary'!$C$38),"Yes",IF(G54<'A - Contractor Summary'!$C$36,"No",IF(G54>'A - Contractor Summary'!$C$39,"",""))) -> No | O54: =IF(OR(N54="Yes",N54="No")*AND(G54<'A - Contractor Summary'!$C$39),"",IF(AND(G54>'A - Contractor Summary'!$C$39,G54<'A - Contractor Summary'!$C$42),"Yes",IF(G54>'A - Contractor Summary'!$C$42,"No","Needs Review"))) ->  | P54: Yes | Q54: No | R54: 0 | S54: 0
B55: 42 | N55: =IF(AND(G55>='A - Contractor Summary'!$C$36,G55<='A - Contractor Summary'!$C$38),"Yes",IF(G55<'A - Contractor Summary'!$C$36,"No",IF(G55>'A - Contractor Summary'!$C$39,"",""))) -> No | O55: =IF(OR(N55="Yes",N55="No")*AND(G55<'A - Contractor Summary'!$C$39),"",IF(AND(G55>'A - Contractor Summary'!$C$39,G55<'A - Contractor Summary'!$C$42),"Yes",IF(G55>'A - Contractor Summary'!$C$42,"No","Needs Review"))) ->  | P55: No | Q55: No | R55: 0 | S55: 0 | T55: 0 | U55: 0
B56: 43 | N56: =IF(AND(G56>='A - Contractor Summary'!$C$36,G56<='A - Contractor Summary'!$C$38),"Yes",IF(G56<'A - Contractor Summary'!$C$36,"No",IF(G56>'A - Contractor Summary'!$C$39,"",""))) -> No | O56: =IF(OR(N56="Yes",N56="No")*AND(G56<'A - Contractor Summary'!$C$39),"",IF(AND(G56>'A - Contractor Summary'!$C$39,G56<'A - Contractor Summary'!$C$42),"Yes",IF(G56>'A - Contractor Summary'!$C$42,"No","Needs Review"))) ->  | P56: Yes | Q56: No | R56: 0 | S56: 0 | T56: 0 | U56: 0
B57: 44 | N57: =IF(AND(G57>='A - Contractor Summary'!$C$36,G57<='A - Contractor Summary'!$C$38),"Yes",IF(G57<'A - Contractor Summary'!$C$36,"No",IF(G57>'A - Contractor Summary'!$C$39,"",""))) -> No | O57: =IF(OR(N57="Yes",N57="No")*AND(G57<'A - Contractor Summary'!$C$39),"",IF(AND(G57>'A - Contractor Summary'!$C$39,G57<'A - Contractor Summary'!$C$42),"Yes",IF(G57>'A - Contractor Summary'!$C$42,"No","Needs Review"))) ->  | P57: Yes | Q57: No | R57: 0 | S57: 0
B58: 46 | N58: =IF(AND(G58>='A - Contractor Summary'!$C$36,G58<='A - Contractor Summary'!$C$38),"Yes",IF(G58<'A - Contractor Summary'!$C$36,"No",IF(G58>'A - Contractor Summary'!$C$39,"",""))) -> No | O58: =IF(OR(N58="Yes",N58="No")*AND(G58<'A - Contractor Summary'!$C$39),"",IF(AND(G58>'A - Contractor Summary'!$C$39,G58<'A - Contractor Summary'!$C$42),"Yes",IF(G58>'A - Contractor Summary'!$C$42,"No","Needs Review"))) ->  | P58: Yes | Q58: No | R58: 0 | S58: 0
B59: 47 | N59: =IF(AND(G59>='A - Contractor Summary'!$C$36,G59<='A - Contractor Summary'!$C$38),"Yes",IF(G59<'A - Contractor Summary'!$C$36,"No",IF(G59>'A - Contractor Summary'!$C$39,"",""))) -> No | O59: =IF(OR(N59="Yes",N59="No")*AND(G59<'A - Contractor Summary'!$C$39),"",IF(AND(G59>'A - Contractor Summary'!$C$39,G59<'A - Contractor Summary'!$C$42),"Yes",IF(G59>'A - Contractor Summary'!$C$42,"No","Needs Review"))) ->  | P59: Yes | Q59: No | R59: 0 | S59: 0
B60: 48 | N60: =IF(AND(G60>='A - Contractor Summary'!$C$36,G60<='A - Contractor Summary'!$C$38),"Yes",IF(G60<'A - Contractor Summary'!$C$36,"No",IF(G60>'A - Contractor Summary'!$C$39,"",""))) -> No | O60: =IF(OR(N60="Yes",N60="No")*AND(G60<'A - Contractor Summary'!$C$39),"",IF(AND(G60>'A - Contractor Summary'!$C$39,G60<'A - Contractor Summary'!$C$42),"Yes",IF(G60>'A - Contractor Summary'!$C$42,"No","Needs Review"))) ->  | P60: Yes | Q60: No | R60: 0 | S60: 0
B61: 49 | N61: =IF(AND(G61>='A - Contractor Summary'!$C$36,G61<='A - Contractor Summary'!$C$38),"Yes",IF(G61<'A - Contractor Summary'!$C$36,"No",IF(G61>'A - Contractor Summary'!$C$39,"",""))) -> No | O61: =IF(OR(N61="Yes",N61="No")*AND(G61<'A - Contractor Summary'!$C$39),"",IF(AND(G61>'A - Contractor Summary'!$C$39,G61<'A - Contractor Summary'!$C$42),"Yes",IF(G61>'A - Contractor Summary'!$C$42,"No","Needs Review"))) ->  | P61: Yes | Q61: No | R61: 0 | S61: 0
B62: 50 | N62: =IF(AND(G62>='A - Contractor Summary'!$C$36,G62<='A - Contractor Summary'!$C$38),"Yes",IF(G62<'A - Contractor Summary'!$C$36,"No",IF(G62>'A - Contractor Summary'!$C$39,"",""))) -> No | O62: =IF(OR(N62="Yes",N62="No")*AND(G62<'A - Contractor Summary'!$C$39),"",IF(AND(G62>'A - Contractor Summary'!$C$39,G62<'A - Contractor Summary'!$C$42),"Yes",IF(G62>'A - Contractor Summary'!$C$42,"No","Needs Review"))) ->  | P62: Yes | Q62: No | R62: 0 | S62: 0
B63: 51 | N63: =IF(AND(G63>='A - Contractor Summary'!$C$36,G63<='A - Contractor Summary'!$C$38),"Yes",IF(G63<'A - Contractor Summary'!$C$36,"No",IF(G63>'A - Contractor Summary'!$C$39,"",""))) -> No | O63: =IF(OR(N63="Yes",N63="No")*AND(G63<'A - Contractor Summary'!$C$39),"",IF(AND(G63>'A - Contractor Summary'!$C$39,G63<'A - Contractor Summary'!$C$42),"Yes",IF(G63>'A - Contractor Summary'!$C$42,"No","Needs Review"))) ->  | P63: Yes | Q63: No | R63: 0 | S63: 0
B64: 52 | N64: =IF(AND(G64>='A - Contractor Summary'!$C$36,G64<='A - Contractor Summary'!$C$38),"Yes",IF(G64<'A - Contractor Summary'!$C$36,"No",IF(G64>'A - Contractor Summary'!$C$39,"",""))) -> No | O64: =IF(OR(N64="Yes",N64="No")*AND(G64<'A - Contractor Summary'!$C$39),"",IF(AND(G64>'A - Contractor Summary'!$C$39,G64<'A - Contractor Summary'!$C$42),"Yes",IF(G64>'A - Contractor Summary'!$C$42,"No","Needs Review"))) ->  | P64: Yes | Q64: No | R64: 0 | S64: 0
B65: 53 | N65: =IF(AND(G65>='A - Contractor Summary'!$C$36,G65<='A - Contractor Summary'!$C$38),"Yes",IF(G65<'A - Contractor Summary'!$C$36,"No",IF(G65>'A - Contractor Summary'!$C$39,"",""))) -> No | O65: =IF(OR(N65="Yes",N65="No")*AND(G65<'A - Contractor Summary'!$C$39),"",IF(AND(G65>'A - Contractor Summary'!$C$39,G65<'A - Contractor Summary'!$C$42),"Yes",IF(G65>'A - Contractor Summary'!$C$42,"No","Needs Review"))) ->  | P65: Yes | Q65: No | R65: 0 | S65: 0
B66: 54 | N66: =IF(AND(G66>='A - Contractor Summary'!$C$36,G66<='A - Contractor Summary'!$C$38),"Yes",IF(G66<'A - Contractor Summary'!$C$36,"No",IF(G66>'A - Contractor Summary'!$C$39,"",""))) -> No | O66: =IF(OR(N66="Yes",N66="No")*AND(G66<'A - Contractor Summary'!$C$39),"",IF(AND(G66>'A - Contractor Summary'!$C$39,G66<'A - Contractor Summary'!$C$42),"Yes",IF(G66>'A - Contractor Summary'!$C$42,"No","Needs Review"))) ->  | P66: Yes | Q66: No | R66: 0 | S66: 0
B67: 55 | N67: =IF(AND(G67>='A - Contractor Summary'!$C$36,G67<='A - Contractor Summary'!$C$38),"Yes",IF(G67<'A - Contractor Summary'!$C$36,"No",IF(G67>'A - Contractor Summary'!$C$39,"",""))) -> No | O67: =IF(OR(N67="Yes",N67="No")*AND(G67<'A - Contractor Summary'!$C$39),"",IF(AND(G67>'A - Contractor Summary'!$C$39,G67<'A - Contractor Summary'!$C$42),"Yes",IF(G67>'A - Contractor Summary'!$C$42,"No","Needs Review"))) ->  | P67: Yes | Q67: No | R67: 0 | S67: 0
B68: 56 | N68: =IF(AND(G68>='A - Contractor Summary'!$C$36,G68<='A - Contractor Summary'!$C$38),"Yes",IF(G68<'A - Contractor Summary'!$C$36,"No",IF(G68>'A - Contractor Summary'!$C$39,"",""))) -> No | O68: =IF(OR(N68="Yes",N68="No")*AND(G68<'A - Contractor Summary'!$C$39),"",IF(AND(G68>'A - Contractor Summary'!$C$39,G68<'A - Contractor Summary'!$C$42),"Yes",IF(G68>'A - Contractor Summary'!$C$42,"No","Needs Review"))) ->  | P68: Yes | Q68: No | R68: 0 | S68: 0
B69: 57 | N69: =IF(AND(G69>='A - Contractor Summary'!$C$36,G69<='A - Contractor Summary'!$C$38),"Yes",IF(G69<'A - Contractor Summary'!$C$36,"No",IF(G69>'A - Contractor Summary'!$C$39,"",""))) -> No | O69: =IF(OR(N69="Yes",N69="No")*AND(G69<'A - Contractor Summary'!$C$39),"",IF(AND(G69>'A - Contractor Summary'!$C$39,G69<'A - Contractor Summary'!$C$42),"Yes",IF(G69>'A - Contractor Summary'!$C$42,"No","Needs Review"))) ->  | P69: Yes | Q69: No | R69: 0 | S69: 0
B70: 58 | N70: =IF(AND(G70>='A - Contractor Summary'!$C$36,G70<='A - Contractor Summary'!$C$38),"Yes",IF(G70<'A - Contractor Summary'!$C$36,"No",IF(G70>'A - Contractor Summary'!$C$39,"",""))) -> No | O70: =IF(OR(N70="Yes",N70="No")*AND(G70<'A - Contractor Summary'!$C$39),"",IF(AND(G70>'A - Contractor Summary'!$C$39,G70<'A - Contractor Summary'!$C$42),"Yes",IF(G70>'A - Contractor Summary'!$C$42,"No","Needs Review"))) ->  | P70: No | Q70: Needs Review | R70: 0 | S70: 0
B71: 59 | N71: =IF(AND(G71>='A - Contractor Summary'!$C$36,G71<='A - Contractor Summary'!$C$38),"Yes",IF(G71<'A - Contractor Summary'!$C$36,"No",IF(G71>'A - Contractor Summary'!$C$39,"",""))) -> No | O71: =IF(OR(N71="Yes",N71="No")*AND(G71<'A - Contractor Summary'!$C$39),"",IF(AND(G71>'A - Contractor Summary'!$C$39,G71<'A - Contractor Summary'!$C$42),"Yes",IF(G71>'A - Contractor Summary'!$C$42,"No","Needs Review"))) ->  | P71: Yes | Q71: No | R71: 0 | S71: 0
B72: 61 | N72: =IF(AND(G72>='A - Contractor Summary'!$C$36,G72<='A - Contractor Summary'!$C$38),"Yes",IF(G72<'A - Contractor Summary'!$C$36,"No",IF(G72>'A - Contractor Summary'!$C$39,"",""))) -> No | O72: =IF(OR(N72="Yes",N72="No")*AND(G72<'A - Contractor Summary'!$C$39),"",IF(AND(G72>'A - Contractor Summary'!$C$39,G72<'A - Contractor Summary'!$C$42),"Yes",IF(G72>'A - Contractor Summary'!$C$42,"No","Needs Review"))) ->  | P72: Yes | Q72: No | R72: 0 | S72: 0
B73: 62 | N73: =IF(AND(G73>='A - Contractor Summary'!$C$36,G73<='A - Contractor Summary'!$C$38),"Yes",IF(G73<'A - Contractor Summary'!$C$36,"No",IF(G73>'A - Contractor Summary'!$C$39,"",""))) -> No | O73: =IF(OR(N73="Yes",N73="No")*AND(G73<'A - Contractor Summary'!$C$39),"",IF(AND(G73>'A - Contractor Summary'!$C$39,G73<'A - Contractor Summary'!$C$42),"Yes",IF(G73>'A - Contractor Summary'!$C$42,"No","Needs Review"))) ->  | P73: Yes | Q73: No | R73: 0 | S73: 0
B74: 63 | N74: =IF(AND(G74>='A - Contractor Summary'!$C$36,G74<='A - Contractor Summary'!$C$38),"Yes",IF(G74<'A - Contractor Summary'!$C$36,"No",IF(G74>'A - Contractor Summary'!$C$39,"",""))) -> No | O74: =IF(OR(N74="Yes",N74="No")*AND(G74<'A - Contractor Summary'!$C$39),"",IF(AND(G74>'A - Contractor Summary'!$C$39,G74<'A - Contractor Summary'!$C$42),"Yes",IF(G74>'A - Contractor Summary'!$C$42,"No","Needs Review"))) ->  | P74: Yes | Q74: No | R74: 0 | S74: 0
B75: 64 | N75: =IF(AND(G75>='A - Contractor Summary'!$C$36,G75<='A - Contractor Summary'!$C$38),"Yes",IF(G75<'A - Contractor Summary'!$C$36,"No",IF(G75>'A - Contractor Summary'!$C$39,"",""))) -> No | O75: =IF(OR(N75="Yes",N75="No")*AND(G75<'A - Contractor Summary'!$C$39),"",IF(AND(G75>'A - Contractor Summary'!$C$39,G75<'A - Contractor Summary'!$C$42),"Yes",IF(G75>'A - Contractor Summary'!$C$42,"No","Needs Review"))) ->  | P75: Yes | Q75: No | R75: 0 | S75: 0
B76: 65 | N76: =IF(AND(G76>='A - Contractor Summary'!$C$36,G76<='A - Contractor Summary'!$C$38),"Yes",IF(G76<'A - Contractor Summary'!$C$36,"No",IF(G76>'A - Contractor Summary'!$C$39,"",""))) -> No | O76: =IF(OR(N76="Yes",N76="No")*AND(G76<'A - Contractor Summary'!$C$39),"",IF(AND(G76>'A - Contractor Summary'!$C$39,G76<'A - Contractor Summary'!$C$42),"Yes",IF(G76>'A - Contractor Summary'!$C$42,"No","Needs Review"))) ->  | P76: No | Q76: No | R76: 0 | S76: 0
B77: 66 | N77: =IF(AND(G77>='A - Contractor Summary'!$C$36,G77<='A - Contractor Summary'!$C$38),"Yes",IF(G77<'A - Contractor Summary'!$C$36,"No",IF(G77>'A - Contractor Summary'!$C$39,"",""))) -> No | O77: =IF(OR(N77="Yes",N77="No")*AND(G77<'A - Contractor Summary'!$C$39),"",IF(AND(G77>'A - Contractor Summary'!$C$39,G77<'A - Contractor Summary'!$C$42),"Yes",IF(G77>'A - Contractor Summary'!$C$42,"No","Needs Review"))) ->  | P77: Yes | Q77: No | R77: 0 | S77: 0
B78: 67 | N78: =IF(AND(G78>='A - Contractor Summary'!$C$36,G78<='A - Contractor Summary'!$C$38),"Yes",IF(G78<'A - Contractor Summary'!$C$36,"No",IF(G78>'A - Contractor Summary'!$C$39,"",""))) -> No | O78: =IF(OR(N78="Yes",N78="No")*AND(G78<'A - Contractor Summary'!$C$39),"",IF(AND(G78>'A - Contractor Summary'!$C$39,G78<'A - Contractor Summary'!$C$42),"Yes",IF(G78>'A - Contractor Summary'!$C$42,"No","Needs Review"))) ->  | P78: No | Q78: Needs Review | R78: =IF(Q78="Yes",K78,0) -> 0 | S78: =IF(Q78="Needs Review",K78,0) -> 0
B79: 68 | N79: =IF(AND(G79>='A - Contractor Summary'!$C$36,G79<='A - Contractor Summary'!$C$38),"Yes",IF(G79<'A - Contractor Summary'!$C$36,"No",IF(G79>'A - Contractor Summary'!$C$39,"",""))) -> No | O79: =IF(OR(N79="Yes",N79="No")*AND(G79<'A - Contractor Summary'!$C$39),"",IF(AND(G79>'A - Contractor Summary'!$C$39,G79<'A - Contractor Summary'!$C$42),"Yes",IF(G79>'A - Contractor Summary'!$C$42,"No","Needs Review"))) ->  | P79: Yes | Q79: =IF(AND(P79="Yes",L79="Yes",M79="Yes")*OR(O79="Yes",N79="Yes"),"Yes",IF(OR(L79="No",N79="No",O79="No",P79="No",M79="No"),"No","Needs Review")) -> No | R79: 0 | S79: 0
B80: 69 | N80: =IF(AND(G80>='A - Contractor Summary'!$C$36,G80<='A - Contractor Summary'!$C$38),"Yes",IF(G80<'A - Contractor Summary'!$C$36,"No",IF(G80>'A - Contractor Summary'!$C$39,"",""))) -> No | O80: =IF(OR(N80="Yes",N80="No")*AND(G80<'A - Contractor Summary'!$C$39),"",IF(AND(G80>'A - Contractor Summary'!$C$39,G80<'A - Contractor Summary'!$C$42),"Yes",IF(G80>'A - Contractor Summary'!$C$42,"No","Needs Review"))) ->  | P80: Yes | Q80: No | R80: 0 | S80: 0
B81: 70 | N81: =IF(AND(G81>='A - Contractor Summary'!$C$36,G81<='A - Contractor Summary'!$C$38),"Yes",IF(G81<'A - Contractor Summary'!$C$36,"No",IF(G81>'A - Contractor Summary'!$C$39,"",""))) -> No | O81: =IF(OR(N81="Yes",N81="No")*AND(G81<'A - Contractor Summary'!$C$39),"",IF(AND(G81>'A - Contractor Summary'!$C$39,G81<'A - Contractor Summary'!$C$42),"Yes",IF(G81>'A - Contractor Summary'!$C$42,"No","Needs Review"))) ->  | P81: Yes | Q81: No | R81: 0 | S81: 0
B82: 71 | N82: =IF(AND(G82>='A - Contractor Summary'!$C$36,G82<='A - Contractor Summary'!$C$38),"Yes",IF(G82<'A - Contractor Summary'!$C$36,"No",IF(G82>'A - Contractor Summary'!$C$39,"",""))) -> No | O82: =IF(OR(N82="Yes",N82="No")*AND(G82<'A - Contractor Summary'!$C$39),"",IF(AND(G82>'A - Contractor Summary'!$C$39,G82<'A - Contractor Summary'!$C$42),"Yes",IF(G82>'A - Contractor Summary'!$C$42,"No","Needs Review"))) ->  | P82: Yes | Q82: No | R82: 0 | S82: 0
B83: 72 | N83: =IF(AND(G83>='A - Contractor Summary'!$C$36,G83<='A - Contractor Summary'!$C$38),"Yes",IF(G83<'A - Contractor Summary'!$C$36,"No",IF(G83>'A - Contractor Summary'!$C$39,"",""))) -> No | O83: =IF(OR(N83="Yes",N83="No")*AND(G83<'A - Contractor Summary'!$C$39),"",IF(AND(G83>'A - Contractor Summary'!$C$39,G83<'A - Contractor Summary'!$C$42),"Yes",IF(G83>'A - Contractor Summary'!$C$42,"No","Needs Review"))) ->  | P83: Yes | Q83: No | R83: 0 | S83: 0
B84: 73 | N84: =IF(AND(G84>='A - Contractor Summary'!$C$36,G84<='A - Contractor Summary'!$C$38),"Yes",IF(G84<'A - Contractor Summary'!$C$36,"No",IF(G84>'A - Contractor Summary'!$C$39,"",""))) -> No | O84: =IF(OR(N84="Yes",N84="No")*AND(G84<'A - Contractor Summary'!$C$39),"",IF(AND(G84>'A - Contractor Summary'!$C$39,G84<'A - Contractor Summary'!$C$42),"Yes",IF(G84>'A - Contractor Summary'!$C$42,"No","Needs Review"))) ->  | P84: No | Q84: Needs Review | R84: 0 | S84: 0
B85: 74 | N85: =IF(AND(G85>='A - Contractor Summary'!$C$36,G85<='A - Contractor Summary'!$C$38),"Yes",IF(G85<'A - Contractor Summary'!$C$36,"No",IF(G85>'A - Contractor Summary'!$C$39,"",""))) -> No | O85: =IF(OR(N85="Yes",N85="No")*AND(G85<'A - Contractor Summary'!$C$39),"",IF(AND(G85>'A - Contractor Summary'!$C$39,G85<'A - Contractor Summary'!$C$42),"Yes",IF(G85>'A - Contractor Summary'!$C$42,"No","Needs Review"))) ->  | P85: No | Q85: No | R85: 0 | S85: 0
B86: 75 | N86: =IF(AND(G86>='A - Contractor Summary'!$C$36,G86<='A - Contractor Summary'!$C$38),"Yes",IF(G86<'A - Contractor Summary'!$C$36,"No",IF(G86>'A - Contractor Summary'!$C$39,"",""))) -> No | O86: =IF(OR(N86="Yes",N86="No")*AND(G86<'A - Contractor Summary'!$C$39),"",IF(AND(G86>'A - Contractor Summary'!$C$39,G86<'A - Contractor Summary'!$C$42),"Yes",IF(G86>'A - Contractor Summary'!$C$42,"No","Needs Review"))) ->  | P86: Yes | Q86: No | R86: 0 | S86: 0
B87: 76 | N87: =IF(AND(G87>='A - Contractor Summary'!$C$36,G87<='A - Contractor Summary'!$C$38),"Yes",IF(G87<'A - Contractor Summary'!$C$36,"No",IF(G87>'A - Contractor Summary'!$C$39,"",""))) -> No | O87: =IF(OR(N87="Yes",N87="No")*AND(G87<'A - Contractor Summary'!$C$39),"",IF(AND(G87>'A - Contractor Summary'!$C$39,G87<'A - Contractor Summary'!$C$42),"Yes",IF(G87>'A - Contractor Summary'!$C$42,"No","Needs Review"))) ->  | P87: Yes | Q87: No | R87: 0 | S87: 0
B88: 77 | N88: =IF(AND(G88>='A - Contractor Summary'!$C$36,G88<='A - Contractor Summary'!$C$38),"Yes",IF(G88<'A - Contractor Summary'!$C$36,"No",IF(G88>'A - Contractor Summary'!$C$39,"",""))) -> No | O88: =IF(OR(N88="Yes",N88="No")*AND(G88<'A - Contractor Summary'!$C$39),"",IF(AND(G88>'A - Contractor Summary'!$C$39,G88<'A - Contractor Summary'!$C$42),"Yes",IF(G88>'A - Contractor Summary'!$C$42,"No","Needs Review"))) ->  | P88: Yes | Q88: No | R88: 0 | S88: 0
B89: 78 | N89: =IF(AND(G89>='A - Contractor Summary'!$C$36,G89<='A - Contractor Summary'!$C$38),"Yes",IF(G89<'A - Contractor Summary'!$C$36,"No",IF(G89>'A - Contractor Summary'!$C$39,"",""))) -> No | O89: =IF(OR(N89="Yes",N89="No")*AND(G89<'A - Contractor Summary'!$C$39),"",IF(AND(G89>'A - Contractor Summary'!$C$39,G89<'A - Contractor Summary'!$C$42),"Yes",IF(G89>'A - Contractor Summary'!$C$42,"No","Needs Review"))) ->  | P89: Yes | Q89: No | R89: 0 | S89: 0
B90: 79 | N90: =IF(AND(G90>='A - Contractor Summary'!$C$36,G90<='A - Contractor Summary'!$C$38),"Yes",IF(G90<'A - Contractor Summary'!$C$36,"No",IF(G90>'A - Contractor Summary'!$C$39,"",""))) -> No | O90: =IF(OR(N90="Yes",N90="No")*AND(G90<'A - Contractor Summary'!$C$39),"",IF(AND(G90>'A - Contractor Summary'!$C$39,G90<'A - Contractor Summary'!$C$42),"Yes",IF(G90>'A - Contractor Summary'!$C$42,"No","Needs Review"))) ->  | P90: Yes | Q90: No | R90: 0 | S90: 0
B91: 80 | N91: =IF(AND(G91>='A - Contractor Summary'!$C$36,G91<='A - Contractor Summary'!$C$38),"Yes",IF(G91<'A - Contractor Summary'!$C$36,"No",IF(G91>'A - Contractor Summary'!$C$39,"",""))) -> No | O91: =IF(OR(N91="Yes",N91="No")*AND(G91<'A - Contractor Summary'!$C$39),"",IF(AND(G91>'A - Contractor Summary'!$C$39,G91<'A - Contractor Summary'!$C$42),"Yes",IF(G91>'A - Contractor Summary'!$C$42,"No","Needs Review"))) ->  | P91: No | Q91: No | R91: 0 | S91: 0
B92: 81 | N92: =IF(AND(G92>='A - Contractor Summary'!$C$36,G92<='A - Contractor Summary'!$C$38),"Yes",IF(G92<'A - Contractor Summary'!$C$36,"No",IF(G92>'A - Contractor Summary'!$C$39,"",""))) -> No | O92: =IF(OR(N92="Yes",N92="No")*AND(G92<'A - Contractor Summary'!$C$39),"",IF(AND(G92>'A - Contractor Summary'!$C$39,G92<'A - Contractor Summary'!$C$42),"Yes",IF(G92>'A - Contractor Summary'!$C$42,"No","Needs Review"))) ->  | P92: No | Q92: No | R92: 0 | S92: 0
B93: 82 | N93: =IF(AND(G93>='A - Contractor Summary'!$C$36,G93<='A - Contractor Summary'!$C$38),"Yes",IF(G93<'A - Contractor Summary'!$C$36,"No",IF(G93>'A - Contractor Summary'!$C$39,"",""))) -> No | O93: =IF(OR(N93="Yes",N93="No")*AND(G93<'A - Contractor Summary'!$C$39),"",IF(AND(G93>'A - Contractor Summary'!$C$39,G93<'A - Contractor Summary'!$C$42),"Yes",IF(G93>'A - Contractor Summary'!$C$42,"No","Needs Review"))) ->  | P93: No | Q93: No | R93: 0 | S93: 0
B94: 83 | N94: =IF(AND(G94>='A - Contractor Summary'!$C$36,G94<='A - Contractor Summary'!$C$38),"Yes",IF(G94<'A - Contractor Summary'!$C$36,"No",IF(G94>'A - Contractor Summary'!$C$39,"",""))) -> No | O94: =IF(OR(N94="Yes",N94="No")*AND(G94<'A - Contractor Summary'!$C$39),"",IF(AND(G94>'A - Contractor Summary'!$C$39,G94<'A - Contractor Summary'!$C$42),"Yes",IF(G94>'A - Contractor Summary'!$C$42,"No","Needs Review"))) ->  | P94: No | Q94: =IF(AND(P94="Yes",L94="Yes",M94="Yes")*OR(O94="Yes",N94="Yes"),"Yes",IF(OR(L94="No",N94="No",O94="No",P94="No",M94="No"),"No","Needs Review")) -> No | R94: =IF(Q94="Yes",K94,0) -> 0 | S94: =IF(Q94="Needs Review",K94,0) -> 0
B95: 84 | N95: =IF(AND(G95>='A - Contractor Summary'!$C$36,G95<='A - Contractor Summary'!$C$38),"Yes",IF(G95<'A - Contractor Summary'!$C$36,"No",IF(G95>'A - Contractor Summary'!$C$39,"",""))) -> No | O95: =IF(OR(N95="Yes",N95="No")*AND(G95<'A - Contractor Summary'!$C$39),"",IF(AND(G95>'A - Contractor Summary'!$C$39,G95<'A - Contractor Summary'!$C$42),"Yes",IF(G95>'A - Contractor Summary'!$C$42,"No","Needs Review"))) ->  | P95: No | Q95: No | R95: 0 | S95: 0
B96: 85 | N96: =IF(AND(G96>='A - Contractor Summary'!$C$36,G96<='A - Contractor Summary'!$C$38),"Yes",IF(G96<'A - Contractor Summary'!$C$36,"No",IF(G96>'A - Contractor Summary'!$C$39,"",""))) -> No | O96: =IF(OR(N96="Yes",N96="No")*AND(G96<'A - Contractor Summary'!$C$39),"",IF(AND(G96>'A - Contractor Summary'!$C$39,G96<'A - Contractor Summary'!$C$42),"Yes",IF(G96>'A - Contractor Summary'!$C$42,"No","Needs Review"))) ->  | P96: No | Q96: No | R96: 0 | S96: 0
B97: 86 | N97: =IF(AND(G97>='A - Contractor Summary'!$C$36,G97<='A - Contractor Summary'!$C$38),"Yes",IF(G97<'A - Contractor Summary'!$C$36,"No",IF(G97>'A - Contractor Summary'!$C$39,"",""))) -> No | O97: =IF(OR(N97="Yes",N97="No")*AND(G97<'A - Contractor Summary'!$C$39),"",IF(AND(G97>'A - Contractor Summary'!$C$39,G97<'A - Contractor Summary'!$C$42),"Yes",IF(G97>'A - Contractor Summary'!$C$42,"No","Needs Review"))) ->  | P97: Yes | Q97: No | R97: 0 | S97: 0
B98: 87 | N98: =IF(AND(G98>='A - Contractor Summary'!$C$36,G98<='A - Contractor Summary'!$C$38),"Yes",IF(G98<'A - Contractor Summary'!$C$36,"No",IF(G98>'A - Contractor Summary'!$C$39,"",""))) -> No | O98: =IF(OR(N98="Yes",N98="No")*AND(G98<'A - Contractor Summary'!$C$39),"",IF(AND(G98>'A - Contractor Summary'!$C$39,G98<'A - Contractor Summary'!$C$42),"Yes",IF(G98>'A - Contractor Summary'!$C$42,"No","Needs Review"))) ->  | P98: Yes | Q98: No | R98: 0 | S98: 0
B99: 88 | N99: =IF(AND(G99>='A - Contractor Summary'!$C$36,G99<='A - Contractor Summary'!$C$38),"Yes",IF(G99<'A - Contractor Summary'!$C$36,"No",IF(G99>'A - Contractor Summary'!$C$39,"",""))) -> No | O99: =IF(OR(N99="Yes",N99="No")*AND(G99<'A - Contractor Summary'!$C$39),"",IF(AND(G99>'A - Contractor Summary'!$C$39,G99<'A - Contractor Summary'!$C$42),"Yes",IF(G99>'A - Contractor Summary'!$C$42,"No","Needs Review"))) ->  | P99: Yes | Q99: No | R99: 0 | S99: 0
B100: 89 | N100: =IF(AND(G100>='A - Contractor Summary'!$C$36,G100<='A - Contractor Summary'!$C$38),"Yes",IF(G100<'A - Contractor Summary'!$C$36,"No",IF(G100>'A - Contractor Summary'!$C$39,"",""))) -> No | O100: =IF(OR(N100="Yes",N100="No")*AND(G100<'A - Contractor Summary'!$C$39),"",IF(AND(G100>'A - Contractor Summary'!$C$39,G100<'A - Contractor Summary'!$C$42),"Yes",IF(G100>'A - Contractor Summary'!$C$42,"No","Needs Review"))) ->  | P100: Yes | Q100: No | R100: 0 | S100: 0
B101: 90 | N101: =IF(AND(G101>='A - Contractor Summary'!$C$36,G101<='A - Contractor Summary'!$C$38),"Yes",IF(G101<'A - Contractor Summary'!$C$36,"No",IF(G101>'A - Contractor Summary'!$C$39,"",""))) -> No | O101: =IF(OR(N101="Yes",N101="No")*AND(G101<'A - Contractor Summary'!$C$39),"",IF(AND(G101>'A - Contractor Summary'!$C$39,G101<'A - Contractor Summary'!$C$42),"Yes",IF(G101>'A - Contractor Summary'!$C$42,"No","Needs Review"))) ->  | P101: Yes | Q101: No | R101: 0 | S101: 0
B102: 91 | N102: =IF(AND(G102>='A - Contractor Summary'!$C$36,G102<='A - Contractor Summary'!$C$38),"Yes",IF(G102<'A - Contractor Summary'!$C$36,"No",IF(G102>'A - Contractor Summary'!$C$39,"",""))) -> No | O102: =IF(OR(N102="Yes",N102="No")*AND(G102<'A - Contractor Summary'!$C$39),"",IF(AND(G102>'A - Contractor Summary'!$C$39,G102<'A - Contractor Summary'!$C$42),"Yes",IF(G102>'A - Contractor Summary'!$C$42,"No","Needs Review"))) ->  | P102: Yes | Q102: No | R102: 0 | S102: 0
B103: 92 | N103: =IF(AND(G103>='A - Contractor Summary'!$C$36,G103<='A - Contractor Summary'!$C$38),"Yes",IF(G103<'A - Contractor Summary'!$C$36,"No",IF(G103>'A - Contractor Summary'!$C$39,"",""))) -> No | O103: =IF(OR(N103="Yes",N103="No")*AND(G103<'A - Contractor Summary'!$C$39),"",IF(AND(G103>'A - Contractor Summary'!$C$39,G103<'A - Contractor Summary'!$C$42),"Yes",IF(G103>'A - Contractor Summary'!$C$42,"No","Needs Review"))) ->  | P103: Yes | Q103: No | R103: 0 | S103: 0
B104: 93 | N104: =IF(AND(G104>='A - Contractor Summary'!$C$36,G104<='A - Contractor Summary'!$C$38),"Yes",IF(G104<'A - Contractor Summary'!$C$36,"No",IF(G104>'A - Contractor Summary'!$C$39,"",""))) -> No | O104: =IF(OR(N104="Yes",N104="No")*AND(G104<'A - Contractor Summary'!$C$39),"",IF(AND(G104>'A - Contractor Summary'!$C$39,G104<'A - Contractor Summary'!$C$42),"Yes",IF(G104>'A - Contractor Summary'!$C$42,"No","Needs Review"))) ->  | P104: Yes | Q104: No | R104: 0 | S104: 0
B105: 94 | N105: =IF(AND(G105>='A - Contractor Summary'!$C$36,G105<='A - Contractor Summary'!$C$38),"Yes",IF(G105<'A - Contractor Summary'!$C$36,"No",IF(G105>'A - Contractor Summary'!$C$39,"",""))) -> No | O105: =IF(OR(N105="Yes",N105="No")*AND(G105<'A - Contractor Summary'!$C$39),"",IF(AND(G105>'A - Contractor Summary'!$C$39,G105<'A - Contractor Summary'!$C$42),"Yes",IF(G105>'A - Contractor Summary'!$C$42,"No","Needs Review"))) ->  | P105: Yes | Q105: No | R105: 0 | S105: 0
B106: 95 | N106: =IF(AND(G106>='A - Contractor Summary'!$C$36,G106<='A - Contractor Summary'!$C$38),"Yes",IF(G106<'A - Contractor Summary'!$C$36,"No",IF(G106>'A - Contractor Summary'!$C$39,"",""))) -> No | O106: =IF(OR(N106="Yes",N106="No")*AND(G106<'A - Contractor Summary'!$C$39),"",IF(AND(G106>'A - Contractor Summary'!$C$39,G106<'A - Contractor Summary'!$C$42),"Yes",IF(G106>'A - Contractor Summary'!$C$42,"No","Needs Review"))) ->  | P106: Yes | Q106: No | R106: 0 | S106: 0
B107: 96 | N107: =IF(AND(G107>='A - Contractor Summary'!$C$36,G107<='A - Contractor Summary'!$C$38),"Yes",IF(G107<'A - Contractor Summary'!$C$36,"No",IF(G107>'A - Contractor Summary'!$C$39,"",""))) -> No | O107: =IF(OR(N107="Yes",N107="No")*AND(G107<'A - Contractor Summary'!$C$39),"",IF(AND(G107>'A - Contractor Summary'!$C$39,G107<'A - Contractor Summary'!$C$42),"Yes",IF(G107>'A - Contractor Summary'!$C$42,"No","Needs Review"))) ->  | P107: Yes | Q107: No | R107: 0 | S107: 0
B108: 97 | N108: =IF(AND(G108>='A - Contractor Summary'!$C$36,G108<='A - Contractor Summary'!$C$38),"Yes",IF(G108<'A - Contractor Summary'!$C$36,"No",IF(G108>'A - Contractor Summary'!$C$39,"",""))) -> No | O108: =IF(OR(N108="Yes",N108="No")*AND(G108<'A - Contractor Summary'!$C$39),"",IF(AND(G108>'A - Contractor Summary'!$C$39,G108<'A - Contractor Summary'!$C$42),"Yes",IF(G108>'A - Contractor Summary'!$C$42,"No","Needs Review"))) ->  | P108: Yes | Q108: No | R108: 0 | S108: 0
B109: 98 | N109: =IF(AND(G109>='A - Contractor Summary'!$C$36,G109<='A - Contractor Summary'!$C$38),"Yes",IF(G109<'A - Contractor Summary'!$C$36,"No",IF(G109>'A - Contractor Summary'!$C$39,"",""))) -> No | O109: =IF(OR(N109="Yes",N109="No")*AND(G109<'A - Contractor Summary'!$C$39),"",IF(AND(G109>'A - Contractor Summary'!$C$39,G109<'A - Contractor Summary'!$C$42),"Yes",IF(G109>'A - Contractor Summary'!$C$42,"No","Needs Review"))) ->  | P109: Yes | Q109: No | R109: 0 | S109: 0
B110: 99 | N110: =IF(AND(G110>='A - Contractor Summary'!$C$36,G110<='A - Contractor Summary'!$C$38),"Yes",IF(G110<'A - Contractor Summary'!$C$36,"No",IF(G110>'A - Contractor Summary'!$C$39,"",""))) -> No | O110: =IF(OR(N110="Yes",N110="No")*AND(G110<'A - Contractor Summary'!$C$39),"",IF(AND(G110>'A - Contractor Summary'!$C$39,G110<'A - Contractor Summary'!$C$42),"Yes",IF(G110>'A - Contractor Summary'!$C$42,"No","Needs Review"))) ->  | P110: Yes | Q110: No | R110: 0 | S110: 0
B111: 100 | N111: =IF(AND(G111>='A - Contractor Summary'!$C$36,G111<='A - Contractor Summary'!$C$38),"Yes",IF(G111<'A - Contractor Summary'!$C$36,"No",IF(G111>'A - Contractor Summary'!$C$39,"",""))) -> No | O111: =IF(OR(N111="Yes",N111="No")*AND(G111<'A - Contractor Summary'!$C$39),"",IF(AND(G111>'A - Contractor Summary'!$C$39,G111<'A - Contractor Summary'!$C$42),"Yes",IF(G111>'A - Contractor Summary'!$C$42,"No","Needs Review"))) ->  | P111: Yes | Q111: No | R111: 0 | S111: 0
B112: 101 | N112: =IF(AND(G112>='A - Contractor Summary'!$C$36,G112<='A - Contractor Summary'!$C$38),"Yes",IF(G112<'A - Contractor Summary'!$C$36,"No",IF(G112>'A - Contractor Summary'!$C$39,"",""))) -> No | O112: =IF(OR(N112="Yes",N112="No")*AND(G112<'A - Contractor Summary'!$C$39),"",IF(AND(G112>'A - Contractor Summary'!$C$39,G112<'A - Contractor Summary'!$C$42),"Yes",IF(G112>'A - Contractor Summary'!$C$42,"No","Needs Review"))) ->  | P112: Yes | Q112: No | R112: 0 | S112: 0
B113: 102 | N113: =IF(AND(G113>='A - Contractor Summary'!$C$36,G113<='A - Contractor Summary'!$C$38),"Yes",IF(G113<'A - Contractor Summary'!$C$36,"No",IF(G113>'A - Contractor Summary'!$C$39,"",""))) -> No | O113: =IF(OR(N113="Yes",N113="No")*AND(G113<'A - Contractor Summary'!$C$39),"",IF(AND(G113>'A - Contractor Summary'!$C$39,G113<'A - Contractor Summary'!$C$42),"Yes",IF(G113>'A - Contractor Summary'!$C$42,"No","Needs Review"))) ->  | P113: Yes | Q113: No | R113: 0 | S113: 0
B114: 103 | N114: =IF(AND(G114>='A - Contractor Summary'!$C$36,G114<='A - Contractor Summary'!$C$38),"Yes",IF(G114<'A - Contractor Summary'!$C$36,"No",IF(G114>'A - Contractor Summary'!$C$39,"",""))) -> No | O114: =IF(OR(N114="Yes",N114="No")*AND(G114<'A - Contractor Summary'!$C$39),"",IF(AND(G114>'A - Contractor Summary'!$C$39,G114<'A - Contractor Summary'!$C$42),"Yes",IF(G114>'A - Contractor Summary'!$C$42,"No","Needs Review"))) ->  | P114: Yes | Q114: No | R114: 0 | S114: 0
B115: 104 | N115: =IF(AND(G115>='A - Contractor Summary'!$C$36,G115<='A - Contractor Summary'!$C$38),"Yes",IF(G115<'A - Contractor Summary'!$C$36,"No",IF(G115>'A - Contractor Summary'!$C$39,"",""))) -> No | O115: =IF(OR(N115="Yes",N115="No")*AND(G115<'A - Contractor Summary'!$C$39),"",IF(AND(G115>'A - Contractor Summary'!$C$39,G115<'A - Contractor Summary'!$C$42),"Yes",IF(G115>'A - Contractor Summary'!$C$42,"No","Needs Review"))) ->  | P115: Yes | Q115: No | R115: 0 | S115: 0
B116: 105 | N116: =IF(AND(G116>='A - Contractor Summary'!$C$36,G116<='A - Contractor Summary'!$C$38),"Yes",IF(G116<'A - Contractor Summary'!$C$36,"No",IF(G116>'A - Contractor Summary'!$C$39,"",""))) -> No | O116: =IF(OR(N116="Yes",N116="No")*AND(G116<'A - Contractor Summary'!$C$39),"",IF(AND(G116>'A - Contractor Summary'!$C$39,G116<'A - Contractor Summary'!$C$42),"Yes",IF(G116>'A - Contractor Summary'!$C$42,"No","Needs Review"))) ->  | P116: Yes | Q116: No | R116: 0 | S116: 0
B117: 106 | N117: =IF(AND(G117>='A - Contractor Summary'!$C$36,G117<='A - Contractor Summary'!$C$38),"Yes",IF(G117<'A - Contractor Summary'!$C$36,"No",IF(G117>'A - Contractor Summary'!$C$39,"",""))) -> No | O117: =IF(OR(N117="Yes",N117="No")*AND(G117<'A - Contractor Summary'!$C$39),"",IF(AND(G117>'A - Contractor Summary'!$C$39,G117<'A - Contractor Summary'!$C$42),"Yes",IF(G117>'A - Contractor Summary'!$C$42,"No","Needs Review"))) ->  | P117: Yes | Q117: No | R117: 0 | S117: 0
B118: 107 | N118: =IF(AND(G118>='A - Contractor Summary'!$C$36,G118<='A - Contractor Summary'!$C$38),"Yes",IF(G118<'A - Contractor Summary'!$C$36,"No",IF(G118>'A - Contractor Summary'!$C$39,"",""))) -> No | O118: =IF(OR(N118="Yes",N118="No")*AND(G118<'A - Contractor Summary'!$C$39),"",IF(AND(G118>'A - Contractor Summary'!$C$39,G118<'A - Contractor Summary'!$C$42),"Yes",IF(G118>'A - Contractor Summary'!$C$42,"No","Needs Review"))) ->  | P118: Yes | Q118: No | R118: 0 | S118: 0
B119: 108 | N119: =IF(AND(G119>='A - Contractor Summary'!$C$36,G119<='A - Contractor Summary'!$C$38),"Yes",IF(G119<'A - Contractor Summary'!$C$36,"No",IF(G119>'A - Contractor Summary'!$C$39,"",""))) -> No | O119: =IF(OR(N119="Yes",N119="No")*AND(G119<'A - Contractor Summary'!$C$39),"",IF(AND(G119>'A - Contractor Summary'!$C$39,G119<'A - Contractor Summary'!$C$42),"Yes",IF(G119>'A - Contractor Summary'!$C$42,"No","Needs Review"))) ->  | P119: Yes | Q119: No | R119: 0 | S119: 0
B120: 109 | N120: =IF(AND(G120>='A - Contractor Summary'!$C$36,G120<='A - Contractor Summary'!$C$38),"Yes",IF(G120<'A - Contractor Summary'!$C$36,"No",IF(G120>'A - Contractor Summary'!$C$39,"",""))) -> No | O120: =IF(OR(N120="Yes",N120="No")*AND(G120<'A - Contractor Summary'!$C$39),"",IF(AND(G120>'A - Contractor Summary'!$C$39,G120<'A - Contractor Summary'!$C$42),"Yes",IF(G120>'A - Contractor Summary'!$C$42,"No","Needs Review"))) ->  | P120: Yes | Q120: No | R120: 0 | S120: 0
B121: 110 | N121: =IF(AND(G121>='A - Contractor Summary'!$C$36,G121<='A - Contractor Summary'!$C$38),"Yes",IF(G121<'A - Contractor Summary'!$C$36,"No",IF(G121>'A - Contractor Summary'!$C$39,"",""))) -> No | O121: =IF(OR(N121="Yes",N121="No")*AND(G121<'A - Contractor Summary'!$C$39),"",IF(AND(G121>'A - Contractor Summary'!$C$39,G121<'A - Contractor Summary'!$C$42),"Yes",IF(G121>'A - Contractor Summary'!$C$42,"No","Needs Review"))) ->  | P121: Yes | Q121: No | R121: 0 | S121: 0
B122: 111 | N122: =IF(AND(G122>='A - Contractor Summary'!$C$36,G122<='A - Contractor Summary'!$C$38),"Yes",IF(G122<'A - Contractor Summary'!$C$36,"No",IF(G122>'A - Contractor Summary'!$C$39,"",""))) -> No | O122: =IF(OR(N122="Yes",N122="No")*AND(G122<'A - Contractor Summary'!$C$39),"",IF(AND(G122>'A - Contractor Summary'!$C$39,G122<'A - Contractor Summary'!$C$42),"Yes",IF(G122>'A - Contractor Summary'!$C$42,"No","Needs Review"))) ->  | P122: Yes | Q122: No | R122: 0 | S122: 0
B123: 112 | N123: =IF(AND(G123>='A - Contractor Summary'!$C$36,G123<='A - Contractor Summary'!$C$38),"Yes",IF(G123<'A - Contractor Summary'!$C$36,"No",IF(G123>'A - Contractor Summary'!$C$39,"",""))) -> No | O123: =IF(OR(N123="Yes",N123="No")*AND(G123<'A - Contractor Summary'!$C$39),"",IF(AND(G123>'A - Contractor Summary'!$C$39,G123<'A - Contractor Summary'!$C$42),"Yes",IF(G123>'A - Contractor Summary'!$C$42,"No","Needs Review"))) ->  | P123: Yes | Q123: No | R123: 0 | S123: 0
B124: 113 | N124: =IF(AND(G124>='A - Contractor Summary'!$C$36,G124<='A - Contractor Summary'!$C$38),"Yes",IF(G124<'A - Contractor Summary'!$C$36,"No",IF(G124>'A - Contractor Summary'!$C$39,"",""))) -> No | O124: =IF(OR(N124="Yes",N124="No")*AND(G124<'A - Contractor Summary'!$C$39),"",IF(AND(G124>'A - Contractor Summary'!$C$39,G124<'A - Contractor Summary'!$C$42),"Yes",IF(G124>'A - Contractor Summary'!$C$42,"No","Needs Review"))) ->  | P124: Yes | Q124: No | R124: 0 | S124: 0
B125: 114 | N125: =IF(AND(G125>='A - Contractor Summary'!$C$36,G125<='A - Contractor Summary'!$C$38),"Yes",IF(G125<'A - Contractor Summary'!$C$36,"No",IF(G125>'A - Contractor Summary'!$C$39,"",""))) -> No | O125: =IF(OR(N125="Yes",N125="No")*AND(G125<'A - Contractor Summary'!$C$39),"",IF(AND(G125>'A - Contractor Summary'!$C$39,G125<'A - Contractor Summary'!$C$42),"Yes",IF(G125>'A - Contractor Summary'!$C$42,"No","Needs Review"))) ->  | P125: Yes | Q125: No | R125: 0 | S125: 0
B126: 115 | N126: =IF(AND(G126>='A - Contractor Summary'!$C$36,G126<='A - Contractor Summary'!$C$38),"Yes",IF(G126<'A - Contractor Summary'!$C$36,"No",IF(G126>'A - Contractor Summary'!$C$39,"",""))) -> No | O126: =IF(OR(N126="Yes",N126="No")*AND(G126<'A - Contractor Summary'!$C$39),"",IF(AND(G126>'A - Contractor Summary'!$C$39,G126<'A - Contractor Summary'!$C$42),"Yes",IF(G126>'A - Contractor Summary'!$C$42,"No","Needs Review"))) ->  | P126: Yes | Q126: No | R126: 0 | S126: 0
B127: 116 | N127: =IF(AND(G127>='A - Contractor Summary'!$C$36,G127<='A - Contractor Summary'!$C$38),"Yes",IF(G127<'A - Contractor Summary'!$C$36,"No",IF(G127>'A - Contractor Summary'!$C$39,"",""))) -> No | O127: =IF(OR(N127="Yes",N127="No")*AND(G127<'A - Contractor Summary'!$C$39),"",IF(AND(G127>'A - Contractor Summary'!$C$39,G127<'A - Contractor Summary'!$C$42),"Yes",IF(G127>'A - Contractor Summary'!$C$42,"No","Needs Review"))) ->  | P127: Yes | Q127: No | R127: 0 | S127: 0
B128: 117 | N128: =IF(AND(G128>='A - Contractor Summary'!$C$36,G128<='A - Contractor Summary'!$C$38),"Yes",IF(G128<'A - Contractor Summary'!$C$36,"No",IF(G128>'A - Contractor Summary'!$C$39,"",""))) -> No | O128: =IF(OR(N128="Yes",N128="No")*AND(G128<'A - Contractor Summary'!$C$39),"",IF(AND(G128>'A - Contractor Summary'!$C$39,G128<'A - Contractor Summary'!$C$42),"Yes",IF(G128>'A - Contractor Summary'!$C$42,"No","Needs Review"))) ->  | P128: Yes | Q128: No | R128: 0 | S128: 0
B129: 118 | N129: =IF(AND(G129>='A - Contractor Summary'!$C$36,G129<='A - Contractor Summary'!$C$38),"Yes",IF(G129<'A - Contractor Summary'!$C$36,"No",IF(G129>'A - Contractor Summary'!$C$39,"",""))) -> No | O129: =IF(OR(N129="Yes",N129="No")*AND(G129<'A - Contractor Summary'!$C$39),"",IF(AND(G129>'A - Contractor Summary'!$C$39,G129<'A - Contractor Summary'!$C$42),"Yes",IF(G129>'A - Contractor Summary'!$C$42,"No","Needs Review"))) ->  | P129: Yes | Q129: No | R129: 0 | S129: 0
B130: 119 | N130: =IF(AND(G130>='A - Contractor Summary'!$C$36,G130<='A - Contractor Summary'!$C$38),"Yes",IF(G130<'A - Contractor Summary'!$C$36,"No",IF(G130>'A - Contractor Summary'!$C$39,"",""))) -> No | O130: =IF(OR(N130="Yes",N130="No")*AND(G130<'A - Contractor Summary'!$C$39),"",IF(AND(G130>'A - Contractor Summary'!$C$39,G130<'A - Contractor Summary'!$C$42),"Yes",IF(G130>'A - Contractor Summary'!$C$42,"No","Needs Review"))) ->  | P130: Yes | Q130: No | R130: 0 | S130: 0
B131: 120 | N131: =IF(AND(G131>='A - Contractor Summary'!$C$36,G131<='A - Contractor Summary'!$C$38),"Yes",IF(G131<'A - Contractor Summary'!$C$36,"No",IF(G131>'A - Contractor Summary'!$C$39,"",""))) -> No | O131: =IF(OR(N131="Yes",N131="No")*AND(G131<'A - Contractor Summary'!$C$39),"",IF(AND(G131>'A - Contractor Summary'!$C$39,G131<'A - Contractor Summary'!$C$42),"Yes",IF(G131>'A - Contractor Summary'!$C$42,"No","Needs Review"))) ->  | P131: Yes | Q131: No | R131: 0 | S131: 0
B132: 121 | N132: =IF(AND(G132>='A - Contractor Summary'!$C$36,G132<='A - Contractor Summary'!$C$38),"Yes",IF(G132<'A - Contractor Summary'!$C$36,"No",IF(G132>'A - Contractor Summary'!$C$39,"",""))) -> No | O132: =IF(OR(N132="Yes",N132="No")*AND(G132<'A - Contractor Summary'!$C$39),"",IF(AND(G132>'A - Contractor Summary'!$C$39,G132<'A - Contractor Summary'!$C$42),"Yes",IF(G132>'A - Contractor Summary'!$C$42,"No","Needs Review"))) ->  | P132: Yes | Q132: No | R132: 0 | S132: 0
B133: 122 | N133: =IF(AND(G133>='A - Contractor Summary'!$C$36,G133<='A - Contractor Summary'!$C$38),"Yes",IF(G133<'A - Contractor Summary'!$C$36,"No",IF(G133>'A - Contractor Summary'!$C$39,"",""))) -> No | O133: =IF(OR(N133="Yes",N133="No")*AND(G133<'A - Contractor Summary'!$C$39),"",IF(AND(G133>'A - Contractor Summary'!$C$39,G133<'A - Contractor Summary'!$C$42),"Yes",IF(G133>'A - Contractor Summary'!$C$42,"No","Needs Review"))) ->  | P133: Yes | Q133: No | R133: 0 | S133: 0
B134: 123 | N134: =IF(AND(G134>='A - Contractor Summary'!$C$36,G134<='A - Contractor Summary'!$C$38),"Yes",IF(G134<'A - Contractor Summary'!$C$36,"No",IF(G134>'A - Contractor Summary'!$C$39,"",""))) -> No | O134: =IF(OR(N134="Yes",N134="No")*AND(G134<'A - Contractor Summary'!$C$39),"",IF(AND(G134>'A - Contractor Summary'!$C$39,G134<'A - Contractor Summary'!$C$42),"Yes",IF(G134>'A - Contractor Summary'!$C$42,"No","Needs Review"))) ->  | P134: Yes | Q134: No | R134: 0 | S134: 0
B135: 124 | N135: =IF(AND(G135>='A - Contractor Summary'!$C$36,G135<='A - Contractor Summary'!$C$38),"Yes",IF(G135<'A - Contractor Summary'!$C$36,"No",IF(G135>'A - Contractor Summary'!$C$39,"",""))) -> No | O135: =IF(OR(N135="Yes",N135="No")*AND(G135<'A - Contractor Summary'!$C$39),"",IF(AND(G135>'A - Contractor Summary'!$C$39,G135<'A - Contractor Summary'!$C$42),"Yes",IF(G135>'A - Contractor Summary'!$C$42,"No","Needs Review"))) ->  | P135: Yes | Q135: No | R135: 0 | S135: 0
B136: 125 | N136: =IF(AND(G136>='A - Contractor Summary'!$C$36,G136<='A - Contractor Summary'!$C$38),"Yes",IF(G136<'A - Contractor Summary'!$C$36,"No",IF(G136>'A - Contractor Summary'!$C$39,"",""))) -> No | O136: =IF(OR(N136="Yes",N136="No")*AND(G136<'A - Contractor Summary'!$C$39),"",IF(AND(G136>'A - Contractor Summary'!$C$39,G136<'A - Contractor Summary'!$C$42),"Yes",IF(G136>'A - Contractor Summary'!$C$42,"No","Needs Review"))) ->  | P136: Yes | Q136: No | R136: 0 | S136: 0
B137: 126 | N137: =IF(AND(G137>='A - Contractor Summary'!$C$36,G137<='A - Contractor Summary'!$C$38),"Yes",IF(G137<'A - Contractor Summary'!$C$36,"No",IF(G137>'A - Contractor Summary'!$C$39,"",""))) -> No | O137: =IF(OR(N137="Yes",N137="No")*AND(G137<'A - Contractor Summary'!$C$39),"",IF(AND(G137>'A - Contractor Summary'!$C$39,G137<'A - Contractor Summary'!$C$42),"Yes",IF(G137>'A - Contractor Summary'!$C$42,"No","Needs Review"))) ->  | P137: Yes | Q137: No | R137: 0 | S137: 0
B138: 127 | N138: =IF(AND(G138>='A - Contractor Summary'!$C$36,G138<='A - Contractor Summary'!$C$38),"Yes",IF(G138<'A - Contractor Summary'!$C$36,"No",IF(G138>'A - Contractor Summary'!$C$39,"",""))) -> No | O138: =IF(OR(N138="Yes",N138="No")*AND(G138<'A - Contractor Summary'!$C$39),"",IF(AND(G138>'A - Contractor Summary'!$C$39,G138<'A - Contractor Summary'!$C$42),"Yes",IF(G138>'A - Contractor Summary'!$C$42,"No","Needs Review"))) ->  | P138: Yes | Q138: No | R138: 0 | S138: 0
B139: 128 | N139: =IF(AND(G139>='A - Contractor Summary'!$C$36,G139<='A - Contractor Summary'!$C$38),"Yes",IF(G139<'A - Contractor Summary'!$C$36,"No",IF(G139>'A - Contractor Summary'!$C$39,"",""))) -> No | O139: =IF(OR(N139="Yes",N139="No")*AND(G139<'A - Contractor Summary'!$C$39),"",IF(AND(G139>'A - Contractor Summary'!$C$39,G139<'A - Contractor Summary'!$C$42),"Yes",IF(G139>'A - Contractor Summary'!$C$42,"No","Needs Review"))) ->  | P139: Yes | Q139: No | R139: 0 | S139: 0
B140: 129 | N140: =IF(AND(G140>='A - Contractor Summary'!$C$36,G140<='A - Contractor Summary'!$C$38),"Yes",IF(G140<'A - Contractor Summary'!$C$36,"No",IF(G140>'A - Contractor Summary'!$C$39,"",""))) -> No | O140: =IF(OR(N140="Yes",N140="No")*AND(G140<'A - Contractor Summary'!$C$39),"",IF(AND(G140>'A - Contractor Summary'!$C$39,G140<'A - Contractor Summary'!$C$42),"Yes",IF(G140>'A - Contractor Summary'!$C$42,"No","Needs Review"))) ->  | P140: Yes | Q140: =IF(AND(P140="Yes",L140="Yes",M140="Yes")*OR(O140="Yes",N140="Yes"),"Yes",IF(OR(L140="No",N140="No",O140="No",P140="No",M140="No"),"No","Needs Review")) -> No | R140: =IF(Q140="Yes",K140,0) -> 0 | S140: =IF(Q140="Needs Review",K140,0) -> 0
K141: =SUM(K14:K140) -> 0 | R141: =IFERROR(SUM(R14:R140),0) -> 0 | S141: =IFERROR(SUM(S14:S140),0) -> 0 | T141: =SUM(T14:T140) -> 0 | U141: =SUM(U14:U140) -> 0 | V141: =S141-T141-U141 -> 0 | W141: check (a)
B145: Tickmark Explanation:
C146: 1
C147: 2
C148: 3
C149: 4
C150: 5
C151: 6
C152: 7

Sheet I - Other
B2: Other Charges
B4: Test Plan: (A) Obtain support of individual charges. (B) Enter Yes/No if receipt is itemized. (C) Enter Yes/No if proof of payment has been provided. (D) Ensure charges fall between the dates the vendor was mobilized and the date they arrived. (E) Ensure charges are prior to the date the vendor arrived home or was released to another utility. (F) Ensure the expense type is reasonable (G) Determine the amount(s) to be reviewed, allowed and/or disallowed. (H) For charges which required further review, document review and include why it was determined to be allowed/disallowed via a tickmark.
B9: a | C9: Check figure should equal $0. Cell will appear yellow if discrepancies are noted.
C12: A | L12: B | M12: C | N12: D | O12: E | P12: F | Q12: G | T12: H
B13: Support Reviewed | N13: Conclusions
B14: # | C14: Type of Support | D14: Support Identifier | E14: Company | F14: Crew | G14: Date | H14: Person | I14: Vendor Name | J14: Location | K14: $ Total | L14: Itemized Receipt | M14: Proof of Payment | N14: Reasonable based on Mobilization date(s) | O14: Reasonable based on Demobilization date(s) | P14: Expense Type Appropriate | Q14: Conclusion | R14: $ Allowable Charge | S14: $ To Be Reviewed | T14: Reviewed - Allowable Charge | U14: Reviewed - Unallowable Charge | V14: Tickmarks
B15: 1 | N15: =IF(AND(G15>='A - Contractor Summary'!$C$36,G15<='A - Contractor Summary'!$C$38),"Yes",IF(G15<'A - Contractor Summary'!$C$36,"No",IF(G15>'A - Contractor Summary'!$C$39,"",""))) -> No | O15: =IF(OR(N15="Yes",N15="No")*AND(G15<'A - Contractor Summary'!$C$39),"",IF(AND(G15>'A - Contractor Summary'!$C$39,G15<'A - Contractor Summary'!$C$42),"Yes",IF(G15>'A - Contractor Summary'!$C$42,"No","Needs Review"))) ->  | P15: Needs Reviewed | Q15: =IF(AND(P15="YES",L15="Yes",M15="yes")*OR(N15="Yes",O15="Yes"),"Yes",IF(OR(O15="No",P15="No",N15="No",M15="No"),"No","Needs Review")) -> No | R15: =IF(Q15="Yes",K15,0) -> 0 | S15: =IF(Q15="Needs Review",K15,0) -> 0 | T15: =SUM('B - Summary Expenses '!E13:F15)*0.1 -> 0 | V15: 1
K16: =SUM(K15:K15) -> 0 | R16: =IFERROR(SUM(R15:R15),0) -> 0 | S16: =IFERROR(SUM(S15:S15),0) -> 0 | T16: =SUM(T15:T15) -> 0 | U16: =SUM(U15:U15) -> 0 | V16: =S16-T16-U16 -> 0 | W16: check (a)
B20: Tickmark Explanation:
C21: 1

Sheet G - Per Diem
B2: Per Diem Charges
B4: Test Plan: (A) Enter per diem charges per invoice. (B) Enter number of crew worked per timecard. (C) Enter the Per Diem Rate charged per person per meal (D) Ensure the number of crew members being charged is appropriate (This is comparing the submitted timecards and the per diem charges invoiced). (E) Ensure charges fall between the dates the vendor was mobilized and the date they arrived. (F) Ensure charges are prior to the date the vendor arrived home or was released to another utility. (G) Determine the amount(s) to be reviewed, allowed and/or disallowed. (H) For charges which required further review, document review and include why it was determined to be allowed/disallowed via a tickmark.
B10: Rx | C10: Recalculated.
B11: a | C11: Check figure should equal $0. Cell will appear yellow if discrepancies are noted.
B14: A | F14: B | G14: Rx | H14: C | I14: Rx | J14: D | K14: E | L14: F | M14: G | P14: H
B15: Support Reviewed | J15: Conclusion
B16: Dates | C16: Company | D16: Per Diem Type | E16: # Crew Worked (per invoice) | F16: # Crew Worked (per timecards) | G16: Difference | H16: Per Diem Rate | I16: Total Per Diem | J16: # Crew Reasonable | K16: Reasonable based on Mobilization date(s) | L16: Reasonable based on Demobilization date(s) | M16: Conclusion | N16: $ Allowable Charge | O16: $ To Be Reviewed | P16: Reviewed - Allowable Charge | Q16: Reviewed - Unallowable Charge | R16: Tickmarks
B17: 10/21/2018-10/27/2018 | C17: Vendor No. 01 | E17: 3 | G17: =E17-F17 -> 3 | H17: 172.5 | I17: =E17*H17 -> 517.5 | J17: =IF(G17>0,"No",IF(F17=0,"N/A","Yes")) -> No | K17: =IF(AND(B17>='A - Contractor Summary'!$C$36,B17<='A - Contractor Summary'!$C$38),"Yes",IF(B17<'A - Contractor Summary'!$C$36,"No",IF(B17>'A - Contractor Summary'!$C$39,"",""))) ->  | L17: =IF(OR(K17="Yes",K17="No")*AND(B17<'A - Contractor Summary'!$C$39),"",IF(AND(B17>'A - Contractor Summary'!$C$39,B17<'A - Contractor Summary'!$C$42),"Yes",IF(B17>'A - Contractor Summary'!$C$42,"No","Needs Review"))) -> No | M17: =IF(AND(J17="Yes")*OR(K17="Yes",L17="Yes"),"Yes",IF(OR(K17="No",J17="No",L17="No"),"No","Needs Review")) -> No | N17: =IF(M17="Yes",I17,0) -> 0 | O17: =IF(M17="Needs Review",I17,0) -> 0 | P17: =+I17 -> 517.5 | R17: 1
B18: 10/21/2018-10/27/2018 | C18: Vendor No. 01 | E18: 9 | G18: 9 | H18: 172.5 | I18: =E18*H18 -> 1552.5 | J18: =IF(G18>0,"No",IF(F18=0,"N/A","Yes")) -> No | K18: =IF(AND(B18>='A - Contractor Summary'!$C$36,B18<='A - Contractor Summary'!$C$38),"Yes",IF(B18<'A - Contractor Summary'!$C$36,"No",IF(B18>'A - Contractor Summary'!$C$39,"",""))) ->  | L18: =IF(OR(K18="Yes",K18="No")*AND(B18<'A - Contractor Summary'!$C$39),"",IF(AND(B18>'A - Contractor Summary'!$C$39,B18<'A - Contractor Summary'!$C$42),"Yes",IF(B18>'A - Contractor Summary'!$C$42,"No","Needs Review"))) -> No | M18: =IF(AND(J18="Yes")*OR(K18="Yes",L18="Yes"),"Yes",IF(OR(K18="No",J18="No",L18="No"),"No","Needs Review")) -> No | N18: =IF(M18="Yes",I18,0) -> 0 | O18: =IF(M18="Needs Review",I18,0) -> 0 | P18: =+I18 -> 1552.5 | R18: 1
B19: 10/21/2018-10/27/2018 | C19: Vendor No. 01 | E19: 9 | G19: 9 | H19: 172.5 | I19: 1552.5 | J19: =IF(G19>0,"No",IF(F19=0,"N/A","Yes")) -> No | K19: =IF(AND(B19>='A - Contractor Summary'!$C$36,B19<='A - Contractor Summary'!$C$38),"Yes",IF(B19<'A - Contractor Summary'!$C$36,"No",IF(B19>'A - Contractor Summary'!$C$39,"",""))) ->  | L19: =IF(OR(K19="Yes",K19="No")*AND(B19<'A - Contractor Summary'!$C$39),"",IF(AND(B19>'A - Contractor Summary'!$C$39,B19<'A - Contractor Summary'!$C$42),"Yes",IF(B19>'A - Contractor Summary'!$C$42,"No","Needs Review"))) -> No | M19: No | N19: =IF(M19="Yes",I19,0) -> 0 | O19: 0 | P19: 1552.5 | R19: 1
B20: 10/21/2018-10/27/2018 | C20: Vendor No. 01 | E20: 6 | G20: 6 | H20: 172.5 | I20: 1035 | J20: No | K20: =IF(AND(B20>='A - Contractor Summary'!$C$36,B20<='A - Contractor Summary'!$C$38),"Yes",IF(B20<'A - Contractor Summary'!$C$36,"No",IF(B20>'A - Contractor Summary'!$C$39,"",""))) ->  | L20: =IF(OR(K20="Yes",K20="No")*AND(B20<'A - Contractor Summary'!$C$39),"",IF(AND(B20>'A - Contractor Summary'!$C$39,B20<'A - Contractor Summary'!$C$42),"Yes",IF(B20>'A - Contractor Summary'!$C$42,"No","Needs Review"))) -> No | M20: No | N20: 0 | O20: 0 | P20: 1035 | R20: 1
P21: 0 | R21: 1
B22: 10/21/2018-10/27/2018 | C22: Vendor No. 01 | E22: 2 | G22: 2 | H22: 172.5 | I22: 345 | J22: No | K22: =IF(AND(B22>='A - Contractor Summary'!$C$36,B22<='A - Contractor Summary'!$C$38),"Yes",IF(B22<'A - Contractor Summary'!$C$36,"No",IF(B22>'A - Contractor Summary'!$C$39,"",""))) ->  | L22: =IF(OR(K22="Yes",K22="No")*AND(B22<'A - Contractor Summary'!$C$39),"",IF(AND(B22>'A - Contractor Summary'!$C$39,B22<'A - Contractor Summary'!$C$42),"Yes",IF(B22>'A - Contractor Summary'!$C$42,"No","Needs Review"))) -> No | M22: No | N22: 0 | O22: 0 | P22: 345 | R22: 1
B23: 10/21/2018-10/27/2018 | C23: Vendor No. 01 | E23: 3 | G23: 3 | H23: 172.5 | I23: 517.5 | J23: No | K23: =IF(AND(B23>='A - Contractor Summary'!$C$36,B23<='A - Contractor Summary'!$C$38),"Yes",IF(B23<'A - Contractor Summary'!$C$36,"No",IF(B23>'A - Contractor Summary'!$C$39,"",""))) ->  | L23: =IF(OR(K23="Yes",K23="No")*AND(B23<'A - Contractor Summary'!$C$39),"",IF(AND(B23>'A - Contractor Summary'!$C$39,B23<'A - Contractor Summary'!$C$42),"Yes",IF(B23>'A - Contractor Summary'!$C$42,"No","Needs Review"))) -> No | M23: No | N23: 0 | O23: 0 | P23: 517.5 | R23: 1
B24: 10/21/2018-10/27/2018 | C24: Vendor No. 01 | E24: 3 | G24: 3 | H24: 172.5 | I24: 517.5 | J24: No | K24: =IF(AND(B24>='A - Contractor Summary'!$C$36,B24<='A - Contractor Summary'!$C$38),"Yes",IF(B24<'A - Contractor Summary'!$C$36,"No",IF(B24>'A - Contractor Summary'!$C$39,"",""))) ->  | L24: =IF(OR(K24="Yes",K24="No")*AND(B24<'A - Contractor Summary'!$C$39),"",IF(AND(B24>'A - Contractor Summary'!$C$39,B24<'A - Contractor Summary'!$C$42),"Yes",IF(B24>'A - Contractor Summary'!$C$42,"No","Needs Review"))) -> No | M24: No | N24: 0 | O24: 0 | P24: 517.5 | R24: 1
B25: 10/21/2018-10/27/2018 | C25: Vendor No. 01 | E25: 3 | G25: 3 | H25: 172.5 | I25: 517.5 | J25: No | K25: =IF(AND(B25>='A - Contractor Summary'!$C$36,B25<='A - Contractor Summary'!$C$38),"Yes",IF(B25<'A - Contractor Summary'!$C$36,"No",IF(B25>'A - Contractor Summary'!$C$39,"",""))) ->  | L25: =IF(OR(K25="Yes",K25="No")*AND(B25<'A - Contractor Summary'!$C$39),"",IF(AND(B25>'A - Contractor Summary'!$C$39,B25<'A - Contractor Summary'!$C$42),"Yes",IF(B25>'A - Contractor Summary'!$C$42,"No","Needs Review"))) -> No | M25: No | N25: 0 | O25: 0 | P25: 517.5 | R25: 1
P26: 0 | R26: 1
B27: 10/28/2018-11/3/2018 | C27: Vendor No. 01 | E27: 3 | G27: 3 | H27: 33.33 | I27: 99.99 | J27: No | K27: =IF(AND(B27>='A - Contractor Summary'!$C$36,B27<='A - Contractor Summary'!$C$38),"Yes",IF(B27<'A - Contractor Summary'!$C$36,"No",IF(B27>'A - Contractor Summary'!$C$39,"",""))) ->  | L27: =IF(OR(K27="Yes",K27="No")*AND(B27<'A - Contractor Summary'!$C$39),"",IF(AND(B27>'A - Contractor Summary'!$C$39,B27<'A - Contractor Summary'!$C$42),"Yes",IF(B27>'A - Contractor Summary'!$C$42,"No","Needs Review"))) -> No | M27: No | N27: 0 | O27: 0 | P27: 99.99 | R27: 1
B28: 10/28/2018-11/3/2018 | C28: Vendor No. 01 | E28: 9 | G28: 9 | H28: 33.33 | I28: 299.97 | J28: No | K28: =IF(AND(B28>='A - Contractor Summary'!$C$36,B28<='A - Contractor Summary'!$C$38),"Yes",IF(B28<'A - Contractor Summary'!$C$36,"No",IF(B28>'A - Contractor Summary'!$C$39,"",""))) ->  | L28: =IF(OR(K28="Yes",K28="No")*AND(B28<'A - Contractor Summary'!$C$39),"",IF(AND(B28>'A - Contractor Summary'!$C$39,B28<'A - Contractor Summary'!$C$42),"Yes",IF(B28>'A - Contractor Summary'!$C$42,"No","Needs Review"))) -> No | M28: No | N28: 0 | O28: 0 | P28: 299.97 | R28: 1
B29: 10/28/2018-11/3/2018 | C29: Vendor No. 01 | E29: 9 | G29: 9 | H29: 33.33 | I29: 299.97 | J29: No | K29: =IF(AND(B29>='A - Contractor Summary'!$C$36,B29<='A - Contractor Summary'!$C$38),"Yes",IF(B29<'A - Contractor Summary'!$C$36,"No",IF(B29>'A - Contractor Summary'!$C$39,"",""))) ->  | L29: =IF(OR(K29="Yes",K29="No")*AND(B29<'A - Contractor Summary'!$C$39),"",IF(AND(B29>'A - Contractor Summary'!$C$39,B29<'A - Contractor Summary'!$C$42),"Yes",IF(B29>'A - Contractor Summary'!$C$42,"No","Needs Review"))) -> No | M29: No | N29: 0 | O29: 0 | P29: 299.97 | R29: 1
B30: 10/28/2018-11/3/2018 | C30: Vendor No. 01 | E30: 9 | G30: 9 | H30: 33.33 | I30: 299.97 | J30: No | K30: =IF(AND(B30>='A - Contractor Summary'!$C$36,B30<='A - Contractor Summary'!$C$38),"Yes",IF(B30<'A - Contractor Summary'!$C$36,"No",IF(B30>'A - Contractor Summary'!$C$39,"",""))) ->  | L30: =IF(OR(K30="Yes",K30="No")*AND(B30<'A - Contractor Summary'!$C$39),"",IF(AND(B30>'A - Contractor Summary'!$C$39,B30<'A - Contractor Summary'!$C$42),"Yes",IF(B30>'A - Contractor Summary'!$C$42,"No","Needs Review"))) -> No | M30: No | N30: 0 | O30: 0 | P30: 299.97 | R30: 1
P31: 0 | R31: 1
B32: 10/28/2018-11/3/2018 | C32: Vendor No. 01 | E32: 4 | G32: 4 | H32: 172.5 | I32: 690 | J32: No | K32: =IF(AND(B32>='A - Contractor Summary'!$C$36,B32<='A - Contractor Summary'!$C$38),"Yes",IF(B32<'A - Contractor Summary'!$C$36,"No",IF(B32>'A - Contractor Summary'!$C$39,"",""))) ->  | L32: =IF(OR(K32="Yes",K32="No")*AND(B32<'A - Contractor Summary'!$C$39),"",IF(AND(B32>'A - Contractor Summary'!$C$39,B32<'A - Contractor Summary'!$C$42),"Yes",IF(B32>'A - Contractor Summary'!$C$42,"No","Needs Review"))) -> No | M32: No | N32: 0 | O32: 0 | P32: 690 | R32: 1
B33: 10/28/2018-11/3/2018 | C33: Vendor No. 01 | E33: 3 | G33: 3 | H33: 172.5 | I33: 517.5 | J33: No | K33: =IF(AND(B33>='A - Contractor Summary'!$C$36,B33<='A - Contractor Summary'!$C$38),"Yes",IF(B33<'A - Contractor Summary'!$C$36,"No",IF(B33>'A - Contractor Summary'!$C$39,"",""))) ->  | L33: =IF(OR(K33="Yes",K33="No")*AND(B33<'A - Contractor Summary'!$C$39),"",IF(AND(B33>'A - Contractor Summary'!$C$39,B33<'A - Contractor Summary'!$C$42),"Yes",IF(B33>'A - Contractor Summary'!$C$42,"No","Needs Review"))) -> No | M33: No | N33: 0 | O33: 0 | P33: 517.5 | R33: 1
B34: 10/28/2018-11/3/2018 | C34: Vendor No. 01 | E34: 3 | G34: 3 | H34: 172.5 | I34: 517.5 | J34: No | K34: =IF(AND(B34>='A - Contractor Summary'!$C$36,B34<='A - Contractor Summary'!$C$38),"Yes",IF(B34<'A - Contractor Summary'!$C$36,"No",IF(B34>'A - Contractor Summary'!$C$39,"",""))) ->  | L34: =IF(OR(K34="Yes",K34="No")*AND(B34<'A - Contractor Summary'!$C$39),"",IF(AND(B34>'A - Contractor Summary'!$C$39,B34<'A - Contractor Summary'!$C$42),"Yes",IF(B34>'A - Contractor Summary'!$C$42,"No","Needs Review"))) -> No | M34: No | N34: 0 | O34: 0 | P34: 517.5 | R34: 1
B35: 10/28/2018-11/3/2018 | C35: Vendor No. 01 | E35: 3 | G35: 3 | H35: 172.5 | I35: 517.5 | J35: No | K35: =IF(AND(B35>='A - Contractor Summary'!$C$36,B35<='A - Contractor Summary'!$C$38),"Yes",IF(B35<'A - Contractor Summary'!$C$36,"No",IF(B35>'A - Contractor Summary'!$C$39,"",""))) ->  | L35: =IF(OR(K35="Yes",K35="No")*AND(B35<'A - Contractor Summary'!$C$39),"",IF(AND(B35>'A - Contractor Summary'!$C$39,B35<'A - Contractor Summary'!$C$42),"Yes",IF(B35>'A - Contractor Summary'!$C$42,"No","Needs Review"))) -> No | M35: No | N35: 0 | O35: 0 | P35: 517.5 | R35: 1
G36: 0 | I36: 0 | J36: N/A | K36: =IF(AND(B36>='A - Contractor Summary'!$C$36,B36<='A - Contractor Summary'!$C$38),"Yes",IF(B36<'A - Contractor Summary'!$C$36,"No",IF(B36>'A - Contractor Summary'!$C$39,"",""))) -> No | L36: =IF(OR(K36="Yes",K36="No")*AND(B36<'A - Contractor Summary'!$C$39),"",IF(AND(B36>'A - Contractor Summary'!$C$39,B36<'A - Contractor Summary'!$C$42),"Yes",IF(B36>'A - Contractor Summary'!$C$42,"No","Needs Review"))) ->  | M36: No | N36: 0 | O36: 0 | P36: 0
G37: 0 | I37: 0 | J37: N/A | K37: =IF(AND(B37>='A - Contractor Summary'!$C$36,B37<='A - Contractor Summary'!$C$38),"Yes",IF(B37<'A - Contractor Summary'!$C$36,"No",IF(B37>'A - Contractor Summary'!$C$39,"",""))) -> No | L37: =IF(OR(K37="Yes",K37="No")*AND(B37<'A - Contractor Summary'!$C$39),"",IF(AND(B37>'A - Contractor Summary'!$C$39,B37<'A - Contractor Summary'!$C$42),"Yes",IF(B37>'A - Contractor Summary'!$C$42,"No","Needs Review"))) ->  | M37: No | N37: 0 | O37: 0 | P37: 0
G38: 0 | I38: 0 | J38: N/A | K38: =IF(AND(B38>='A - Contractor Summary'!$C$36,B38<='A - Contractor Summary'!$C$38),"Yes",IF(B38<'A - Contractor Summary'!$C$36,"No",IF(B38>'A - Contractor Summary'!$C$39,"",""))) -> No | L38: =IF(OR(K38="Yes",K38="No")*AND(B38<'A - Contractor Summary'!$C$39),"",IF(AND(B38>'A - Contractor Summary'!$C$39,B38<'A - Contractor Summary'!$C$42),"Yes",IF(B38>'A - Contractor Summary'!$C$42,"No","Needs Review"))) ->  | M38: No | N38: 0 | O38: 0
G39: =SUM(G17:G38) -> 81 | I39: =SUM(I17:I38) -> 9797.4 | N39: =IFERROR(SUM(N17:N38),0) -> 0 | O39: =IFERROR(SUM(O17:O38),0) -> 0 | P39: =SUM(P17:P38) -> 9797.4 | Q39: =SUM(Q17:Q38) -> 0 | R39: =O39-P39-Q39 -> -9797.4 | S39: check (a)
B42: Tickmark Explanation:
B44: 1 Documentation Provided

Sheet H - Mileage
B2: Mileage Charges
B4: Test Plan: (A) Obtain support of individual mileage charged (Typically a rate and mileage included on invoice). (B) Ensure charges fall between the dates the vendor was mobilized and the date they arrived. (C) Ensure charges are prior to the date the vendor arrived home or was released to another utility. (D) Ensure number of miles charged deemed reasonable based on vendor location (recalculated per 'A - Contractor Summary' tab). (E) Ensure the location of charge was reasonable (If mobilizing, charges should be related to travelling to TECO Service area, and home, if demobilizing). (F) Determine the amount(s) to be reviewed, allowed and/or disallowed. (G) For charges which required further review, document review and include why it was determined to be allowed/disallowed via a tickmark.
B10: Rx | C10: Recalculated.
B11: a | C11: Check figure should equal $0. Cell will appear yellow if discrepancies are noted.
C13: A | L13: Rx | M13: B | N13: C | O13: D | P13: E | Q13: F | T13: G
B14: Support Reviewed | M14: Conclusions
B15: # | C15: Type of Support | D15: Company | E15: Equipment Name | F15: Equipment ID | G15: Crew | H15: Date | I15: Location | J15: Miles Charged | K15: $ / Mile (Rate) | L15: Total Charge | M15: Reasonable based on Mobilization date(s) | N15: Reasonable based on Demobilization date(s) | O15: Number of Miles Charged Reasonable | P15: Locations Reasonable | Q15: Conclusion | R15: $ Allowable Charge | S15: $ To Be Reviewed | T15: Reviewed - Allowable Charge | U15: Reviewed - Unallowable Charge | V15: Tickmarks
B16: 1 | L16: =J16*K16 -> 0 | M16: =IF(AND(H16>='A - Contractor Summary'!$C$36,H16<='A - Contractor Summary'!$C$38),"Yes",IF(H16<'A - Contractor Summary'!$C$36,"No",IF(H16>'A - Contractor Summary'!$C$39,"",""))) -> No | N16: =IF(OR(M16="Yes",M16="No")*AND(H16<'A - Contractor Summary'!$C$39),"",IF(AND(H16>'A - Contractor Summary'!$C$39,H16<'A - Contractor Summary'!$C$42),"Yes",IF(H16>'A - Contractor Summary'!$C$42,"No","Needs Review"))) ->  | O16: =IF(AND(J16>PRODUCT('A - Contractor Summary'!$C$29,0.85),J16<PRODUCT('A - Contractor Summary'!$C$29,1.15)),"Yes","No") -> No | Q16: =IF(AND(P16="Yes",O16="Yes")*OR(N16="Yes",M16="Yes"),"Yes",IF(OR(M16="No",N16="No",P16="No",O16="No"),"No","Needs Review")) -> No | R16: =IF(Q16="Yes",L16,0) -> 0 | S16: =IF(Q16="Needs Review",L16,0) -> 0
B17: 2 | L17: 0 | M17: =IF(AND(H17>='A - Contractor Summary'!$C$36,H17<='A - Contractor Summary'!$C$38),"Yes",IF(H17<'A - Contractor Summary'!$C$36,"No",IF(H17>'A - Contractor Summary'!$C$39,"",""))) -> No | N17: =IF(OR(M17="Yes",M17="No")*AND(H17<'A - Contractor Summary'!$C$39),"",IF(AND(H17>'A - Contractor Summary'!$C$39,H17<'A - Contractor Summary'!$C$42),"Yes",IF(H17>'A - Contractor Summary'!$C$42,"No","Needs Review"))) ->  | O17: =IF(AND(J17>PRODUCT('A - Contractor Summary'!$C$29,0.85),J17<PRODUCT('A - Contractor Summary'!$C$29,1.15)),"Yes","No") -> No | Q17: No | R17: 0 | S17: 0
B18: 3 | L18: 0 | M18: =IF(AND(H18>='A - Contractor Summary'!$C$36,H18<='A - Contractor Summary'!$C$38),"Yes",IF(H18<'A - Contractor Summary'!$C$36,"No",IF(H18>'A - Contractor Summary'!$C$39,"",""))) -> No | N18: =IF(OR(M18="Yes",M18="No")*AND(H18<'A - Contractor Summary'!$C$39),"",IF(AND(H18>'A - Contractor Summary'!$C$39,H18<'A - Contractor Summary'!$C$42),"Yes",IF(H18>'A - Contractor Summary'!$C$42,"No","Needs Review"))) ->  | O18: =IF(AND(J18>PRODUCT('A - Contractor Summary'!$C$29,0.85),J18<PRODUCT('A - Contractor Summary'!$C$29,1.15)),"Yes","No") -> No | Q18: No | R18: 0 | S18: 0
B19: 4 | L19: 0 | M19: =IF(AND(H19>='A - Contractor Summary'!$C$36,H19<='A - Contractor Summary'!$C$38),"Yes",IF(H19<'A - Contractor Summary'!$C$36,"No",IF(H19>'A - Contractor Summary'!$C$39,"",""))) -> No | N19: =IF(OR(M19="Yes",M19="No")*AND(H19<'A - Contractor Summary'!$C$39),"",IF(AND(H19>'A - Contractor Summary'!$C$39,H19<'A - Contractor Summary'!$C$42),"Yes",IF(H19>'A - Contractor Summary'!$C$42,"No","Needs Review"))) ->  | O19: =IF(AND(J19>PRODUCT('A - Contractor Summary'!$C$29,0.85),J19<PRODUCT('A - Contractor Summary'!$C$29,1.15)),"Yes","No") -> No | Q19: No | R19: 0 | S19: 0
B20: 5 | L20: 0 | M20: =IF(AND(H20>='A - Contractor Summary'!$C$36,H20<='A - Contractor Summary'!$C$38),"Yes",IF(H20<'A - Contractor Summary'!$C$36,"No",IF(H20>'A - Contractor Summary'!$C$39,"",""))) -> No | N20: =IF(OR(M20="Yes",M20="No")*AND(H20<'A - Contractor Summary'!$C$39),"",IF(AND(H20>'A - Contractor Summary'!$C$39,H20<'A - Contractor Summary'!$C$42),"Yes",IF(H20>'A - Contractor Summary'!$C$42,"No","Needs Review"))) ->  | O20: =IF(AND(J20>PRODUCT('A - Contractor Summary'!$C$29,0.85),J20<PRODUCT('A - Contractor Summary'!$C$29,1.15)),"Yes","No") -> No | Q20: No | R20: 0 | S20: 0
B21: 6 | L21: 0 | M21: =IF(AND(H21>='A - Contractor Summary'!$C$36,H21<='A - Contractor Summary'!$C$38),"Yes",IF(H21<'A - Contractor Summary'!$C$36,"No",IF(H21>'A - Contractor Summary'!$C$39,"",""))) -> No | N21: =IF(OR(M21="Yes",M21="No")*AND(H21<'A - Contractor Summary'!$C$39),"",IF(AND(H21>'A - Contractor Summary'!$C$39,H21<'A - Contractor Summary'!$C$42),"Yes",IF(H21>'A - Contractor Summary'!$C$42,"No","Needs Review"))) ->  | O21: =IF(AND(J21>PRODUCT('A - Contractor Summary'!$C$29,0.85),J21<PRODUCT('A - Contractor Summary'!$C$29,1.15)),"Yes","No") -> No | Q21: No | R21: 0 | S21: 0
B22: 7 | L22: 0 | M22: =IF(AND(H22>='A - Contractor Summary'!$C$36,H22<='A - Contractor Summary'!$C$38),"Yes",IF(H22<'A - Contractor Summary'!$C$36,"No",IF(H22>'A - Contractor Summary'!$C$39,"",""))) -> No | N22: =IF(OR(M22="Yes",M22="No")*AND(H22<'A - Contractor Summary'!$C$39),"",IF(AND(H22>'A - Contractor Summary'!$C$39,H22<'A - Contractor Summary'!$C$42),"Yes",IF(H22>'A - Contractor Summary'!$C$42,"No","Needs Review"))) ->  | O22: =IF(AND(J22>PRODUCT('A - Contractor Summary'!$C$29,0.85),J22<PRODUCT('A - Contractor Summary'!$C$29,1.15)),"Yes","No") -> No | Q22: No | R22: 0 | S22: 0
B23: 8 | L23: 0 | M23: =IF(AND(H23>='A - Contractor Summary'!$C$36,H23<='A - Contractor Summary'!$C$38),"Yes",IF(H23<'A - Contractor Summary'!$C$36,"No",IF(H23>'A - Contractor Summary'!$C$39,"",""))) -> No | N23: =IF(OR(M23="Yes",M23="No")*AND(H23<'A - Contractor Summary'!$C$39),"",IF(AND(H23>'A - Contractor Summary'!$C$39,H23<'A - Contractor Summary'!$C$42),"Yes",IF(H23>'A - Contractor Summary'!$C$42,"No","Needs Review"))) ->  | O23: =IF(AND(J23>PRODUCT('A - Contractor Summary'!$C$29,0.85),J23<PRODUCT('A - Contractor Summary'!$C$29,1.15)),"Yes","No") -> No | Q23: No | R23: 0 | S23: 0
B24: 9 | L24: 0 | M24: =IF(AND(H24>='A - Contractor Summary'!$C$36,H24<='A - Contractor Summary'!$C$38),"Yes",IF(H24<'A - Contractor Summary'!$C$36,"No",IF(H24>'A - Contractor Summary'!$C$39,"",""))) -> No | N24: =IF(OR(M24="Yes",M24="No")*AND(H24<'A - Contractor Summary'!$C$39),"",IF(AND(H24>'A - Contractor Summary'!$C$39,H24<'A - Contractor Summary'!$C$42),"Yes",IF(H24>'A - Contractor Summary'!$C$42,"No","Needs Review"))) ->  | O24: =IF(AND(J24>PRODUCT('A - Contractor Summary'!$C$29,0.85),J24<PRODUCT('A - Contractor Summary'!$C$29,1.15)),"Yes","No") -> No | Q24: No | R24: 0 | S24: 0
B25: 10 | L25: 0 | M25: =IF(AND(H25>='A - Contractor Summary'!$C$36,H25<='A - Contractor Summary'!$C$38),"Yes",IF(H25<'A - Contractor Summary'!$C$36,"No",IF(H25>'A - Contractor Summary'!$C$39,"",""))) -> No | N25: =IF(OR(M25="Yes",M25="No")*AND(H25<'A - Contractor Summary'!$C$39),"",IF(AND(H25>'A - Contractor Summary'!$C$39,H25<'A - Contractor Summary'!$C$42),"Yes",IF(H25>'A - Contractor Summary'!$C$42,"No","Needs Review"))) ->  | O25: =IF(AND(J25>PRODUCT('A - Contractor Summary'!$C$29,0.85),J25<PRODUCT('A - Contractor Summary'!$C$29,1.15)),"Yes","No") -> No | Q25: No | R25: 0 | S25: 0
B26: 11 | L26: 0 | M26: =IF(AND(H26>='A - Contractor Summary'!$C$36,H26<='A - Contractor Summary'!$C$38),"Yes",IF(H26<'A - Contractor Summary'!$C$36,"No",IF(H26>'A - Contractor Summary'!$C$39,"",""))) -> No | N26: =IF(OR(M26="Yes",M26="No")*AND(H26<'A - Contractor Summary'!$C$39),"",IF(AND(H26>'A - Contractor Summary'!$C$39,H26<'A - Contractor Summary'!$C$42),"Yes",IF(H26>'A - Contractor Summary'!$C$42,"No","Needs Review"))) ->  | O26: =IF(AND(J26>PRODUCT('A - Contractor Summary'!$C$29,0.85),J26<PRODUCT('A - Contractor Summary'!$C$29,1.15)),"Yes","No") -> No | Q26: No | R26: 0 | S26: 0
B27: 12 | L27: 0 | M27: =IF(AND(H27>='A - Contractor Summary'!$C$36,H27<='A - Contractor Summary'!$C$38),"Yes",IF(H27<'A - Contractor Summary'!$C$36,"No",IF(H27>'A - Contractor Summary'!$C$39,"",""))) -> No | N27: =IF(OR(M27="Yes",M27="No")*AND(H27<'A - Contractor Summary'!$C$39),"",IF(AND(H27>'A - Contractor Summary'!$C$39,H27<'A - Contractor Summary'!$C$42),"Yes",IF(H27>'A - Contractor Summary'!$C$42,"No","Needs Review"))) ->  | O27: =IF(AND(J27>PRODUCT('A - Contractor Summary'!$C$29,0.85),J27<PRODUCT('A - Contractor Summary'!$C$29,1.15)),"Yes","No") -> No | Q27: No | R27: 0 | S27: 0
B28: 13 | L28: 0 | M28: =IF(AND(H28>='A - Contractor Summary'!$C$36,H28<='A - Contractor Summary'!$C$38),"Yes",IF(H28<'A - Contractor Summary'!$C$36,"No",IF(H28>'A - Contractor Summary'!$C$39,"",""))) -> No | N28: =IF(OR(M28="Yes",M28="No")*AND(H28<'A - Contractor Summary'!$C$39),"",IF(AND(H28>'A - Contractor Summary'!$C$39,H28<'A - Contractor Summary'!$C$42),"Yes",IF(H28>'A - Contractor Summary'!$C$42,"No","Needs Review"))) ->  | O28: =IF(AND(J28>PRODUCT('A - Contractor Summary'!$C$29,0.85),J28<PRODUCT('A - Contractor Summary'!$C$29,1.15)),"Yes","No") -> No | Q28: No | R28: 0 | S28: 0
B29: 14 | L29: 0 | M29: =IF(AND(H29>='A - Contractor Summary'!$C$36,H29<='A - Contractor Summary'!$C$38),"Yes",IF(H29<'A - Contractor Summary'!$C$36,"No",IF(H29>'A - Contractor Summary'!$C$39,"",""))) -> No | N29: =IF(OR(M29="Yes",M29="No")*AND(H29<'A - Contractor Summary'!$C$39),"",IF(AND(H29>'A - Contractor Summary'!$C$39,H29<'A - Contractor Summary'!$C$42),"Yes",IF(H29>'A - Contractor Summary'!$C$42,"No","Needs Review"))) ->  | O29: =IF(AND(J29>PRODUCT('A - Contractor Summary'!$C$29,0.85),J29<PRODUCT('A - Contractor Summary'!$C$29,1.15)),"Yes","No") -> No | Q29: No | R29: 0 | S29: 0
B30: 15 | L30: 0 | M30: =IF(AND(H30>='A - Contractor Summary'!$C$36,H30<='A - Contractor Summary'!$C$38),"Yes",IF(H30<'A - Contractor Summary'!$C$36,"No",IF(H30>'A - Contractor Summary'!$C$39,"",""))) -> No | N30: =IF(OR(M30="Yes",M30="No")*AND(H30<'A - Contractor Summary'!$C$39),"",IF(AND(H30>'A - Contractor Summary'!$C$39,H30<'A - Contractor Summary'!$C$42),"Yes",IF(H30>'A - Contractor Summary'!$C$42,"No","Needs Review"))) ->  | O30: =IF(AND(J30>PRODUCT('A - Contractor Summary'!$C$29,0.85),J30<PRODUCT('A - Contractor Summary'!$C$29,1.15)),"Yes","No") -> No | Q30: No | R30: 0 | S30: 0
B31: 16 | L31: 0 | M31: =IF(AND(H31>='A - Contractor Summary'!$C$36,H31<='A - Contractor Summary'!$C$38),"Yes",IF(H31<'A - Contractor Summary'!$C$36,"No",IF(H31>'A - Contractor Summary'!$C$39,"",""))) -> No | N31: =IF(OR(M31="Yes",M31="No")*AND(H31<'A - Contractor Summary'!$C$39),"",IF(AND(H31>'A - Contractor Summary'!$C$39,H31<'A - Contractor Summary'!$C$42),"Yes",IF(H31>'A - Contractor Summary'!$C$42,"No","Needs Review"))) ->  | O31: =IF(AND(J31>PRODUCT('A - Contractor Summary'!$C$29,0.85),J31<PRODUCT('A - Contractor Summary'!$C$29,1.15)),"Yes","No") -> No | Q31: No | R31: 0 | S31: 0
B32: 17 | L32: 0 | M32: =IF(AND(H32>='A - Contractor Summary'!$C$36,H32<='A - Contractor Summary'!$C$38),"Yes",IF(H32<'A - Contractor Summary'!$C$36,"No",IF(H32>'A - Contractor Summary'!$C$39,"",""))) -> No | N32: =IF(OR(M32="Yes",M32="No")*AND(H32<'A - Contractor Summary'!$C$39),"",IF(AND(H32>'A - Contractor Summary'!$C$39,H32<'A - Contractor Summary'!$C$42),"Yes",IF(H32>'A - Contractor Summary'!$C$42,"No","Needs Review"))) ->  | O32: =IF(AND(J32>PRODUCT('A - Contractor Summary'!$C$29,0.85),J32<PRODUCT('A - Contractor Summary'!$C$29,1.15)),"Yes","No") -> No | Q32: No | R32: 0 | S32: 0
B33: 18 | L33: 0 | M33: =IF(AND(H33>='A - Contractor Summary'!$C$36,H33<='A - Contractor Summary'!$C$38),"Yes",IF(H33<'A - Contractor Summary'!$C$36,"No",IF(H33>'A - Contractor Summary'!$C$39,"",""))) -> No | N33: =IF(OR(M33="Yes",M33="No")*AND(H33<'A - Contractor Summary'!$C$39),"",IF(AND(H33>'A - Contractor Summary'!$C$39,H33<'A - Contractor Summary'!$C$42),"Yes",IF(H33>'A - Contractor Summary'!$C$42,"No","Needs Review"))) ->  | O33: =IF(AND(J33>PRODUCT('A - Contractor Summary'!$C$29,0.85),J33<PRODUCT('A - Contractor Summary'!$C$29,1.15)),"Yes","No") -> No | Q33: No | R33: =IF(Q33="Yes",#REF!,0) -> 0 | S33: 0
B34: 19 | L34: 0 | M34: =IF(AND(H34>='A - Contractor Summary'!$C$36,H34<='A - Contractor Summary'!$C$38),"Yes",IF(H34<'A - Contractor Summary'!$C$36,"No",IF(H34>'A - Contractor Summary'!$C$39,"",""))) -> No | N34: =IF(OR(M34="Yes",M34="No")*AND(H34<'A - Contractor Summary'!$C$39),"",IF(AND(H34>'A - Contractor Summary'!$C$39,H34<'A - Contractor Summary'!$C$42),"Yes",IF(H34>'A - Contractor Summary'!$C$42,"No","Needs Review"))) ->  | O34: =IF(AND(J34>PRODUCT('A - Contractor Summary'!$C$29,0.85),J34<PRODUCT('A - Contractor Summary'!$C$29,1.15)),"Yes","No") -> No | Q34: No | R34: =IF(Q34="Yes",#REF!,0) -> 0 | S34: 0
B35: 20 | L35: 0 | M35: =IF(AND(H35>='A - Contractor Summary'!$C$36,H35<='A - Contractor Summary'!$C$38),"Yes",IF(H35<'A - Contractor Summary'!$C$36,"No",IF(H35>'A - Contractor Summary'!$C$39,"",""))) -> No | N35: =IF(OR(M35="Yes",M35="No")*AND(H35<'A - Contractor Summary'!$C$39),"",IF(AND(H35>'A - Contractor Summary'!$C$39,H35<'A - Contractor Summary'!$C$42),"Yes",IF(H35>'A - Contractor Summary'!$C$42,"No","Needs Review"))) ->  | O35: =IF(AND(J35>PRODUCT('A - Contractor Summary'!$C$29,0.85),J35<PRODUCT('A - Contractor Summary'!$C$29,1.15)),"Yes","No") -> No | Q35: No | R35: =IF(Q35="Yes",#REF!,0) -> 0 | S35: =IF(Q35="ED Review",#REF!,0) -> 0
L36: =SUM(L16:L35) -> 0 | R36: =IFERROR(SUM(R16:R35),0) -> 0 | S36: =IFERROR(SUM(S16:S35),0) -> 0 | T36: =SUM(T16:T35) -> 0 | U36: =SUM(U16:U35) -> 0 | V36: =S36-T36-U36 -> 0 | W36: check (a)
B42: Tickmark Explanation:
